Body Name,Service Area,Expenses Type,Invoice Payment Date,Transaction Number,Net Amount,Supplier Name
Manchester City Council,Libraries and Theatres,Catering Provisions,01.12.2015,1904891081,677.08,Hey Little Cupcakes
Manchester City Council,Hospitality + Trading Services,Rents,01.12.2015,1904882008,"10,500.00",Network Rail Property
Manchester City Council,Hospitality + Trading Services,Compensation Payments,01.12.2015,1904882012,"2,287.59",Whitaker Brothers
Manchester City Council,Hospitality + Trading Services,Catering Provisions,01.12.2015,1904894756,"1,839.16",Brake Bros Foodservice Ltd
Manchester City Council,Hospitality + Trading Services,Purchase of stores for re-distribution,01.12.2015,5100829195,"1,816.32",Marshalls Mono Ltd
Manchester City Council,Hospitality + Trading Services,Catering Provisions,01.12.2015,1904894760,749.43,Brake Bros Foodservice Ltd
Manchester City Council,Hospitality + Trading Services,Catering Provisions,01.12.2015,1904894786,666.25,Brake Bros Foodservice Ltd
Manchester City Council,Hospitality + Trading Services,Catering Provisions,01.12.2015,1904894717,612.61,Brake Bros Foodservice Ltd
Manchester City Council,Hospitality + Trading Services,Catering Provisions,01.12.2015,1904894731,574.35,Brake Bros Foodservice Ltd
Manchester City Council,Adult Social Care,Agency staff provision,01.12.2015,5100829210,"11,764.60",Gatenby Sanderson
Manchester City Council,Adult Social Care,Agency staff provision,01.12.2015,5100829210,"7,500.00",Gatenby Sanderson
Manchester City Council,Adult Social Care,Agency staff provision,01.12.2015,5100829210,"3,705.87",Gatenby Sanderson
Manchester City Council,Adult Social Care,Third party payments relating to Voluntary Organisations,01.12.2015,5100829173,"3,312.00",Chapter 1
Manchester City Council,Adult Social Care,Rents,01.12.2015,5100829212,"2,941.40",Mosscare Housing Ltd
Manchester City Council,Adult Social Care,Rents,01.12.2015,5100829215,"2,941.40",Mosscare Housing Ltd
Manchester City Council,Adult Social Care,Rents,01.12.2015,5100829216,"2,941.40",Mosscare Housing Ltd
Manchester City Council,Adult Social Care,Compensation Payments,01.12.2015,1904874953,"1,680.00",MCC CFS AMS HEADER
Manchester City Council,Adult Social Care,Agency staff provision,01.12.2015,5100829248,"1,659.96",SRA Cover Staff Ltd
Manchester City Council,Adult Social Care,Agency staff provision,01.12.2015,5100829248,"1,451.77",SRA Cover Staff Ltd
Manchester City Council,Adult Social Care,Agency staff provision,01.12.2015,5100829248,"1,212.62",SRA Cover Staff Ltd
Manchester City Council,Adult Social Care,Agency staff provision,01.12.2015,5100829236,"1,204.00",Ashberry Recruitment Ltd
Manchester City Council,Adult Social Care,Agency staff provision,01.12.2015,5100829236,"1,102.28",Ashberry Recruitment Ltd
Manchester City Council,Adult Social Care,Agency staff provision,01.12.2015,5100829236,997.05,Ashberry Recruitment Ltd
Manchester City Council,Adult Social Care,Agency staff provision,01.12.2015,5100829248,830.40,SRA Cover Staff Ltd
Manchester City Council,Adult Social Care,Agency staff provision,01.12.2015,5100829236,814.73,Ashberry Recruitment Ltd
Manchester City Council,Adult Social Care,Hire of Premises,01.12.2015,5100829227,813.00,Quaker Trading Ltd
Manchester City Council,Adult Social Care,Agency staff provision,01.12.2015,5100829236,730.10,Ashberry Recruitment Ltd
Manchester City Council,Adult Social Care,Agency staff provision,01.12.2015,5100829248,718.88,SRA Cover Staff Ltd
Manchester City Council,Adult Social Care,Agency staff provision,01.12.2015,5100829236,653.10,Ashberry Recruitment Ltd
Manchester City Council,Adult Social Care,Agency staff provision,01.12.2015,5100829248,642.84,SRA Cover Staff Ltd
Manchester City Council,Adult Social Care,Agency staff provision,01.12.2015,5100829248,553.77,SRA Cover Staff Ltd
Manchester City Council,Adult Social Care,Agency staff provision,01.12.2015,5100829248,519.00,SRA Cover Staff Ltd
Manchester City Council,Adult Social Care,Legal Fees,01.12.2015,1700059553,"-20,535.00",Liberata
Manchester City Council,Corporate Services,Agency staff provision,01.12.2015,5100829225,916.30,Bennett Staff Bureau
Manchester City Council,Housing General Fund,Surplus property Acquisitions,01.12.2015,1904895002,"40,060.00",Bevan Brittan LLP
Manchester City Council,Chief Executives,Legal Fees,01.12.2015,1904894797,"20,535.00",Liberata
Manchester City Council,Chief Executives,Agency staff provision,01.12.2015,5100829236,"7,814.02",Ashberry Recruitment Ltd
Manchester City Council,Chief Executives,Agency staff provision,01.12.2015,5100829210,"7,641.50",Gatenby Sanderson
Manchester City Council,Chief Executives,Agency staff provision,01.12.2015,5100829248,"4,848.41",SRA Cover Staff Ltd
Manchester City Council,Regeneration Finance,Professional fees,01.12.2015,1904893105,"16,957.00",INTEGRA CONSULTING
Manchester City Council,Manchester Leisure,Hire of Equipment,02.12.2015,5100829390,"4,140.00",Tim Garbutt Events Ltd
Manchester City Council,Manchester Leisure,Goods purchased for resale in Council outlets,02.12.2015,5100829407,962.73,Littlehampton Book Services Ltd
Manchester City Council,Manchester Leisure,Goods purchased for resale in Council outlets,02.12.2015,5100829404,797.63,Grantham Book Services Ltd
Manchester City Council,Manchester Leisure,Goods purchased for resale in Council outlets,02.12.2015,5100829406,672.30,Redacted Personal Information
Manchester City Council,Hospitality + Trading Services,Rents,02.12.2015,1904893239,"10,500.00",Network Rail Property
Manchester City Council,Hospitality + Trading Services,Preventative Maintenance Work,02.12.2015,5100829415,"5,499.98",Manchester Working Ltd
Manchester City Council,Hospitality + Trading Services,Compensation Payments,02.12.2015,1904891048,"2,857.45",Virgin Media Ltd
Manchester City Council,Hospitality + Trading Services,Internal Repairs and Maintenance for buildings,02.12.2015,1904891181,"2,833.22",SMS Canopies & Blinds Ltd
Manchester City Council,Hospitality + Trading Services,Vehicle Repairs,02.12.2015,5100829313,"1,247.15",LDS Motor Bodies Ltd
Manchester City Council,Hospitality + Trading Services,Fees,02.12.2015,1904894979,"1,169.40",JBW Group Ltd
Manchester City Council,Hospitality + Trading Services,Catering Provisions,02.12.2015,1904899199,"1,030.49",BRAMBLES FOODS LTD
Manchester City Council,Hospitality + Trading Services,Vehicle Repairs,02.12.2015,5100829316,939.56,LDS Motor Bodies Ltd
Manchester City Council,Hospitality + Trading Services,Catering Provisions,02.12.2015,1904899124,786.84,Brake Bros Foodservice Ltd
Manchester City Council,Hospitality + Trading Services,Hire of Machinery,02.12.2015,5100829341,666.12,R & M Developments Ltd
Manchester City Council,Hospitality + Trading Services,Catering Provisions,02.12.2015,1904899202,664.56,Brake Bros Foodservice Ltd
Manchester City Council,Hospitality + Trading Services,Catering Provisions,02.12.2015,1904899308,660.39,Brake Bros Foodservice Ltd
Manchester City Council,Hospitality + Trading Services,Catering Provisions,02.12.2015,1904899315,599.93,Brake Bros Foodservice Ltd
Manchester City Council,Hospitality + Trading Services,Catering Provisions,02.12.2015,1904899218,528.09,Brake Bros Foodservice Ltd
Manchester City Council,Hospitality + Trading Services,Building Materials for direct delivery,02.12.2015,1904899321,521.50,Ecomix Concrete Ltd
Manchester City Council,Hospitality + Trading Services,Catering Provisions,02.12.2015,1904899278,514.39,Ralph Livesey Ltd
Manchester City Council,Hospitality + Trading Services,Equipment Operating Lease,02.12.2015,1904894979,"-1,169.40",JBW Group Ltd
Manchester City Council,Environment and Operations,Compensation Payments,02.12.2015,1904891037,"5,000.00",Express Solicitors
Manchester City Council,Environment and Operations,Compensation Payments,02.12.2015,1904890532,"3,000.00",Gorvins
Manchester City Council,Environment and Operations,Construction Works,02.12.2015,5100829312,773.32,Electricity North West Limited
Manchester City Council,Environment and Operations,Compensation Payments,02.12.2015,1904895003,637.00,Department For Work & Pensions
Manchester City Council,Environment and Operations,Construction Works,02.12.2015,5100829477,-773.32,Electricity North West Limited
Manchester City Council,Adult Social Care,Professional fees,02.12.2015,5100821332,"893,949.33",Central Manchester University Hosp
Manchester City Council,Adult Social Care,Third party payments to Health Authority,02.12.2015,5100829234,"91,844.33",University Hospital of South Mcr
Manchester City Council,Adult Social Care,Third party payments to Health Authority,02.12.2015,5100829257,"91,844.33",University Hospital of South Mcr
Manchester City Council,Adult Social Care,Professional fees,02.12.2015,5100829333,"80,000.00",Rochdale Mbc
Manchester City Council,Adult Social Care,Third party payments to Health Authority,02.12.2015,5100829234,"20,429.08",University Hospital of South Mcr
Manchester City Council,Adult Social Care,Third party payments to Health Authority,02.12.2015,5100829257,"20,429.08",University Hospital of South Mcr
Manchester City Council,Adult Social Care,Payments for services,02.12.2015,5100829386,"17,329.00",The Youth Justice Board
Manchester City Council,Adult Social Care,Payments for services,02.12.2015,5100829385,"15,407.00",The Youth Justice Board
Manchester City Council,Adult Social Care,Compensation Payments,02.12.2015,1904890368,"11,000.00",Abney Garsden Mcdonald
Manchester City Council,Adult Social Care,Third party payments to Health Authority,02.12.2015,5100829234,"10,674.67",University Hospital of South Mcr
Manchester City Council,Adult Social Care,Third party payments to Health Authority,02.12.2015,5100829257,"10,674.67",University Hospital of South Mcr
Manchester City Council,Adult Social Care,Bed & Breakfast Acc,02.12.2015,5100829370,"8,070.00",Redacted Personal Information
Manchester City Council,Adult Social Care,Rents,02.12.2015,5100829499,"6,700.00",The Manchester College
Manchester City Council,Adult Social Care,Bed & Breakfast Acc,02.12.2015,5100829337,"5,940.00",Weaste Hotel
Manchester City Council,Adult Social Care,Payments for services,02.12.2015,5100829398,"5,487.00",The Youth Justice Board
Manchester City Council,Adult Social Care,Agency staff provision,02.12.2015,5100829288,"5,160.31",HR GO Recruitment Healthcare
Manchester City Council,Adult Social Care,Agency staff provision,02.12.2015,5100829288,"4,950.21",HR GO Recruitment Healthcare
Manchester City Council,Adult Social Care,Subsistence and Conference Expenses,02.12.2015,5100829287,"4,026.50",Redacted Personal Information
Manchester City Council,Adult Social Care,Subsistence and Conference Expenses,02.12.2015,5100829290,"4,026.50",Redacted Personal Information
Manchester City Council,Adult Social Care,Subsistence and Conference Expenses,02.12.2015,5100829289,"4,026.50",Redacted Personal Information
Manchester City Council,Adult Social Care,Subsistence and Conference Expenses,02.12.2015,5100829282,"4,026.50",Redacted Personal Information
Manchester City Council,Adult Social Care,Subsistence and Conference Expenses,02.12.2015,5100829283,"4,026.50",Redacted Personal Information
Manchester City Council,Adult Social Care,Subsistence and Conference Expenses,02.12.2015,5100829284,"4,026.50",Redacted Personal Information
Manchester City Council,Adult Social Care,Subsistence and Conference Expenses,02.12.2015,5100829281,"4,026.50",Redacted Personal Information
Manchester City Council,Adult Social Care,Subsistence and Conference Expenses,02.12.2015,5100829278,"4,026.50",Redacted Personal Information
Manchester City Council,Adult Social Care,Subsistence and Conference Expenses,02.12.2015,5100829286,"4,026.50",Redacted Personal Information
Manchester City Council,Adult Social Care,Transport Coach Hire,02.12.2015,5100829319,"3,622.50",Cresta Car Hire
Manchester City Council,Adult Social Care,Third party payments to other Local Authorities,02.12.2015,5100829418,"3,225.00",Tameside Metropolitan Bouough
Manchester City Council,Adult Social Care,Compensation Payments,02.12.2015,1904900397,"2,635.00",Liberata
Manchester City Council,Adult Social Care,Transport Coach Hire,02.12.2015,5100829480,"2,400.00",Taxi Team Limited
Manchester City Council,Adult Social Care,Legal Fees,02.12.2015,1904900392,"2,365.00",Liberata
Manchester City Council,Adult Social Care,Payments for services,02.12.2015,5100829381,"2,301.00",The Youth Justice Board
Manchester City Council,Adult Social Care,Transport Coach Hire,02.12.2015,5100829481,"2,180.00",Taxi Team Limited
Manchester City Council,Adult Social Care,Legal Fees,02.12.2015,1904900396,"2,055.00",Liberata
Manchester City Council,Adult Social Care,Transport Coach Hire,02.12.2015,5100829479,"2,000.00",Taxi Team Limited
Manchester City Council,Adult Social Care,Compensation Payments,02.12.2015,1904882087,"1,900.00",Redacted Personal Information
Manchester City Council,Adult Social Care,Payments for services,02.12.2015,5100829388,"1,416.00",The Youth Justice Board
Manchester City Council,Adult Social Care,Compensation Payments,02.12.2015,1904882085,"1,393.97",Joseph Daniel Solicitors
Manchester City Council,Adult Social Care,Payments for services,02.12.2015,5100829379,"1,239.00",The Youth Justice Board
Manchester City Council,Adult Social Care,Third party payments relating to Voluntary Organisations,02.12.2015,5100829324,"1,234.14",The Stroke Association
Manchester City Council,Adult Social Care,I T Provision,02.12.2015,5100829509,"1,170.00",Ezitracker Ltd
Manchester City Council,Adult Social Care,Agency staff provision,02.12.2015,5100829288,"1,116.98",HR GO Recruitment Healthcare
Manchester City Council,Adult Social Care,Third party payments to other Local Authorities,02.12.2015,5100828757,973.69,Tameside Metropolitan Bouough
Manchester City Council,Adult Social Care,Compensation Payments,02.12.2015,1904882074,637.00,Department For Work & Pensions
Manchester City Council,Adult Social Care,Rents,02.12.2015,5100829500,"-1,675.00",The Manchester College
Manchester City Council,Adult Social Care,Transport Coach Hire,02.12.2015,5100829318,"-2,596.00",Cresta Car Hire
Manchester City Council,Adult Social Care,Transport Coach Hire,02.12.2015,5100829317,"-3,622.50",Cresta Car Hire
Manchester City Council,Adult Social Care,Transport Coach Hire,02.12.2015,5100829315,"-4,962.60",Cresta Car Hire
Manchester City Council,Adult Social Care,Rents,02.12.2015,5100829495,"-6,700.00",The Manchester College
Manchester City Council,Adult Social Care,Third party payments to Health Authority,02.12.2015,5100829255,"-10,674.67",University Hospital of South Mcr
Manchester City Council,Adult Social Care,Third party payments to Health Authority,02.12.2015,5100829255,"-20,429.08",University Hospital of South Mcr
Manchester City Council,Adult Social Care,Professional fees,02.12.2015,5100829335,"-80,000.00",Rochdale Mbc
Manchester City Council,Adult Social Care,Third party payments to Health Authority,02.12.2015,5100829255,"-91,844.33",University Hospital of South Mcr
Manchester City Council,Corporate Services,Travel Season TLS,02.12.2015,5100829293,"1,045.00",Transport for Greater Manchester
Manchester City Council,Corporate Services,Travel Season TLS,02.12.2015,5100829297,"1,045.00",Transport for Greater Manchester
Manchester City Council,Corporate Services,Travel Season TLS,02.12.2015,5100829297,900.00,Transport for Greater Manchester
Manchester City Council,Corporate Services,Travel Season TLS,02.12.2015,5100829293,747.00,Transport for Greater Manchester
Manchester City Council,Corporate Services,Travel Season TLS,02.12.2015,5100829297,747.00,Transport for Greater Manchester
Manchester City Council,Corporate Services,Travel Season TLS,02.12.2015,5100829297,646.00,Transport for Greater Manchester
Manchester City Council,Corporate Services,Travel Season TLS,02.12.2015,5100829297,646.00,Transport for Greater Manchester
Manchester City Council,Corporate Services,Travel Season TLS,02.12.2015,5100829294,558.00,Transport for Greater Manchester
Manchester City Council,Housing General Fund,Council Dwelling Adaptations,02.12.2015,5100829353,"56,781.00",Solargen Energy Ltd
Manchester City Council,Housing General Fund,Council Dwelling Adaptations,02.12.2015,5100829366,"47,610.47",Solarking Commercial
Manchester City Council,Housing General Fund,Council Dwelling Adaptations,02.12.2015,5100829382,"39,996.42",Solarking Commercial
Manchester City Council,Housing General Fund,Council Dwelling Adaptations,02.12.2015,5100829387,"1,697.42",Solarking Commercial
Manchester City Council,Chief Executives,Legal Fees,02.12.2015,1904900398,"45,545.00",Liberata
Manchester City Council,Chief Executives,Agency staff provision,02.12.2015,5100829288,"10,368.73",HR GO Recruitment Healthcare
Manchester City Council,Chief Executives,Compensation Payments,02.12.2015,1904894982,"2,890.00",Redacted Personal Information
Manchester City Council,Chief Executives,Compensation Payments,02.12.2015,1904900394,"2,485.00",Liberata
Manchester City Council,Chief Executives,Funeral and coroner related services,02.12.2015,1904895084,"2,070.00",NSLR Ltd
Manchester City Council,Chief Executives,General Office expenses,02.12.2015,1904895062,970.00,David Wayman Flowers Limited
Manchester City Council,Chief Executives,Advertising,02.12.2015,5100829320,534.69,Trinity Mirror NW2 Ltd
Manchester City Council,Chief Executives,Building Works,02.12.2015,5100829486,"-1,057.40",Insight Direct (Uk) Ltd
Manchester City Council,Regeneration Finance,Professional fees,02.12.2015,5100829323,"5,600.00",Beverley Clifton Morris Limited
Manchester City Council,GMIST (Greater Mcr Integrated),"Provision of non- alcoholic drinks, including water",02.12.2015,5100829409,510.00,Manchester Central
Manchester City Council,Manchester Leisure,Electricity,03.12.2015,1904901604,"4,123.33",British Gas Plc
Manchester City Council,Manchester Leisure,Grounds Maintenance,03.12.2015,5100829616,"1,960.00",KB Industries UK Limited
Manchester City Council,Manchester Leisure,Grounds Maintenance,03.12.2015,5100829614,"-1,960.00",KB Industries UK Limited
Manchester City Council,Manchester Leisure,Hire of Equipment,03.12.2015,5100829516,"-11,767.50",Eve Trakway
Manchester City Council,Hospitality + Trading Services,Catering Provisions,03.12.2015,1904901883,"72,932.24",Ralph Livesey Ltd
Manchester City Council,Hospitality + Trading Services,Preventative Maintenance Work,03.12.2015,5100829555,"62,830.00",Manchester Working Ltd
Manchester City Council,Hospitality + Trading Services,Vehicle Hire Costs,03.12.2015,5100829873,"46,886.21",Manchester Van Hire Ltd
Manchester City Council,Hospitality + Trading Services,Electricity,03.12.2015,1904901592,"30,530.29",British Gas Plc
Manchester City Council,Hospitality + Trading Services,Electricity,03.12.2015,1904901585,"12,794.17",British Gas Plc
Manchester City Council,Hospitality + Trading Services,Building Materials for direct delivery,03.12.2015,5100829190,"9,060.66",Glasdon U.K. Limited
Manchester City Council,Hospitality + Trading Services,Vehicle Hire Costs,03.12.2015,5100829427,"6,008.80",Specialist Vehicle rental
Manchester City Council,Hospitality + Trading Services,Electricity,03.12.2015,1904901605,"5,928.76",British Gas Plc
Manchester City Council,Hospitality + Trading Services,Electricity,03.12.2015,1904901586,"3,498.63",British Gas Plc
Manchester City Council,Hospitality + Trading Services,Electricity,03.12.2015,1904901593,"2,200.26",British Gas Plc
Manchester City Council,Hospitality + Trading Services,Cleaning Equipment and Materials,03.12.2015,5100829449,849.50,Alliance Disposables Ltd
Manchester City Council,Hospitality + Trading Services,Building Materials for direct delivery,03.12.2015,1904901627,828.00,Benchmark Building Supplies Ltd
Manchester City Council,Hospitality + Trading Services,Catering Provisions,03.12.2015,1904901512,798.37,Chicken Joes Limited
Manchester City Council,Hospitality + Trading Services,Catering Provisions,03.12.2015,1904901507,778.70,Brake Bros Foodservice Ltd
Manchester City Council,Hospitality + Trading Services,Catering Provisions,03.12.2015,1904901526,702.35,Brake Bros Foodservice Ltd
Manchester City Council,Hospitality + Trading Services,Catering Provisions,03.12.2015,1904901546,624.59,Chicken Joes Limited
Manchester City Council,Hospitality + Trading Services,Catering Provisions,03.12.2015,1904901550,615.37,Brake Bros Foodservice Ltd
Manchester City Council,Hospitality + Trading Services,Catering Provisions,03.12.2015,1904901558,608.66,Brake Bros Foodservice Ltd
Manchester City Council,Hospitality + Trading Services,Catering Provisions,03.12.2015,1904901503,577.12,Brake Bros Foodservice Ltd
Manchester City Council,Hospitality + Trading Services,Catering Provisions,03.12.2015,1904901489,563.04,Brake Bros Foodservice Ltd
Manchester City Council,Hospitality + Trading Services,Catering Provisions,03.12.2015,1904901484,551.37,Brake Bros Foodservice Ltd
Manchester City Council,Hospitality + Trading Services,Catering Provisions,03.12.2015,1904901554,543.65,Brake Bros Foodservice Ltd
Manchester City Council,Hospitality + Trading Services,Catering Provisions,03.12.2015,1904901556,517.41,Brake Bros Foodservice Ltd
Manchester City Council,Environment and Operations,Construction Works,03.12.2015,5100829617,"3,317.50",Bethell Construction Ltd
Manchester City Council,Environment and Operations,Electricity,03.12.2015,1904901587,"3,052.09",British Gas Plc
Manchester City Council,Environment and Operations,Building Materials for direct delivery,03.12.2015,5100829731,"2,227.23",Howarth Timber
Manchester City Council,Environment and Operations,Building Materials for direct delivery,03.12.2015,5100829620,"1,485.00",Plantscape
Manchester City Council,Environment and Operations,Building Materials for direct delivery,03.12.2015,5100829608,"1,368.00",Cheshire Nurseries
Manchester City Council,Environment and Operations,Building Materials for direct delivery,03.12.2015,5100829609,"1,248.00",Cheshire Nurseries
Manchester City Council,Environment and Operations,Building Materials for direct delivery,03.12.2015,5100829610,"1,236.00",Cheshire Nurseries
Manchester City Council,Environment and Operations,Building Materials for direct delivery,03.12.2015,5100829607,"1,224.00",Cheshire Nurseries
Manchester City Council,Environment and Operations,Building Materials for direct delivery,03.12.2015,5100829619,990.00,Plantscape
Manchester City Council,Environment and Operations,Construction Works,03.12.2015,5100829478,927.98,Electricity North West Limited
Manchester City Council,Environment and Operations,Building Materials for direct delivery,03.12.2015,5100829725,660.09,Howarth Timber
Manchester City Council,Environment and Operations,Building Materials for direct delivery,03.12.2015,5100829740,660.09,Howarth Timber
Manchester City Council,Environment and Operations,Building Materials for direct delivery,03.12.2015,5100829720,503.64,Howarth Timber
Manchester City Council,Environment and Operations,Building Materials for direct delivery,03.12.2015,5100829736,-660.09,Howarth Timber
Manchester City Council,Adult Social Care,Professional fees,03.12.2015,5100829545,"893,949.33",Central Manchester University Hosp
Manchester City Council,Adult Social Care,Third party payments relating to Voluntary Organisations,03.12.2015,5100829482,"88,750.00",Man. Citizens Advice Bureaux
Manchester City Council,Adult Social Care,Payments for services,03.12.2015,5100829693,"45,500.00",Social Care Services (Clayton) Ltd
Manchester City Council,Adult Social Care,Third party payments relating to Voluntary Organisations,03.12.2015,5100829573,"25,000.00",Manchester Care & Repair Ltd
Manchester City Council,Adult Social Care,Payments for services,03.12.2015,5100829533,"11,197.34",Belmont School Ltd
Manchester City Council,Adult Social Care,Payments for services,03.12.2015,5100829558,"11,197.34",Belmont School Ltd
Manchester City Council,Adult Social Care,Payments for services,03.12.2015,5100829554,"10,977.66",Belmont School Ltd
Manchester City Council,Adult Social Care,Payments for services,03.12.2015,5100829535,"10,179.34",Belmont School Ltd
Manchester City Council,Adult Social Care,Licences Purchase,03.12.2015,5100829583,"9,452.00",Capita Business Services Ltd
Manchester City Council,Adult Social Care,Payments for services,03.12.2015,5100829532,"3,360.00",Keys Childcare Ltd
Manchester City Council,Adult Social Care,Payments for services,03.12.2015,5100829536,"3,360.00",Keys Childcare Ltd
Manchester City Council,Adult Social Care,Payments for services,03.12.2015,5100829553,"3,360.00",Keys Childcare Ltd
Manchester City Council,Adult Social Care,Professional fees,03.12.2015,5100829551,"3,130.00",Liquid Personnel Ltd
Manchester City Council,Adult Social Care,I T Provision,03.12.2015,5100829504,"2,748.77",Ezitracker Ltd
Manchester City Council,Adult Social Care,I T Provision,03.12.2015,5100829505,"2,702.85",Ezitracker Ltd
Manchester City Council,Adult Social Care,Ind Budget Payment,03.12.2015,1904901923,"2,544.00",Redacted Personal Information
Manchester City Council,Adult Social Care,Third party payments relating to Voluntary Organisations,03.12.2015,5100829348,"2,385.00",Connect Support Ltd
Manchester City Council,Adult Social Care,Third party payments relating to Voluntary Organisations,03.12.2015,5100829350,"2,385.00",Connect Support Ltd
Manchester City Council,Adult Social Care,Agency staff provision,03.12.2015,5100829233,"2,271.50",Search Consultancy Ltd
Manchester City Council,Adult Social Care,Agency staff provision,03.12.2015,5100829233,"2,066.11",Search Consultancy Ltd
Manchester City Council,Adult Social Care,Professional fees,03.12.2015,5100829552,"1,800.00",Liquid Personnel Ltd
Manchester City Council,Adult Social Care,I T Provision,03.12.2015,5100829506,"1,625.00",Ezitracker Ltd
Manchester City Council,Adult Social Care,Professional fees,03.12.2015,1904865491,"1,470.00",National Development Team inclusion
Manchester City Council,Adult Social Care,Third party payments to Health Authority,03.12.2015,1904900423,"1,261.89",Central & NW London NHS Foundation
Manchester City Council,Adult Social Care,I T Provision,03.12.2015,5100829502,"1,170.00",Ezitracker Ltd
Manchester City Council,Adult Social Care,I T Provision,03.12.2015,5100829508,"1,170.00",Ezitracker Ltd
Manchester City Council,Adult Social Care,I T Provision,03.12.2015,5100829510,"1,170.00",Ezitracker Ltd
Manchester City Council,Adult Social Care,I T Provision,03.12.2015,5100829512,"1,170.00",Ezitracker Ltd
Manchester City Council,Adult Social Care,Agency staff provision,03.12.2015,1904882109,"1,000.00",Redacted Personal Information
Manchester City Council,Adult Social Care,Agency staff provision,03.12.2015,5100829233,967.75,Search Consultancy Ltd
Manchester City Council,Adult Social Care,Agency staff provision,03.12.2015,5100829428,967.75,Semester Recruitment Ltd
Manchester City Council,Adult Social Care,Agency staff provision,03.12.2015,5100829434,967.75,Semester Recruitment Ltd
Manchester City Council,Adult Social Care,Pay School Budget,03.12.2015,5100805911,950.04,KS1/2 Bridgelea PRU
Manchester City Council,Adult Social Care,Payments for services,03.12.2015,5100829511,841.00,The Youth Justice Board
Manchester City Council,Adult Social Care,Agency staff provision,03.12.2015,5100829233,759.50,Search Consultancy Ltd
Manchester City Council,Adult Social Care,Payments for services,03.12.2015,5100829511,752.00,The Youth Justice Board
Manchester City Council,Adult Social Care,Equipment,03.12.2015,5100829325,702.00,Invacare Limited
Manchester City Council,Adult Social Care,Agency staff provision,03.12.2015,5100829429,645.75,Semester Recruitment Ltd
Manchester City Council,Adult Social Care,Agency staff provision,03.12.2015,5100829233,590.24,Search Consultancy Ltd
Manchester City Council,Adult Social Care,Building Materials for direct delivery,03.12.2015,5100820847,583.30,Mountway Ltd
Manchester City Council,Adult Social Care,Agency staff provision,03.12.2015,5100829233,579.25,Search Consultancy Ltd
Manchester City Council,Adult Social Care,Personal needs of client,03.12.2015,5100829789,519.82,The Furnishing Service Ltd
Manchester City Council,Adult Social Care,Third party payments relating to Voluntary Organisations,03.12.2015,5100829556,"-2,385.00",Connect Support Ltd
Manchester City Council,Adult Social Care,Third party payments relating to Voluntary Organisations,03.12.2015,5100829749,"-2,385.00",Connect Support Ltd
Manchester City Council,Corporate Services,Compensation Payments,03.12.2015,1904901391,"3,576.00",HMCTS (Manchester)
Manchester City Council,Housing General Fund,Council Dwelling Adaptations,03.12.2015,5100829641,"8,993.90",Solarking Commercial
Manchester City Council,Housing Revenue Account,Council Dwelling Adaptations,03.12.2015,5100829647,"177,492.04",Manchester Working Ltd
Manchester City Council,Housing Revenue Account,Council Dwelling Adaptations,03.12.2015,5100829644,"146,444.43",Manchester Working Ltd
Manchester City Council,Housing Revenue Account,Council Dwelling Adaptations,03.12.2015,5100829646,"113,307.40",Manchester Working Ltd
Manchester City Council,Housing Revenue Account,Council Dwelling Adaptations,03.12.2015,5100829645,"98,550.32",Manchester Working Ltd
Manchester City Council,Housing Revenue Account,Council Dwelling Adaptations,03.12.2015,5100829648,"30,852.08",Manchester Working Ltd
Manchester City Council,Housing Revenue Account,Council Dwelling Adaptations,03.12.2015,5100829643,"15,198.46",Manchester Working Ltd
Manchester City Council,Housing Revenue Account,Council Dwelling Adaptations,03.12.2015,5100829643,"3,276.15",Manchester Working Ltd
Manchester City Council,Chief Executives,Publications,03.12.2015,5100829529,"24,525.00",Thompson Reuters
Manchester City Council,Chief Executives,Professional fees,03.12.2015,5100829562,"12,895.00",Taylor Lynn Corporation (TLC) Ltd
Manchester City Council,Chief Executives,Agency staff provision,03.12.2015,5100829233,"9,747.73",Search Consultancy Ltd
Manchester City Council,Chief Executives,Agency staff provision,03.12.2015,5100829200,"5,619.35",Michael Page International
Manchester City Council,Chief Executives,Agency staff provision,03.12.2015,5100829200,"2,814.70",Michael Page International
Manchester City Council,Chief Executives,Postage,03.12.2015,5100829397,"1,793.92",Royal Mail Group Plc
Manchester City Council,Chief Executives,Signers/Interpreters,03.12.2015,5100829304,"1,524.40",Interpreter Booking Services
Manchester City Council,Chief Executives,Training and Development,03.12.2015,5100829520,"1,060.00",The Manchester College
Manchester City Council,Chief Executives,Professional fees,03.12.2015,5100829550,944.50,United Flags & Flagstaffs Ltd
Manchester City Council,Chief Executives,Printing,03.12.2015,5100829763,937.47,Neopost Ltd (Consumables)
Manchester City Council,Chief Executives,Signers/Interpreters,03.12.2015,5100829303,665.90,Interpreter Booking Services
Manchester City Council,Chief Executives,Electricity,03.12.2015,1904901584,564.71,British Gas Plc
Manchester City Council,Chief Executives,Advertising,03.12.2015,1904901374,540.57,Facebook (CARD ONLY)
Manchester City Council,Chief Executives,Advertising,03.12.2015,1904901376,508.15,Facebook (CARD ONLY)
Manchester City Council,Regeneration Finance,Electricity,03.12.2015,1904901589,"22,307.68",British Gas Plc
Manchester City Council,Regeneration Finance,Grant and subscriptions awarded,03.12.2015,5100829376,"22,001.00",Manchester Hive Network Limited
Manchester City Council,Regeneration Finance,Electricity,03.12.2015,1904901588,"21,484.63",British Gas Plc
Manchester City Council,Regeneration Finance,Electricity,03.12.2015,1904901602,"17,240.08",British Gas Plc
Manchester City Council,Regeneration Finance,Electricity,03.12.2015,1904901579,"13,499.18",British Gas Plc
Manchester City Council,Regeneration Finance,Electricity,03.12.2015,1904901609,"13,175.41",British Gas Plc
Manchester City Council,Regeneration Finance,Electricity,03.12.2015,1904901600,"12,957.24",British Gas Plc
Manchester City Council,Regeneration Finance,Electricity,03.12.2015,1904901580,"11,753.50",British Gas Plc
Manchester City Council,Regeneration Finance,Electricity,03.12.2015,1904901597,"10,693.47",British Gas Plc
Manchester City Council,Regeneration Finance,Electricity,03.12.2015,1904901598,"5,411.89",British Gas Plc
Manchester City Council,Regeneration Finance,Advertising,03.12.2015,5100829593,"5,280.00",Bay Media
Manchester City Council,Regeneration Finance,Electricity,03.12.2015,1904901601,"5,275.62",British Gas Plc
Manchester City Council,Regeneration Finance,Electricity,03.12.2015,1904901582,"3,967.39",British Gas Plc
Manchester City Council,Regeneration Finance,Electricity,03.12.2015,1904901594,"3,243.26",British Gas Plc
Manchester City Council,Regeneration Finance,Electricity,03.12.2015,1904901581,"3,101.50",British Gas Plc
Manchester City Council,Regeneration Finance,Electricity,03.12.2015,1904901607,"3,073.62",British Gas Plc
Manchester City Council,Regeneration Finance,Electricity,03.12.2015,1904901606,"2,261.53",British Gas Plc
Manchester City Council,Regeneration Finance,Electricity,03.12.2015,1904901590,"1,875.38",British Gas Plc
Manchester City Council,Regeneration Finance,Electricity,03.12.2015,1904901583,"1,557.12",British Gas Plc
Manchester City Council,Regeneration Finance,Electricity,03.12.2015,1904901595,"1,340.38",British Gas Plc
Manchester City Council,Regeneration Finance,Electricity,03.12.2015,1904901596,"1,219.40",British Gas Plc
Manchester City Council,Regeneration Finance,Electricity,03.12.2015,1904901599,"1,015.75",British Gas Plc
Manchester City Council,Regeneration Finance,Expenditure re Internal Trading Ordered Externally,03.12.2015,5100829698,850.00,Riba Enterprises Ltd
Manchester City Council,Manchester Leisure,Special Event,07.12.2015,5100830020,"105,408.16",MK Illuminations UK Ltd
Manchester City Council,Manchester Leisure,Special Event,07.12.2015,5100830017,"68,360.00",MK Illuminations UK Ltd
Manchester City Council,Manchester Leisure,Works and associated costs for Land and Buildings,07.12.2015,5100829384,"57,110.23",Balfour Beatty Regional
Manchester City Council,Manchester Leisure,Professional fees,07.12.2015,5100829599,"27,250.00",British Cycling Federation
Manchester City Council,Manchester Leisure,Works and associated costs for Land and Buildings,07.12.2015,5100829384,"25,763.61",Balfour Beatty Regional
Manchester City Council,Manchester Leisure,Hire of Equipment,07.12.2015,5100829786,"11,130.00",Eve Trakway
Manchester City Council,Manchester Leisure,Payments to Sub-Contractors,07.12.2015,5100829220,"10,421.00",Arboricultural Services Treework
Manchester City Council,Manchester Leisure,Professional fees,07.12.2015,5100829400,"10,000.00",City of Manchester Aquatics Swim Te
Manchester City Council,Manchester Leisure,Special Event,07.12.2015,5100829638,"8,400.00",Scaff-Hire Services Ltd
Manchester City Council,Manchester Leisure,Library Materials Acquisition,07.12.2015,1904894866,"8,097.86",Cengage Learning (EMEA) Ltd
Manchester City Council,Manchester Leisure,Internal Repairs and Maintenance for buildings,07.12.2015,5100829581,"5,795.00",Failsworth Electrical Ltd
Manchester City Council,Manchester Leisure,Payments to Sub-Contractors,07.12.2015,5100829226,"1,980.00",Arboricultural Services Treework
Manchester City Council,Manchester Leisure,Payments to Sub-Contractors,07.12.2015,5100829228,"1,940.00",Arboricultural Services Treework
Manchester City Council,Manchester Leisure,Building Materials for direct delivery,07.12.2015,5100829222,"1,900.00",Arboricultural Services Treework
Manchester City Council,Manchester Leisure,Professional fees,07.12.2015,5100829823,"1,900.00",W S Education
Manchester City Council,Manchester Leisure,Library Materials Acquisition,07.12.2015,1904894859,"1,872.00",News UK
Manchester City Council,Manchester Leisure,Building Materials for direct delivery,07.12.2015,5100829224,"1,584.00",Arboricultural Services Treework
Manchester City Council,Manchester Leisure,Building Materials for direct delivery,07.12.2015,5100829229,"1,584.00",Arboricultural Services Treework
Manchester City Council,Manchester Leisure,Building Materials for direct delivery,07.12.2015,5100829223,"1,552.00",Arboricultural Services Treework
Manchester City Council,Manchester Leisure,Payments to Sub-Contractors,07.12.2015,5100829231,"1,552.00",Arboricultural Services Treework
Manchester City Council,Manchester Leisure,Payments to Sub-Contractors,07.12.2015,5100829230,"1,188.00",Arboricultural Services Treework
Manchester City Council,Manchester Leisure,Building Materials for direct delivery,07.12.2015,5100829221,"1,000.00",Arboricultural Services Treework
Manchester City Council,Manchester Leisure,Professional fees,07.12.2015,5100829786,637.50,Eve Trakway
Manchester City Council,Libraries and Theatres,Works and associated costs for Land and Buildings,07.12.2015,5100829855,"17,839.80",Turner & Townsend Project
Manchester City Council,Libraries and Theatres,Works and associated costs for Land and Buildings,07.12.2015,5100829855,"7,427.50",Turner & Townsend Project
Manchester City Council,Libraries and Theatres,Works and associated costs for Land and Buildings,07.12.2015,5100829853,"-25,267.30",Turner & Townsend Project
Manchester City Council,Hospitality + Trading Services,Payments to Contractors,07.12.2015,5100830034,"155,068.13",NSL Ltd
Manchester City Council,Hospitality + Trading Services,Internal Repairs and Maintenance for buildings,07.12.2015,5100829886,"78,350.24",Manchester Working Ltd
Manchester City Council,Hospitality + Trading Services,Vehicle Hire Costs,07.12.2015,5100829254,"73,011.71",Winners Contract Hire Ltd
Manchester City Council,Hospitality + Trading Services,Payments to Contractors,07.12.2015,5100830036,"47,106.06",NSL Ltd
Manchester City Council,Hospitality + Trading Services,Payments to Sub-Contractors,07.12.2015,5100829205,"12,334.96",Rosgal Ltd
Manchester City Council,Hospitality + Trading Services,Preventative Maintenance Work,07.12.2015,5100830048,"10,441.17",Manchester Working Ltd
Manchester City Council,Hospitality + Trading Services,Preventative Maintenance Work,07.12.2015,5100829894,"8,607.79",Manchester Working Ltd
Manchester City Council,Hospitality + Trading Services,Payments to Contractors,07.12.2015,5100830049,"6,121.99",NSL Ltd
Manchester City Council,Hospitality + Trading Services,Building Materials for direct delivery,07.12.2015,5100829651,"2,336.00",Asd Metal Services
Manchester City Council,Hospitality + Trading Services,Payments to Contractors,07.12.2015,5100830040,"1,734.00",NSL Ltd
Manchester City Council,Hospitality + Trading Services,Catering Provisions,07.12.2015,1904902612,"1,679.95",Brake Bros Foodservice Ltd
Manchester City Council,Hospitality + Trading Services,Payments to Sub-Contractors,07.12.2015,5100829605,"1,350.00",Northern Marking Limited
Manchester City Council,Hospitality + Trading Services,Payments to Sub-Contractors,07.12.2015,5100829606,"1,350.00",Northern Marking Limited
Manchester City Council,Hospitality + Trading Services,Payments to Sub-Contractors,07.12.2015,5100829601,"1,325.84",Northern Marking Limited
Manchester City Council,Hospitality + Trading Services,Catering Provisions,07.12.2015,1904902141,"1,260.08",Brake Bros Foodservice Ltd
Manchester City Council,Hospitality + Trading Services,Catering Provisions,07.12.2015,1904902061,"1,177.27",Brake Bros Foodservice Ltd
Manchester City Council,Hospitality + Trading Services,Catering Provisions,07.12.2015,1904902588,"1,034.39",Brake Bros Foodservice Ltd
Manchester City Council,Hospitality + Trading Services,Equipment,07.12.2015,5100829209,908.82,W.V.Howe Ltd
Manchester City Council,Hospitality + Trading Services,Catering Provisions,07.12.2015,1904902611,841.70,Pasta King (Uk) Ltd
Manchester City Council,Hospitality + Trading Services,Catering Provisions,07.12.2015,1904902087,819.77,Brake Bros Foodservice Ltd
Manchester City Council,Hospitality + Trading Services,Purchase of stores for re-distribution,07.12.2015,5100829537,729.00,P.F. Cusack (Tools Supplies) Ltd
Manchester City Council,Hospitality + Trading Services,Equipment,07.12.2015,5100829208,727.28,W.V.Howe Ltd
Manchester City Council,Hospitality + Trading Services,Catering Provisions,07.12.2015,1904902143,704.70,Brake Bros Foodservice Ltd
Manchester City Council,Hospitality + Trading Services,Catering Provisions,07.12.2015,1904902580,691.79,Brake Bros Foodservice Ltd
Manchester City Council,Hospitality + Trading Services,Hire of Machinery,07.12.2015,5100829704,680.40,One Stop Hire Limited
Manchester City Council,Hospitality + Trading Services,Catering Provisions,07.12.2015,1904902595,637.47,Brake Bros Foodservice Ltd
Manchester City Council,Hospitality + Trading Services,Catering Provisions,07.12.2015,1904902597,633.25,Brake Bros Foodservice Ltd
Manchester City Council,Hospitality + Trading Services,Catering Provisions,07.12.2015,1904902179,583.26,Brake Bros Foodservice Ltd
Manchester City Council,Hospitality + Trading Services,Catering Provisions,07.12.2015,1904902614,577.55,Pasta King (Uk) Ltd
Manchester City Council,Hospitality + Trading Services,Catering Provisions,07.12.2015,1904902161,566.47,Chicken Joes Limited
Manchester City Council,Hospitality + Trading Services,Catering Provisions,07.12.2015,1904902177,556.48,Chicken Joes Limited
Manchester City Council,Hospitality + Trading Services,Catering Provisions,07.12.2015,1904902621,546.31,Brake Bros Foodservice Ltd
Manchester City Council,Hospitality + Trading Services,Catering Provisions,07.12.2015,1904902183,543.12,Brake Bros Foodservice Ltd
Manchester City Council,Hospitality + Trading Services,Catering Provisions,07.12.2015,1904902615,543.03,Brake Bros Foodservice Ltd
Manchester City Council,Hospitality + Trading Services,Catering Provisions,07.12.2015,1904902557,542.75,Brake Bros Foodservice Ltd
Manchester City Council,Hospitality + Trading Services,Catering Provisions,07.12.2015,1904902171,516.18,Brake Bros Foodservice Ltd
Manchester City Council,Hospitality + Trading Services,Hire of Machinery,07.12.2015,5100830035,514.35,GHL Liftrucks Ltd
Manchester City Council,Hospitality + Trading Services,Payments to Sub-Contractors,07.12.2015,5100829206,-772.50,Rosgal Ltd
Manchester City Council,Environment and Operations,Private Finance and Public Private partnership initiatives,07.12.2015,5100829598,"618,237.98",Amey Highways Lighting (Manchester)
Manchester City Council,Environment and Operations,Building Materials for direct delivery,07.12.2015,5100829964,"2,050.00",Parish of The Good Shepherd
Manchester City Council,Environment and Operations,Building Materials for direct delivery,07.12.2015,5100829465,"1,980.00",Earth Anchors Ltd
Manchester City Council,Environment and Operations,Grant Payments,07.12.2015,5100829808,"1,582.00","Groundwork Manchester, Salford"
Manchester City Council,Environment and Operations,Compensation Payments,07.12.2015,5100829971,700.00,Redacted Personal Information
Manchester City Council,Environment and Operations,Building Materials for direct delivery,07.12.2015,5100829821,660.80,Cheshire Nurseries
Manchester City Council,Environment and Operations,Hire of Equipment,07.12.2015,5100829305,520.00,City Illuminations Ltd
Manchester City Council,Adult Social Care,Payments for services,07.12.2015,5100821212,"110,983.50",Tameside Metropolitan Bouough
Manchester City Council,Adult Social Care,Transport Coach Hire,07.12.2015,5100829849,"26,360.10",Mantax Radio Taxis Ltd
Manchester City Council,Adult Social Care,Training and Development,07.12.2015,1904901856,"17,613.60",Barnardos Manchester Leaving Care S
Manchester City Council,Adult Social Care,Bed & Breakfast Acc,07.12.2015,5100829766,"14,256.37",G & A Taylor Hotels Ltd
Manchester City Council,Adult Social Care,Third party payments relating to Voluntary Organisations,07.12.2015,5100829378,"8,158.00",Greater Manchester Immigration Aid
Manchester City Council,Adult Social Care,Compensation Payments,07.12.2015,1904901864,"6,667.40",Platt Halpern
Manchester City Council,Adult Social Care,Third party payments relating to Voluntary Organisations,07.12.2015,5100829484,"6,666.00",Man. Citizens Advice Bureaux
Manchester City Council,Adult Social Care,Training and Development,07.12.2015,1904891088,"6,563.40",Barnardos Manchester Leaving Care S
Manchester City Council,Adult Social Care,Bed & Breakfast Acc,07.12.2015,5100829776,"5,735.00",346 Ltd t/a Lansdowne Hotel
Manchester City Council,Adult Social Care,Payments for services,07.12.2015,5100829363,"5,508.83",The Work Company
Manchester City Council,Adult Social Care,Agency staff provision,07.12.2015,5100829262,"5,010.56",P S Recruitment Specialists Ltd
Manchester City Council,Adult Social Care,Rents,07.12.2015,5100829588,"4,725.00",Northern Way Properties Limited
Manchester City Council,Adult Social Care,Agency staff provision,07.12.2015,5100829262,"4,447.00",P S Recruitment Specialists Ltd
Manchester City Council,Adult Social Care,Professional fees,07.12.2015,5100829966,"3,850.00",Caritas Recruitment
Manchester City Council,Adult Social Care,Grant and subscriptions awarded,07.12.2015,5100829239,"3,706.00",Hamara Health Living Centre
Manchester City Council,Adult Social Care,Fixtures and Fitting,07.12.2015,1904891088,"3,695.89",Barnardos Manchester Leaving Care S
Manchester City Council,Adult Social Care,Equipment,07.12.2015,5100829343,"3,285.00",Newlyn Healthcare Limited
Manchester City Council,Adult Social Care,Fixtures and Fitting,07.12.2015,1904901856,"3,230.00",Barnardos Manchester Leaving Care S
Manchester City Council,Adult Social Care,Professional fees,07.12.2015,5100829969,"2,807.07",Caritas Recruitment
Manchester City Council,Adult Social Care,Payments for services,07.12.2015,5100829777,"2,640.00",Oasis Recovery Communities Ltd
Manchester City Council,Adult Social Care,Third party payments relating to Voluntary Organisations,07.12.2015,1904901857,"2,499.50",Redacted Personal Information
Manchester City Council,Adult Social Care,Third party payments relating to Voluntary Organisations,07.12.2015,5100829692,"2,395.00",Wai Yin Society
Manchester City Council,Adult Social Care,PNOR-Other Amenities,07.12.2015,1904901856,"1,939.80",Barnardos Manchester Leaving Care S
Manchester City Council,Adult Social Care,Equipment,07.12.2015,5100829585,"1,877.00",NRS Healthcare
Manchester City Council,Adult Social Care,Third party payments relating to Voluntary Organisations,07.12.2015,5100829560,"1,872.00",Stockport Psychology Services
Manchester City Council,Adult Social Care,Professional fees,07.12.2015,5100829967,"1,750.00",Caritas Recruitment
Manchester City Council,Adult Social Care,Training and Development,07.12.2015,1904891089,"1,638.20",Barnardos Manchester Leaving Care S
Manchester City Council,Adult Social Care,Professional fees,07.12.2015,1904900958,"1,630.35",Hencewell
Manchester City Council,Adult Social Care,Equipment,07.12.2015,5100829890,"1,428.70",Aidapt Bathrooms Ltd
Manchester City Council,Adult Social Care,Childrens Allowances,07.12.2015,1904901856,"1,389.60",Barnardos Manchester Leaving Care S
Manchester City Council,Adult Social Care,Agency staff provision,07.12.2015,5100829262,"1,381.27",P S Recruitment Specialists Ltd
Manchester City Council,Adult Social Care,Equipment,07.12.2015,5100829629,"1,287.00",Bentley Fielden Ltd
Manchester City Council,Adult Social Care,I T Provision,07.12.2015,5100830006,"1,280.00",Berrick Computing Limited
Manchester City Council,Adult Social Care,PNOR-Other Amenities,07.12.2015,1904891088,"1,241.15",Barnardos Manchester Leaving Care S
Manchester City Council,Adult Social Care,Payments for services,07.12.2015,5100829972,"1,144.83",The Together Trust
Manchester City Council,Adult Social Care,Fixtures and Fitting,07.12.2015,1904891089,"1,085.50",Barnardos Manchester Leaving Care S
Manchester City Council,Adult Social Care,Third party payments relating to Voluntary Organisations,07.12.2015,5100829700,"1,062.08",MCCR
Manchester City Council,Adult Social Care,Third party payments relating to Voluntary Organisations,07.12.2015,5100829697,947.00,MCCR
Manchester City Council,Adult Social Care,Legal Fees,07.12.2015,1904902015,930.00,Redacted Personal Information
Manchester City Council,Adult Social Care,Equipment,07.12.2015,5100829584,849.50,Aidapt Bathrooms Ltd
Manchester City Council,Adult Social Care,PNOR-Other Amenities,07.12.2015,1904891089,696.39,Barnardos Manchester Leaving Care S
Manchester City Council,Adult Social Care,Childrens Allowances,07.12.2015,1904891088,694.80,Barnardos Manchester Leaving Care S
Manchester City Council,Adult Social Care,Agency staff provision,07.12.2015,5100829262,689.05,P S Recruitment Specialists Ltd
Manchester City Council,Adult Social Care,Agency staff provision,07.12.2015,5100830038,673.44,Proactive Personnel Ltd
Manchester City Council,Adult Social Care,Equipment,07.12.2015,5100829630,669.95,Aidapt Bathrooms Ltd
Manchester City Council,Adult Social Care,Agency staff provision,07.12.2015,5100829262,668.39,P S Recruitment Specialists Ltd
Manchester City Council,Adult Social Care,Agency staff provision,07.12.2015,5100829262,657.09,P S Recruitment Specialists Ltd
Manchester City Council,Adult Social Care,Training and Development,07.12.2015,5100829768,652.50,Edexcel
Manchester City Council,Adult Social Care,Agency staff provision,07.12.2015,5100830031,611.40,HR GO Recruitment Healthcare
Manchester City Council,Adult Social Care,Training and Development,07.12.2015,5100829241,575.00,Trinity College London
Manchester City Council,Adult Social Care,Payments for services,07.12.2015,5100829621,560.00,Stockport NHS Foundation Trust
Manchester City Council,Adult Social Care,Agency staff provision,07.12.2015,5100830010,554.40,HR GO Recruitment Healthcare
Manchester City Council,Adult Social Care,Agency staff provision,07.12.2015,5100830031,554.40,HR GO Recruitment Healthcare
Manchester City Council,Adult Social Care,Agency staff provision,07.12.2015,5100830010,554.40,HR GO Recruitment Healthcare
Manchester City Council,Adult Social Care,Agency staff provision,07.12.2015,5100830014,554.40,HR GO Recruitment Healthcare
Manchester City Council,Adult Social Care,Agency staff provision,07.12.2015,5100830010,533.70,HR GO Recruitment Healthcare
Manchester City Council,Adult Social Care,Agency staff provision,07.12.2015,5100830031,512.33,HR GO Recruitment Healthcare
Manchester City Council,Adult Social Care,Agency staff provision,07.12.2015,5100830014,511.64,HR GO Recruitment Healthcare
Manchester City Council,Adult Social Care,Compensation Payments,07.12.2015,1904883838,500.00,Wake Smith Solicitors
Manchester City Council,Adult Social Care,External repairs and maintenance for buildings,07.12.2015,5100829828,-585.51,Manchester Working Ltd
Manchester City Council,Adult Social Care,External repairs and maintenance for buildings,07.12.2015,5100829827,"-5,551.32",Manchester Working Ltd
Manchester City Council,Childrens Services,Building Works,07.12.2015,5100829327,"105,828.87",United Learning Trust
Manchester City Council,Childrens Services,Building Works,07.12.2015,5100829564,"11,257.55",United Learning Trust
Manchester City Council,Corporate Services,Transport Taxis,07.12.2015,1904903833,"11,124.58",Mantax Radio Taxis Ltd
Manchester City Council,Corporate Services,Transport and Driver Hire,07.12.2015,5100829782,"2,855.00",Williams & Hill Forwarding Ltd
Manchester City Council,Corporate Services,Transport and Driver Hire,07.12.2015,5100829778,920.00,Williams & Hill Forwarding Ltd
Manchester City Council,Corporate Services,Travel Season TLS,07.12.2015,5100829546,550.00,Stagecoach Manchester
Manchester City Council,Corporate Services,Travel Season TLS,07.12.2015,5100829546,550.00,Stagecoach Manchester
Manchester City Council,Corporate Services,Travel Season TLS,07.12.2015,5100829546,550.00,Stagecoach Manchester
Manchester City Council,Corporate Services,Travel Season TLS,07.12.2015,5100829546,550.00,Stagecoach Manchester
Manchester City Council,Corporate Services,Travel Season TLS,07.12.2015,5100829546,550.00,Stagecoach Manchester
Manchester City Council,Corporate Services,Travel Season TLS,07.12.2015,5100829546,550.00,Stagecoach Manchester
Manchester City Council,Corporate Services,Travel Season TLS,07.12.2015,5100829546,550.00,Stagecoach Manchester
Manchester City Council,Corporate Services,Travel Season TLS,07.12.2015,5100829546,550.00,Stagecoach Manchester
Manchester City Council,Housing General Fund,Council Dwelling Adaptations,07.12.2015,5100829650,"59,029.06",Morrison Facilities Services Ltd
Manchester City Council,Housing General Fund,Council Dwelling Adaptations,07.12.2015,5100829383,"58,196.25",Solarking Commercial
Manchester City Council,Housing General Fund,Council Dwelling Adaptations,07.12.2015,5100829642,"33,591.68",Solarking Commercial
Manchester City Council,Housing General Fund,Surplus property Acquisitions,07.12.2015,1904903837,"10,467.93",CHUNG AND CO
Manchester City Council,Housing General Fund,Surplus property Acquisitions,07.12.2015,1904901850,"4,000.00",Redacted Personal Information
Manchester City Council,Housing General Fund,Council Dwelling Adaptations,07.12.2015,5100829364,"2,357.39",Solarking Commercial
Manchester City Council,Housing Revenue Account,Council Dwelling Adaptations,07.12.2015,5100830022,"2,245.00",Hoist & Shower Chair Company
Manchester City Council,Housing Revenue Account,Supporting People Payments,07.12.2015,5100829787,"1,538.46",Northwards Housing Limited
Manchester City Council,Housing Revenue Account,Council Dwelling Adaptations,07.12.2015,5100830029,745.00,Hoist & Shower Chair Company
Manchester City Council,Chief Executives,Vehicle Plant Furniture and Equipment,07.12.2015,5100829331,"8,500.00",Esteem
Manchester City Council,Chief Executives,Professional fees,07.12.2015,5100829830,"3,325.00",Redacted Personal Information
Manchester City Council,Chief Executives,Agency staff provision,07.12.2015,5100830042,"3,029.40",Hudson Global Resources Ltd
Manchester City Council,Chief Executives,Agency staff provision,07.12.2015,5100829218,"2,535.60",The FRCE Recruitment Group
Manchester City Council,Chief Executives,Agency staff provision,07.12.2015,5100829214,"2,300.00",Triad Resourcing
Manchester City Council,Chief Executives,Agency staff provision,07.12.2015,5100829214,"2,035.00",Triad Resourcing
Manchester City Council,Chief Executives,Payments to Sub-Contractors,07.12.2015,1904900430,"1,860.00",Ahmedia Ltd
Manchester City Council,Chief Executives,Agency staff provision,07.12.2015,5100829207,"1,823.55",Deekay Technical Recruitment Ltd
Manchester City Council,Chief Executives,Agency staff provision,07.12.2015,5100829214,"1,725.00",Triad Resourcing
Manchester City Council,Chief Executives,Professional fees,07.12.2015,1904902019,"1,525.00",Redacted Personal Information
Manchester City Council,Chief Executives,Printing,07.12.2015,5100829747,"1,430.00",Browns Digital Ltd
Manchester City Council,Chief Executives,Agency staff provision,07.12.2015,5100829207,"1,035.00",Deekay Technical Recruitment Ltd
Manchester City Council,Chief Executives,Agency staff provision,07.12.2015,5100830038,916.30,Proactive Personnel Ltd
Manchester City Council,Chief Executives,Printing,07.12.2015,5100829741,829.20,Astra Signs
Manchester City Council,Chief Executives,Professional fees,07.12.2015,1904902021,775.00,Redacted Personal Information
Manchester City Council,Chief Executives,Agency staff provision,07.12.2015,5100829214,752.29,Triad Resourcing
Manchester City Council,Chief Executives,Printing,07.12.2015,5100829611,650.00,Browns CTP Ltd
Manchester City Council,Chief Executives,Printing,07.12.2015,5100829737,590.00,Astra Signs
Manchester City Council,Chief Executives,Printing,07.12.2015,5100829238,535.00,Chapel Press Ltd
Manchester City Council,Regeneration Finance,Professional fees,07.12.2015,5100829794,"69,064.89",AECOM Limited
Manchester City Council,Regeneration Finance,Professional fees,07.12.2015,5100829247,"8,569.29",Turner & Townsend Cost
Manchester City Council,Regeneration Finance,Professional fees,07.12.2015,5100829251,"5,163.75",Turner & Townsend Cost
Manchester City Council,Regeneration Finance,Professional fees,07.12.2015,5100829596,"2,175.00",Cheshire East Borough Council
Manchester City Council,Regeneration Finance,Agency staff provision,07.12.2015,5100829207,"1,150.00",Deekay Technical Recruitment Ltd
Manchester City Council,Regeneration Finance,Telecoms Equip,07.12.2015,5100829395,916.00,EE / Orange
Manchester City Council,Regeneration Finance,External repairs and maintenance for buildings,07.12.2015,5100829623,500.00,Stephen Broadbent Artworks Ltd
Manchester City Council,GMIST (Greater Mcr Integrated),Agency staff provision,07.12.2015,5100830050,"3,771.71",Salford City Council
Manchester City Council,GMIST (Greater Mcr Integrated),Hire of Premises,07.12.2015,5100829959,"1,116.00",Manchester Central
Manchester City Council,Manchester Leisure,Payments for services,08.12.2015,5100830304,"25,600.00",Love Withington Baths
Manchester City Council,Manchester Leisure,Cash Collection,08.12.2015,5100822315,"9,675.00",Manchester Metropolitan University
Manchester City Council,Manchester Leisure,Agency staff provision,08.12.2015,5100830080,"5,610.00",Sporting Equals
Manchester City Council,Manchester Leisure,Professional fees,08.12.2015,5100830300,"2,631.38",Sutton PR Ltd
Manchester City Council,Manchester Leisure,Agency staff provision,08.12.2015,5100830055,"1,628.20",Resolve Personnel Ltd
Manchester City Council,Manchester Leisure,Security,08.12.2015,5100830123,"1,265.00",Event Security Services Ltd
Manchester City Council,Manchester Leisure,Subsistence and Conference Expenses,08.12.2015,5100830504,556.00,Cresta World Travel t/a Uniglobe
Manchester City Council,Manchester Leisure,Agency staff provision,08.12.2015,5100830055,532.14,Resolve Personnel Ltd
Manchester City Council,Hospitality + Trading Services,Hire of Machinery,08.12.2015,5100830337,"5,016.35",F.R.Sharrock Ltd
Manchester City Council,Hospitality + Trading Services,Vehicle Repairs,08.12.2015,5100829874,"3,162.37",Manchester Van Hire Ltd
Manchester City Council,Hospitality + Trading Services,Hire of Machinery,08.12.2015,5100830119,"1,038.50",R & M Developments Ltd
Manchester City Council,Hospitality + Trading Services,Catering Provisions,08.12.2015,1904904074,939.71,Brake Bros Foodservice Ltd
Manchester City Council,Hospitality + Trading Services,Catering Provisions,08.12.2015,1904904083,703.59,Brake Bros Foodservice Ltd
Manchester City Council,Hospitality + Trading Services,Catering Provisions,08.12.2015,1904904016,560.37,Brake Bros Foodservice Ltd
Manchester City Council,Hospitality + Trading Services,Agency staff provision,08.12.2015,5100830055,553.15,Resolve Personnel Ltd
Manchester City Council,Environment and Operations,External repairs and maintenance for buildings,08.12.2015,5100791321,"2,676.00",County Scientific Services
Manchester City Council,Environment and Operations,Catering,08.12.2015,5100830058,"1,709.00",Manchester Central
Manchester City Council,Environment and Operations,Building Materials for direct delivery,08.12.2015,5100829970,950.00,Parish of The Good Shepherd
Manchester City Council,Environment and Operations,External repairs and maintenance for buildings,08.12.2015,5100830122,722.00,County Scientific Services
Manchester City Council,Adult Social Care,Third party payments relating to Voluntary Organisations,08.12.2015,5100830326,"106,468.50",Barnardo's North West
Manchester City Council,Adult Social Care,Rents,08.12.2015,5100830092,"45,295.41",B & A Properties
Manchester City Council,Adult Social Care,Third party payments relating to Voluntary Organisations,08.12.2015,5100830085,"25,000.00",Moss Side Millennium Powerhouse Ltd
Manchester City Council,Adult Social Care,Extra Care Sheltd HP,08.12.2015,5100830271,"19,423.92",Homecare Support
Manchester City Council,Adult Social Care,Rents,08.12.2015,5100830260,"18,665.64",Mosscare Housing Ltd
Manchester City Council,Adult Social Care,Agency staff provision,08.12.2015,5100830083,"9,000.00",Gatenby Sanderson
Manchester City Council,Adult Social Care,Storage Costs,08.12.2015,5100830124,"8,600.00",Imagestor
Manchester City Council,Adult Social Care,Agency staff provision,08.12.2015,5100830082,"7,106.00",Gatenby Sanderson
Manchester City Council,Adult Social Care,Transport Coach Hire,08.12.2015,5100830411,"5,991.75",Cresta Car Hire
Manchester City Council,Adult Social Care,Electricity,08.12.2015,5100830198,"5,340.11",The Manchester College
Manchester City Council,Adult Social Care,Supporting People Payments,08.12.2015,5100829815,"3,684.74",Northwards Housing Limited
Manchester City Council,Adult Social Care,Transport Coach Hire,08.12.2015,5100830324,"3,600.00",G.M Travel
Manchester City Council,Adult Social Care,Rents,08.12.2015,5100829887,"3,000.00",Manchester Deaf Centre Ltd
Manchester City Council,Adult Social Care,Rents,08.12.2015,5100829888,"3,000.00",Manchester Deaf Centre Ltd
Manchester City Council,Adult Social Care,Rents,08.12.2015,5100829891,"3,000.00",Manchester Deaf Centre Ltd
Manchester City Council,Adult Social Care,Supporting People Payments,08.12.2015,5100829815,"2,849.24",Northwards Housing Limited
Manchester City Council,Adult Social Care,Supporting People Payments,08.12.2015,5100829815,"2,487.33",Northwards Housing Limited
Manchester City Council,Adult Social Care,Supporting People Payments,08.12.2015,5100829815,"2,442.21",Northwards Housing Limited
Manchester City Council,Adult Social Care,Transport Coach Hire,08.12.2015,5100829956,"2,340.00",Redacted Personal Information
Manchester City Council,Adult Social Care,Supporting People Payments,08.12.2015,5100829815,"1,670.98",Northwards Housing Limited
Manchester City Council,Adult Social Care,Agency staff provision,08.12.2015,5100830089,"1,407.36",Routes Healthcare (North) Ltd
Manchester City Council,Adult Social Care,Landline Telephone,08.12.2015,5100829884,950.00,T.I.S. Limited
Manchester City Council,Adult Social Care,Supporting People Payments,08.12.2015,5100829859,851.13,The Edward Mayes Trust
Manchester City Council,Adult Social Care,Water - Unmetered,08.12.2015,5100830198,814.32,The Manchester College
Manchester City Council,Adult Social Care,Agency staff provision,08.12.2015,5100830051,759.50,Reed Employment Plc
Manchester City Council,Adult Social Care,Professional fees,08.12.2015,5100830084,700.00,Action First iPeople Ltd
Manchester City Council,Adult Social Care,Professional fees,08.12.2015,5100830086,700.00,Action First iPeople Ltd
Manchester City Council,Adult Social Care,Rents,08.12.2015,5100830261,695.68,Mosscare Housing Ltd
Manchester City Council,Adult Social Care,Supporting People Payments,08.12.2015,5100829815,642.67,Northwards Housing Limited
Manchester City Council,Adult Social Care,Agency staff provision,08.12.2015,5100830051,579.25,Reed Employment Plc
Manchester City Council,Adult Social Care,Subsistence and Conference Expenses,08.12.2015,5100830074,548.00,Manchester Central
Manchester City Council,Adult Social Care,Rents,08.12.2015,5100830273,"-3,000.00",Manchester Deaf Centre Ltd
Manchester City Council,Adult Social Care,Rents,08.12.2015,5100830275,"-3,000.00",Manchester Deaf Centre Ltd
Manchester City Council,Adult Social Care,Rents,08.12.2015,5100830278,"-3,000.00",Manchester Deaf Centre Ltd
Manchester City Council,Adult Social Care,Transport Coach Hire,08.12.2015,5100830409,"-5,991.75",Cresta Car Hire
Manchester City Council,Corporate Services,Travel Season TLS,08.12.2015,5100830306,"1,045.00",Transport for Greater Manchester
Manchester City Council,Corporate Services,Travel Season TLS,08.12.2015,5100830328,"1,045.00",Transport for Greater Manchester
Manchester City Council,Corporate Services,I T Provision,08.12.2015,5100830107,"1,009.71",Capita Business Services Ltd
Manchester City Council,Corporate Services,Travel Season TLS,08.12.2015,5100830328,646.00,Transport for Greater Manchester
Manchester City Council,Corporate Services,Travel Season TLS,08.12.2015,5100830305,522.00,Transport for Greater Manchester
Manchester City Council,Housing Revenue Account,Council Dwelling Adaptations,08.12.2015,5100830093,"83,660.44",Manchester Working Ltd
Manchester City Council,Housing Revenue Account,General Office expenses,08.12.2015,5100830028,543.08,PSC Systems
Manchester City Council,Chief Executives,Funeral and coroner related services,08.12.2015,5100830176,"8,626.00",University Hospital of South Mcr
Manchester City Council,Chief Executives,Examination Fees,08.12.2015,5100830175,"5,600.00",University Hospital of South Mcr
Manchester City Council,Chief Executives,Examination Fees,08.12.2015,5100830194,"4,560.00",ROAR Forensics Ltd
Manchester City Council,Chief Executives,Examination Fees,08.12.2015,5100830193,"4,155.00",ROAR Forensics Ltd
Manchester City Council,Chief Executives,Works and associated costs for Land and Buildings,08.12.2015,5100830318,"3,772.00",The East Manchester Academy
Manchester City Council,Chief Executives,Agency staff provision,08.12.2015,5100830057,"3,029.40",Hudson Global Resources Ltd
Manchester City Council,Chief Executives,I T Provision,08.12.2015,5100830196,"2,850.00",Advanced Legal Solutions Ltd
Manchester City Council,Chief Executives,Infrastructure Fees,08.12.2015,5100830051,"2,772.05",Reed Employment Plc
Manchester City Council,Chief Executives,Infrastructure Fees,08.12.2015,5100830051,"2,647.05",Reed Employment Plc
Manchester City Council,Chief Executives,Funeral and coroner related services,08.12.2015,5100830290,"2,466.00",The Pennine Acute Hospital Nhs Trus
Manchester City Council,Chief Executives,Funeral and coroner related services,08.12.2015,5100830291,"2,466.00",The Pennine Acute Hospital Nhs Trus
Manchester City Council,Chief Executives,Agency staff provision,08.12.2015,5100830051,"2,352.90",Reed Employment Plc
Manchester City Council,Chief Executives,Funeral and coroner related services,08.12.2015,5100830180,"2,352.50",Redacted Personal Information
Manchester City Council,Chief Executives,Catering,08.12.2015,5100830153,"1,579.80",Manchester Central
Manchester City Council,Chief Executives,Agency staff provision,08.12.2015,5100830055,"1,578.74",Resolve Personnel Ltd
Manchester City Council,Chief Executives,Catering,08.12.2015,5100830154,"1,136.50",Manchester Central
Manchester City Council,Chief Executives,Funeral and coroner related services,08.12.2015,5100830173,"1,107.60",Redacted Personal Information
Manchester City Council,Chief Executives,Examination Fees,08.12.2015,5100830195,"1,080.00",ROAR Forensics Ltd
Manchester City Council,Chief Executives,Examination Fees,08.12.2015,5100830173,774.00,Redacted Personal Information
Manchester City Council,Chief Executives,Catering,08.12.2015,5100830152,759.30,Manchester Central
Manchester City Council,Chief Executives,Catering,08.12.2015,5100830181,717.12,Manchester Central
Manchester City Council,Chief Executives,Funeral and coroner related services,08.12.2015,5100830293,684.00,Johnston Brothers Funeral Service
Manchester City Council,Chief Executives,Funeral and coroner related services,08.12.2015,5100830186,677.60,Redacted Personal Information
Manchester City Council,Chief Executives,Funeral and coroner related services,08.12.2015,5100830182,677.60,Redacted Personal Information
Manchester City Council,Chief Executives,Building Works,08.12.2015,5100830317,600.00,Connell Sixth Form College
Manchester City Council,Regeneration Finance,Furniture,08.12.2015,5100830027,"17,925.45",Egan Reid Stationery Co Ltd
Manchester City Council,Regeneration Finance,Internal Repairs and Maintenance for buildings,08.12.2015,5100829892,"7,500.00",Manchester Working Ltd
Manchester City Council,Regeneration Finance,Internal Repairs and Maintenance for buildings,08.12.2015,5100829883,"2,763.46",Manchester Working Ltd
Manchester City Council,Regeneration Finance,Furniture,08.12.2015,5100830026,"2,710.00",Egan Reid Stationery Co Ltd
Manchester City Council,Regeneration Finance,Catering,08.12.2015,5100830179,654.95,Manchester Central
Manchester City Council,Regeneration Finance,Catering,08.12.2015,5100830125,526.20,Manchester Central
Manchester City Council,Manchester Leisure,Payments for services,09.12.2015,5100830592,"17,800.00",Big Up Productions Ltd t/a Nuff
Manchester City Council,Manchester Leisure,Professional fees,09.12.2015,5100830460,"5,000.00",Transform Lives company Ltd
Manchester City Council,Manchester Leisure,Rents,09.12.2015,5100830610,675.00,Jain Samaj (Manchester)
Manchester City Council,Hospitality + Trading Services,Compensation Payments,09.12.2015,1904903838,"5,500.00",JOSEPH FRASIER SOLICITORS LLP
Manchester City Council,Hospitality + Trading Services,Payments to Sub-Contractors,09.12.2015,5100829329,"3,520.00",Traffic Direct Ltd
Manchester City Council,Hospitality + Trading Services,Payments to Sub-Contractors,09.12.2015,5100829592,"2,870.00",Northern Marking Limited
Manchester City Council,Hospitality + Trading Services,Agency staff provision,09.12.2015,5100830087,"1,320.00",Redacted Personal Information
Manchester City Council,Hospitality + Trading Services,Catering Provisions,09.12.2015,1904908351,"1,070.25",BRAMBLES FOODS LTD
Manchester City Council,Hospitality + Trading Services,Catering Provisions,09.12.2015,1904908362,993.14,Chicken Joes Limited
Manchester City Council,Hospitality + Trading Services,Building Materials for direct delivery,09.12.2015,5100830372,924.00,Viewprint
Manchester City Council,Hospitality + Trading Services,Compensation Payments,09.12.2015,1904894980,852.00,Trade Union Legal LLP
Manchester City Council,Hospitality + Trading Services,Catering Provisions,09.12.2015,1904908417,806.42,Brake Bros Foodservice Ltd
Manchester City Council,Hospitality + Trading Services,Hire of Premises,09.12.2015,5100830475,791.67,The Monastery Manchester Ltd
Manchester City Council,Hospitality + Trading Services,Catering Provisions,09.12.2015,1904908292,552.77,Brake Bros Foodservice Ltd
Manchester City Council,Hospitality + Trading Services,Catering Provisions,09.12.2015,1904908363,548.21,Brake Bros Foodservice Ltd
Manchester City Council,Hospitality + Trading Services,Catering Provisions,09.12.2015,1904908385,525.13,Brake Bros Foodservice Ltd
Manchester City Council,Hospitality + Trading Services,Payments to Sub-Contractors,09.12.2015,5100830607,"-3,520.00",Traffic Direct Ltd
Manchester City Council,Environment and Operations,Training and Development,09.12.2015,5100830497,"13,500.00",Mobedia Limited
Manchester City Council,Environment and Operations,Professional fees,09.12.2015,5100829904,"4,582.00",AECOM Limited
Manchester City Council,Environment and Operations,Compensation Payments,09.12.2015,1904902017,"4,100.00",Department for Works + Pensions
Manchester City Council,Environment and Operations,Contract Cleaning External,09.12.2015,5100829540,"1,754.00",Ramora Ltd
Manchester City Council,Environment and Operations,Professional fees,09.12.2015,5100829300,854.30,Transport for Greater Manchester
Manchester City Council,Environment and Operations,Testing Fees,09.12.2015,5100830405,660.00,County Scientific Services
Manchester City Council,Environment and Operations,Compensation Payments,09.12.2015,1904902013,637.00,Department For Work & Pensions
Manchester City Council,Environment and Operations,Compensation Payments,09.12.2015,1904900974,540.00,Themis Lawyers
Manchester City Council,Adult Social Care,Payments for services,09.12.2015,5100830427,"207,185.83",Future Directions CIC
Manchester City Council,Adult Social Care,Grant and subscriptions awarded,09.12.2015,5100830568,"68,318.30",Riverside ECHG
Manchester City Council,Adult Social Care,Third party payments relating to Voluntary Organisations,09.12.2015,5100830513,"37,971.25",Gaddum Centre
Manchester City Council,Adult Social Care,Grant and subscriptions awarded,09.12.2015,5100830563,"37,500.00",Riverside ECHG
Manchester City Council,Adult Social Care,Grant and subscriptions awarded,09.12.2015,5100830571,"34,781.50",Riverside ECHG
Manchester City Council,Adult Social Care,Rents,09.12.2015,5100830441,"32,813.71",Accommodation Links Ltd
Manchester City Council,Adult Social Care,Rents,09.12.2015,5100830554,"32,592.22",Mears Limited
Manchester City Council,Adult Social Care,Payments for services,09.12.2015,5100830385,"26,665.43",Care Concepts Ltd
Manchester City Council,Adult Social Care,Supporting People Payments,09.12.2015,5100830365,"19,091.41",Riverside ECHG
Manchester City Council,Adult Social Care,Third party payments relating to Voluntary Organisations,09.12.2015,5100830425,"17,071.00",Breakthrough Uk Ltd
Manchester City Council,Adult Social Care,Payments for services,09.12.2015,5100830426,"16,973.00",Future Directions CIC
Manchester City Council,Adult Social Care,Intermediate Care,09.12.2015,5100830354,"14,132.00",University Hospital of South Mcr
Manchester City Council,Adult Social Care,Supporting People Payments,09.12.2015,5100830365,"12,585.85",Riverside ECHG
Manchester City Council,Adult Social Care,Supporting People Payments,09.12.2015,5100830365,"12,500.00",Riverside ECHG
Manchester City Council,Adult Social Care,Third party payments relating to Voluntary Organisations,09.12.2015,5100830359,"8,410.50",People First Housing Association
Manchester City Council,Adult Social Care,Payments for services,09.12.2015,5100830428,"7,971.00",Future Directions CIC
Manchester City Council,Adult Social Care,Bed & Breakfast Acc,09.12.2015,5100829597,"6,025.00",346 Ltd t/a Lansdowne Hotel
Manchester City Council,Adult Social Care,Supporting People Payments,09.12.2015,5100830365,"5,833.33",Riverside ECHG
Manchester City Council,Adult Social Care,Supporting People Payments,09.12.2015,5100830365,"5,521.14",Riverside ECHG
Manchester City Council,Adult Social Care,Third party payments relating to Voluntary Organisations,09.12.2015,5100830424,"5,312.50",Pure Innovations Ltd
Manchester City Council,Adult Social Care,Grant and subscriptions awarded,09.12.2015,5100830568,"5,000.20",Riverside ECHG
Manchester City Council,Adult Social Care,Professional fees,09.12.2015,5100830469,"4,580.00",Liquid Personnel Ltd
Manchester City Council,Adult Social Care,Payments for services,09.12.2015,5100830335,"2,625.28",Progress Care & Education Ltd
Manchester City Council,Adult Social Care,Agency staff provision,09.12.2015,5100830601,"2,556.60",Eden Brown Synergy
Manchester City Council,Adult Social Care,Transport Coach Hire,09.12.2015,5100829773,"2,420.00",Colin Rea Transport
Manchester City Council,Adult Social Care,Third party payments relating to Voluntary Organisations,09.12.2015,5100830370,"2,416.66",Barnardo's North West
Manchester City Council,Adult Social Care,Transport Coach Hire,09.12.2015,5100830368,"2,360.00",Taxi Team Limited
Manchester City Council,Adult Social Care,Third party payments relating to Voluntary Organisations,09.12.2015,5100830332,"2,186.00",Neesa Well Women Drop-In Project
Manchester City Council,Adult Social Care,Transport Coach Hire,09.12.2015,5100830088,"2,016.00",Mike Davies Transport
Manchester City Council,Adult Social Care,Professional fees,09.12.2015,5100830546,"2,000.00",Rochdale MBC
Manchester City Council,Adult Social Care,Agency staff provision,09.12.2015,5100830603,"1,692.95",Eden Brown Synergy
Manchester City Council,Adult Social Care,Grant and subscriptions awarded,09.12.2015,1904904091,"1,500.00",Association of Independent
Manchester City Council,Adult Social Care,Payments for services,09.12.2015,5100830344,"1,422.00",Safe Partnership Ltd
Manchester City Council,Adult Social Care,Agency staff provision,09.12.2015,5100830599,"1,183.55",Eden Brown Synergy
Manchester City Council,Adult Social Care,Agency staff provision,09.12.2015,5100830600,"1,175.02",Eden Brown Synergy
Manchester City Council,Adult Social Care,Professional fees,09.12.2015,5100830355,950.00,Creative Support Ltd
Manchester City Council,Adult Social Care,Supporting People Payments,09.12.2015,5100830362,942.74,Riverside ECHG
Manchester City Council,Adult Social Care,Supporting People Payments,09.12.2015,5100830362,912.43,Riverside ECHG
Manchester City Council,Adult Social Care,Supporting People Payments,09.12.2015,5100830432,881.79,Arawak Walton Housing Association
Manchester City Council,Adult Social Care,Agency staff provision,09.12.2015,5100829708,853.65,Entrust Social Care
Manchester City Council,Adult Social Care,Agency staff provision,09.12.2015,5100830605,853.65,Eden Brown Synergy
Manchester City Council,Adult Social Care,Professional fees,09.12.2015,1904900966,850.23,Stockport Psychology Services
Manchester City Council,Adult Social Care,Supporting People Payments,09.12.2015,5100830362,790.60,Riverside ECHG
Manchester City Council,Adult Social Care,I T Provision,09.12.2015,5100830484,595.64,Loquela Ltd
Manchester City Council,Adult Social Care,Supporting People Payments,09.12.2015,5100830432,577.88,Arawak Walton Housing Association
Manchester City Council,Adult Social Care,Supporting People Payments,09.12.2015,5100830432,557.80,Arawak Walton Housing Association
Manchester City Council,Adult Social Care,Supporting People Payments,09.12.2015,5100830362,547.74,Riverside ECHG
Manchester City Council,Adult Social Care,Equipment,09.12.2015,5100830477,503.40,Drive Medical Limited
Manchester City Council,Corporate Services,Works and associated costs for Land and Buildings,09.12.2015,5100830473,"67,864.97",Laing O'Rourke Construction Ltd
Manchester City Council,Corporate Services,Works and associated costs for Land and Buildings,09.12.2015,5100830473,"16,162.68",Laing O'Rourke Construction Ltd
Manchester City Council,Corporate Services,Fees,09.12.2015,5100830463,"1,725.00",Pannone Corporate LLP
Manchester City Council,Corporate Services,Public Transport,09.12.2015,5100830331,"1,045.00",Transport for Greater Manchester
Manchester City Council,Corporate Services,Travel Season TLS,09.12.2015,5100830331,"1,045.00",Transport for Greater Manchester
Manchester City Council,Corporate Services,Professional fees,09.12.2015,5100826930,800.00,Jack Pickett Consultancy Ltd
Manchester City Council,Corporate Services,Travel Season TLS,09.12.2015,5100830331,747.00,Transport for Greater Manchester
Manchester City Council,Corporate Services,Travel Season TLS,09.12.2015,5100830423,646.00,Transport for Greater Manchester
Manchester City Council,Corporate Services,Fees,09.12.2015,5100830555,"-1,725.00",Pannone Corporate LLP
Manchester City Council,Chief Executives,Building Works,09.12.2015,5100829857,"6,860.00",Kelway Ltd
Manchester City Council,Chief Executives,Professional fees,09.12.2015,5100819470,"6,628.00",SQW
Manchester City Council,Chief Executives,Building Works,09.12.2015,5100830613,566.31,Kelway Ltd
Manchester City Council,Chief Executives,Hire of Premises,09.12.2015,5100830439,500.00,Manchester Central
Manchester City Council,Chief Executives,Building Works,09.12.2015,5100829856,"-7,149.90",Kelway Ltd
Manchester City Council,Regeneration Finance,Professional fees,09.12.2015,5100829245,"9,729.53",Turner & Townsend Cost
Manchester City Council,Regeneration Finance,Grant and subscriptions awarded,09.12.2015,5100830470,"6,900.00",Rochdale MBC
Manchester City Council,Regeneration Finance,Professional fees,09.12.2015,5100813412,"3,997.25",Turner & Townsend Cost
Manchester City Council,Regeneration Finance,Agency staff provision,09.12.2015,5100830598,"2,091.67",Eden Brown Synergy
Manchester City Council,Regeneration Finance,Grant and subscriptions awarded,09.12.2015,5100830514,"2,000.00",Wythenshawe Market Traders Committe
Manchester City Council,Regeneration Finance,Professional fees,09.12.2015,5100830402,"2,000.00",Ove Arup & Partners Ltd
Manchester City Council,Regeneration Finance,Internal Repairs and Maintenance for buildings,09.12.2015,5100830287,"1,368.78",Manchester Working Ltd
Manchester City Council,Regeneration Finance,Grant and subscriptions awarded,09.12.2015,5100830591,"1,330.00",Suffolk county council
Manchester City Council,Regeneration Finance,Agency staff provision,09.12.2015,5100830604,606.73,Eden Brown Synergy
Manchester City Council,Regeneration Finance,Professional fees,09.12.2015,5100813412,585.25,Turner & Townsend Cost
Manchester City Council,GMIST (Greater Mcr Integrated),Seconded Employees,09.12.2015,5100830371,"54,751.50",Commission for the New Economy
Manchester City Council,Manchester Leisure,Third party payments relating to Voluntary Organisations,10.12.2015,5100829513,"114,032.83",HOME
Manchester City Council,Manchester Leisure,Third party payments relating to Voluntary Organisations,10.12.2015,5100829764,"79,052.96",HOME
Manchester City Council,Manchester Leisure,Professional fees,10.12.2015,5100830422,"12,549.10",RMD Kwikform Ltd
Manchester City Council,Manchester Leisure,Vehicle Hire Costs,10.12.2015,5100830130,"4,118.00",Harrow Green
Manchester City Council,Manchester Leisure,Payments to Sub-Contractors,10.12.2015,5100830515,"3,752.50",Tim Garbutt Events Ltd
Manchester City Council,Manchester Leisure,Grounds Maintenance,10.12.2015,5100829396,"2,357.25",Iss Facility Services Limited
Manchester City Council,Manchester Leisure,Goods purchased for resale in Council outlets,10.12.2015,5100829843,"1,369.50",Cornflower Ltd
Manchester City Council,Manchester Leisure,Water - Metered,10.12.2015,1904909735,"1,328.20",United Utilities Water Plc
Manchester City Council,Manchester Leisure,Contract Cleaning External,10.12.2015,5100830333,"1,306.82",Scrutiny Cleaning Services
Manchester City Council,Manchester Leisure,Professional fees,10.12.2015,5100830445,675.00,Eastlands Trust Limited
Manchester City Council,Manchester Leisure,Refuse Collection,10.12.2015,5100830594,641.00,Dickinson Environmental
Manchester City Council,Manchester Leisure,Electricity,10.12.2015,1904909374,544.07,Scottish & Southern Energy Plc
Manchester City Council,Libraries and Theatres,Works and associated costs for Land and Buildings,10.12.2015,5100830698,"17,414.63",Manchester Working Ltd
Manchester City Council,Hospitality + Trading Services,Security,10.12.2015,5100830009,"66,816.45",Showsec International Ltd
Manchester City Council,Hospitality + Trading Services,Security,10.12.2015,5100829569,"36,143.44",Showsec International Ltd
Manchester City Council,Hospitality + Trading Services,Vehicle Fuel Costs,10.12.2015,5100829575,"15,355.71",Carlton Fuels Ltd
Manchester City Council,Hospitality + Trading Services,Vehicle Fuel Costs,10.12.2015,5100829566,"15,354.00",Carlton Fuels Ltd
Manchester City Council,Hospitality + Trading Services,Cleaning Equipment,10.12.2015,5100830315,"11,000.00",Tudor Contract Cleaners Ltd
Manchester City Council,Hospitality + Trading Services,Hire of Machinery,10.12.2015,5100830803,"7,260.00",Gibsons Garden Machinery Limited
Manchester City Council,Hospitality + Trading Services,Transport Coach Hire,10.12.2015,5100830448,"4,840.00",APTSL
Manchester City Council,Hospitality + Trading Services,Hire of Machinery,10.12.2015,5100830817,"3,964.60",Gibsons Garden Machinery Limited
Manchester City Council,Hospitality + Trading Services,Payments to Sub-Contractors,10.12.2015,5100830669,"3,520.00",Traffic Direct Ltd
Manchester City Council,Hospitality + Trading Services,Cash Collection,10.12.2015,5100830688,"3,166.85",NSL Ltd
Manchester City Council,Hospitality + Trading Services,Hire of Equipment,10.12.2015,5100830740,"2,758.00",John F Hunt Power Services
Manchester City Council,Hospitality + Trading Services,Vehicle Hire Costs,10.12.2015,5100830640,"2,750.00",Gullivers Truck Hire Ltd
Manchester City Council,Hospitality + Trading Services,Hire of Equipment,10.12.2015,5100830741,"2,634.40",John F Hunt Power Services
Manchester City Council,Hospitality + Trading Services,Hire of Equipment,10.12.2015,5100830739,"2,470.00",John F Hunt Power Services
Manchester City Council,Hospitality + Trading Services,Hire of Equipment,10.12.2015,5100830811,"2,288.50",John F Hunt Power Services
Manchester City Council,Hospitality + Trading Services,Hire of Equipment,10.12.2015,5100830742,"2,269.60",John F Hunt Power Services
Manchester City Council,Hospitality + Trading Services,Cash Collection,10.12.2015,5100830690,"2,229.17",NSL Ltd
Manchester City Council,Hospitality + Trading Services,Hire of Machinery,10.12.2015,5100830851,"2,016.42",Gibsons Garden Machinery Limited
Manchester City Council,Hospitality + Trading Services,Security,10.12.2015,5100829368,"1,914.24",Showsec International Ltd
Manchester City Council,Hospitality + Trading Services,Hire of Machinery,10.12.2015,5100830887,"1,801.22",Gibsons Garden Machinery Limited
Manchester City Council,Hospitality + Trading Services,Vehicle Hire Costs,10.12.2015,5100830384,"1,700.00",Peter Douglass Platforms
Manchester City Council,Hospitality + Trading Services,Hire of Machinery,10.12.2015,5100830814,"1,386.00",Gibsons Garden Machinery Limited
Manchester City Council,Hospitality + Trading Services,Vehicle Hire Costs,10.12.2015,5100830389,"1,260.00",Peter Douglass Platforms
Manchester City Council,Hospitality + Trading Services,Compensation Payments,10.12.2015,1904904163,"1,116.00",Joseph Frasier Solicitors LLP
Manchester City Council,Hospitality + Trading Services,Hire of Machinery,10.12.2015,5100830847,"1,113.00",Gibsons Garden Machinery Limited
Manchester City Council,Hospitality + Trading Services,Vehicle Repairs,10.12.2015,5100829519,983.77,LDS Motor Bodies Ltd
Manchester City Council,Hospitality + Trading Services,Purchase of stores for re-distribution,10.12.2015,5100829252,899.70,Encore Diamond (UK) Ltd
Manchester City Council,Hospitality + Trading Services,Hire of Machinery,10.12.2015,5100830827,894.00,Gibsons Garden Machinery Limited
Manchester City Council,Hospitality + Trading Services,Compensation Payments,10.12.2015,1904909023,720.00,Joseph Frasier Solicitors LLP
Manchester City Council,Hospitality + Trading Services,Vehicle Hire Costs,10.12.2015,5100830680,705.00,John Bradshaw Ltd
Manchester City Council,Hospitality + Trading Services,Catering Provisions,10.12.2015,1904909864,671.44,Brake Bros Foodservice Ltd
Manchester City Council,Hospitality + Trading Services,Catering Provisions,10.12.2015,1904909868,654.38,Brake Bros Foodservice Ltd
Manchester City Council,Hospitality + Trading Services,Catering Provisions,10.12.2015,1904909884,645.11,Brake Bros Foodservice Ltd
Manchester City Council,Hospitality + Trading Services,ClothsUniformLaundry,10.12.2015,1904910348,636.34,Stalbridge Linen Services Ltd
Manchester City Council,Hospitality + Trading Services,Hire of Machinery,10.12.2015,5100830718,630.00,GHL Liftrucks Ltd
Manchester City Council,Hospitality + Trading Services,I T Provision,10.12.2015,5100830674,611.27,HPI Ltd
Manchester City Council,Hospitality + Trading Services,Catering Provisions,10.12.2015,1904909899,601.94,Brake Bros Foodservice Ltd
Manchester City Council,Hospitality + Trading Services,Catering Provisions,10.12.2015,1904910313,586.58,Wilds of Oldham
Manchester City Council,Hospitality + Trading Services,Catering Provisions,10.12.2015,1904910196,550.57,Wilds of Oldham
Manchester City Council,Hospitality + Trading Services,Catering Provisions,10.12.2015,1904909858,550.42,Brake Bros Foodservice Ltd
Manchester City Council,Hospitality + Trading Services,Catering Provisions,10.12.2015,1904910192,544.98,Wilds of Oldham
Manchester City Council,Hospitality + Trading Services,Catering Provisions,10.12.2015,1904909831,534.82,Brake Bros Foodservice Ltd
Manchester City Council,Hospitality + Trading Services,Catering Provisions,10.12.2015,1904909898,516.75,Brake Bros Foodservice Ltd
Manchester City Council,Hospitality + Trading Services,Vehicle Hire Costs,10.12.2015,5100830636,"-2,750.00",Gullivers Truck Hire Ltd
Manchester City Council,Environment and Operations,Electricity,10.12.2015,1904909347,"342,372.88",British Gas Plc
Manchester City Council,Environment and Operations,Compensation Payments,10.12.2015,1904902012,"3,482.00",Peasegoods
Manchester City Council,Environment and Operations,Construction Works,10.12.2015,5100829577,"3,182.17",Electricity NW Construction & Maint
Manchester City Council,Environment and Operations,Compensation Payments,10.12.2015,1904902012,986.00,Peasegoods
Manchester City Council,Environment and Operations,Electricity,10.12.2015,1904909366,818.96,Scottish & Southern Energy Plc
Manchester City Council,Environment and Operations,Building Materials for direct delivery,10.12.2015,5100830891,695.19,Grasslands Nursery Ltd
Manchester City Council,Adult Social Care,Compensation Payments,10.12.2015,1904902010,"16,500.00",Abney Garsden Mcdonald
Manchester City Council,Adult Social Care,Compensation Payments,10.12.2015,1904902018,"14,500.00",WBW Solicitors
Manchester City Council,Adult Social Care,Payments for services,10.12.2015,5100830456,"9,333.33",Remedi
Manchester City Council,Adult Social Care,Third party payments relating to Voluntary Organisations,10.12.2015,5100830630,"6,498.60",Wai Yin Society
Manchester City Council,Adult Social Care,Bed & Breakfast Acc,10.12.2015,5100829416,"5,940.00",Weaste Hotel
Manchester City Council,Adult Social Care,Transport Coach Hire,10.12.2015,5100829490,"5,880.00",Galaxy Cars
Manchester City Council,Adult Social Care,Transport Coach Hire,10.12.2015,5100829276,"5,595.00",D.J. Minibus Travel
Manchester City Council,Adult Social Care,Third party payments to Health Authority,10.12.2015,5100830648,"4,343.00",GM Commissioning Support Unit
Manchester City Council,Adult Social Care,Foster Payments,10.12.2015,5100784232,"3,207.84",CoramBAAF
Manchester City Council,Adult Social Care,Third party payments relating to Voluntary Organisations,10.12.2015,5100830658,"3,009.00",Talbot/Himmat Support Centre
Manchester City Council,Adult Social Care,Legal Fees,10.12.2015,1904902022,"2,500.00",Redacted Personal Information
Manchester City Council,Adult Social Care,Payments for services,10.12.2015,5100830454,"2,428.68",Remedi
Manchester City Council,Adult Social Care,Electricity,10.12.2015,1904909440,"2,251.38",Scottish & Southern Energy Plc
Manchester City Council,Adult Social Care,Equipment,10.12.2015,5100830479,"2,126.00",Drive Medical Limited
Manchester City Council,Adult Social Care,Transport Coach Hire,10.12.2015,5100829258,"2,090.00",DMC Travel
Manchester City Council,Adult Social Care,Transport Coach Hire,10.12.2015,5100829256,"2,058.00",DMC Travel
Manchester City Council,Adult Social Care,Transport Coach Hire,10.12.2015,5100829268,"1,890.00",Liddle Hackney Carriage
Manchester City Council,Adult Social Care,Third party payments relating to Voluntary Organisations,10.12.2015,5100830697,"1,770.00",Manchester Communication Academy
Manchester City Council,Adult Social Care,Electricity,10.12.2015,1904909417,"1,530.12",Scottish & Southern Energy Plc
Manchester City Council,Adult Social Care,Transport Coach Hire,10.12.2015,5100829365,"1,504.00",T/a K Travel
Manchester City Council,Adult Social Care,Transport Coach Hire,10.12.2015,5100829253,"1,470.00",DMC Travel
Manchester City Council,Adult Social Care,Equipment,10.12.2015,1904910262,"1,356.00",SOFAWORKS LIMITED
Manchester City Council,Adult Social Care,Electricity,10.12.2015,1904909406,"1,286.63",Scottish & Southern Energy Plc
Manchester City Council,Adult Social Care,Travel,10.12.2015,1904882084,"1,131.00",R.S.P. Ltd Br Business Systems Ltd
Manchester City Council,Adult Social Care,Electricity,10.12.2015,1904909504,"1,022.65",Scottish & Southern Energy Plc
Manchester City Council,Adult Social Care,Electricity,10.12.2015,1904909386,977.16,Scottish & Southern Energy Plc
Manchester City Council,Adult Social Care,Agency staff provision,10.12.2015,5100830760,967.75,Semester Recruitment Ltd
Manchester City Council,Adult Social Care,Agency staff provision,10.12.2015,5100830763,967.75,Semester Recruitment Ltd
Manchester City Council,Adult Social Care,Agency staff provision,10.12.2015,5100831158,967.75,Semester Recruitment Ltd
Manchester City Council,Adult Social Care,Agency staff provision,10.12.2015,5100831163,967.75,Semester Recruitment Ltd
Manchester City Council,Adult Social Care,Agency staff provision,10.12.2015,5100831167,967.75,Semester Recruitment Ltd
Manchester City Council,Adult Social Care,Agency staff provision,10.12.2015,5100831169,967.75,Semester Recruitment Ltd
Manchester City Council,Adult Social Care,Agency staff provision,10.12.2015,5100831210,967.75,Semester Recruitment Ltd
Manchester City Council,Adult Social Care,Electricity,10.12.2015,1904909391,956.36,Scottish & Southern Energy Plc
Manchester City Council,Adult Social Care,Electricity,10.12.2015,1904909381,923.64,Scottish & Southern Energy Plc
Manchester City Council,Adult Social Care,Electricity,10.12.2015,1904909357,865.11,Scottish & Southern Energy Plc
Manchester City Council,Adult Social Care,Agency staff provision,10.12.2015,5100831144,853.65,Semester Recruitment Ltd
Manchester City Council,Adult Social Care,Furniture,10.12.2015,5100816758,845.92,Zero Six
Manchester City Council,Adult Social Care,Agency staff provision,10.12.2015,5100831080,840.00,Semester Recruitment Ltd
Manchester City Council,Adult Social Care,Electricity,10.12.2015,1904909361,787.82,Scottish & Southern Energy Plc
Manchester City Council,Adult Social Care,Agency staff provision,10.12.2015,5100831261,774.20,Semester Recruitment Ltd
Manchester City Council,Adult Social Care,Travel,10.12.2015,1904882084,713.50,R.S.P. Ltd Br Business Systems Ltd
Manchester City Council,Adult Social Care,Electricity,10.12.2015,1904909496,707.52,Scottish & Southern Energy Plc
Manchester City Council,Adult Social Care,Travel,10.12.2015,1904882084,694.80,R.S.P. Ltd Br Business Systems Ltd
Manchester City Council,Adult Social Care,Agency staff provision,10.12.2015,5100831238,645.75,Semester Recruitment Ltd
Manchester City Council,Adult Social Care,Agency staff provision,10.12.2015,5100830761,637.14,Semester Recruitment Ltd
Manchester City Council,Adult Social Care,Agency staff provision,10.12.2015,5100831231,637.14,Semester Recruitment Ltd
Manchester City Council,Adult Social Care,Electricity,10.12.2015,1904909407,625.34,Scottish & Southern Energy Plc
Manchester City Council,Adult Social Care,Electricity,10.12.2015,1904909616,571.86,Scottish & Southern Energy Plc
Manchester City Council,Adult Social Care,Agency staff provision,10.12.2015,5100830996,569.73,Semester Recruitment Ltd
Manchester City Council,Adult Social Care,Electricity,10.12.2015,1700059728,-573.43,Scottish & Southern Energy Plc
Manchester City Council,Adult Social Care,Electricity,10.12.2015,1700059717,-641.76,Scottish & Southern Energy Plc
Manchester City Council,Adult Social Care,Electricity,10.12.2015,1700059719,-670.22,Scottish & Southern Energy Plc
Manchester City Council,Adult Social Care,Electricity,10.12.2015,1700059718,-691.92,Scottish & Southern Energy Plc
Manchester City Council,Adult Social Care,Grant and subscriptions awarded,10.12.2015,5100830645,"-2,964.00",Willow Park Housing Trust
Manchester City Council,Adult Social Care,Third party payments to Health Authority,10.12.2015,5100830650,"-4,343.00",GM Commissioning Support Unit
Manchester City Council,Adult Social Care,Third party payments relating to Voluntary Organisations,10.12.2015,5100830702,"-38,545.00",Pathways CIC
Manchester City Council,Corporate Services,Works and associated costs for Land and Buildings,10.12.2015,5100830652,"144,222.72",SMG (Europe) Ltd
Manchester City Council,Corporate Services,Professional fees,10.12.2015,5100829755,"15,200.00",Kpmg Llp
Manchester City Council,Corporate Services,Postage,10.12.2015,5100829860,"7,210.83",Royal Mail Group Plc
Manchester City Council,Corporate Services,Compensation Payments,10.12.2015,1904910386,"3,738.00",HMCTS (Manchester)
Manchester City Council,Corporate Services,Electricity,10.12.2015,1904909433,"2,840.07",Scottish & Southern Energy Plc
Manchester City Council,Corporate Services,Compensation Payments,10.12.2015,1904910228,"2,472.00",HMCTS (Manchester)
Manchester City Council,Corporate Services,Compensation Payments,10.12.2015,1904910211,"2,340.00",HMCTS (Manchester)
Manchester City Council,Corporate Services,Postage,10.12.2015,5100829612,"2,159.63",Royal Mail Group Plc
Manchester City Council,Corporate Services,Postage,10.12.2015,5100829865,"2,159.63",Royal Mail Group Plc
Manchester City Council,Corporate Services,Electricity,10.12.2015,1904909425,"1,936.33",Scottish & Southern Energy Plc
Manchester City Council,Corporate Services,Tracing fees,10.12.2015,5100830102,"1,896.00",Experian Limited
Manchester City Council,Corporate Services,Electricity,10.12.2015,1904909516,"1,863.41",Scottish & Southern Energy Plc
Manchester City Council,Corporate Services,Electricity,10.12.2015,1904909509,"1,630.95",Scottish & Southern Energy Plc
Manchester City Council,Corporate Services,Electricity,10.12.2015,1904909443,"1,581.14",Scottish & Southern Energy Plc
Manchester City Council,Corporate Services,Electricity,10.12.2015,1904909435,"1,572.72",Scottish & Southern Energy Plc
Manchester City Council,Corporate Services,Electricity,10.12.2015,1904909424,"1,555.35",Scottish & Southern Energy Plc
Manchester City Council,Corporate Services,Electricity,10.12.2015,1904909479,"1,499.37",Scottish & Southern Energy Plc
Manchester City Council,Corporate Services,Electricity,10.12.2015,1904909488,"1,495.74",Scottish & Southern Energy Plc
Manchester City Council,Corporate Services,Electricity,10.12.2015,1904909441,"1,415.22",Scottish & Southern Energy Plc
Manchester City Council,Corporate Services,Electricity,10.12.2015,1904909431,"1,410.20",Scottish & Southern Energy Plc
Manchester City Council,Corporate Services,Electricity,10.12.2015,1904909499,"1,293.42",Scottish & Southern Energy Plc
Manchester City Council,Corporate Services,Electricity,10.12.2015,1904909449,"1,144.20",Scottish & Southern Energy Plc
Manchester City Council,Corporate Services,CRB Fees,10.12.2015,5100830121,"1,026.00",United Medicare Ltd
Manchester City Council,Corporate Services,Electricity,10.12.2015,1904909365,"1,021.72",Scottish & Southern Energy Plc
Manchester City Council,Corporate Services,Compensation Payments,10.12.2015,1904910220,980.00,HMCTS (Manchester)
Manchester City Council,Corporate Services,Electricity,10.12.2015,1904909439,944.26,Scottish & Southern Energy Plc
Manchester City Council,Corporate Services,Electricity,10.12.2015,1904909413,933.29,Scottish & Southern Energy Plc
Manchester City Council,Corporate Services,Electricity,10.12.2015,1904909371,874.66,Scottish & Southern Energy Plc
Manchester City Council,Corporate Services,Electricity,10.12.2015,1904909385,762.53,Scottish & Southern Energy Plc
Manchester City Council,Corporate Services,Electricity,10.12.2015,1904909355,709.80,Scottish & Southern Energy Plc
Manchester City Council,Corporate Services,Electricity,10.12.2015,1904909373,690.36,Scottish & Southern Energy Plc
Manchester City Council,Corporate Services,Electricity,10.12.2015,1904909377,590.65,Scottish & Southern Energy Plc
Manchester City Council,Corporate Services,Electricity,10.12.2015,1904909394,550.45,Scottish & Southern Energy Plc
Manchester City Council,Corporate Services,Electricity,10.12.2015,1904909369,500.62,Scottish & Southern Energy Plc
Manchester City Council,Corporate Services,Electricity,10.12.2015,1700059720,"-1,099.50",Scottish & Southern Energy Plc
Manchester City Council,Corporate Services,Electricity,10.12.2015,1700059737,"-1,157.26",Scottish & Southern Energy Plc
Manchester City Council,Corporate Services,Postage,10.12.2015,5100829864,"-2,159.63",Royal Mail Group Plc
Manchester City Council,Housing General Fund,Surplus property Acquisitions,10.12.2015,1904904180,"2,815.00",Redacted Personal Information
Manchester City Council,Housing General Fund,Surplus property Acquisitions,10.12.2015,1904904182,"1,875.00",Redacted Personal Information
Manchester City Council,Housing General Fund,Catering,10.12.2015,5100830449,975.00,Manchester Central
Manchester City Council,Housing Revenue Account,Construction Works,10.12.2015,5100830491,"1,396.62",Amey Highways Lighting (Manchester)
Manchester City Council,Chief Executives,Agency staff provision,10.12.2015,5100830047,"26,241.00",People Source Consulting
Manchester City Council,Chief Executives,Infrastructure Fees,10.12.2015,5100830033,"3,600.00",Nigel Frank International
Manchester City Council,Chief Executives,Agency staff provision,10.12.2015,5100830045,"3,421.05",Michael Page International
Manchester City Council,Chief Executives,Agency staff provision,10.12.2015,5100830045,"2,410.00",Michael Page International
Manchester City Council,Chief Executives,Agency staff provision,10.12.2015,5100830081,"2,300.00",Triad Resourcing
Manchester City Council,Chief Executives,Agency staff provision,10.12.2015,5100830081,"2,035.00",Triad Resourcing
Manchester City Council,Chief Executives,Infrastructure Fees,10.12.2015,5100830045,"1,764.70",Michael Page International
Manchester City Council,Chief Executives,Agency staff provision,10.12.2015,5100830081,"1,725.00",Triad Resourcing
Manchester City Council,Chief Executives,Agency staff provision,10.12.2015,5100830045,"1,652.40",Michael Page International
Manchester City Council,Chief Executives,Agency staff provision,10.12.2015,5100830045,"1,347.04",Michael Page International
Manchester City Council,Chief Executives,Agency staff provision,10.12.2015,5100831009,949.55,Semester Recruitment Ltd
Manchester City Council,Chief Executives,Agency staff provision,10.12.2015,5100831039,949.55,Semester Recruitment Ltd
Manchester City Council,Chief Executives,Agency staff provision,10.12.2015,5100831047,949.55,Semester Recruitment Ltd
Manchester City Council,Chief Executives,Agency staff provision,10.12.2015,5100830825,916.30,Semester Recruitment Ltd
Manchester City Council,Chief Executives,Agency staff provision,10.12.2015,5100830835,916.30,Semester Recruitment Ltd
Manchester City Council,Chief Executives,Agency staff provision,10.12.2015,5100830840,916.30,Semester Recruitment Ltd
Manchester City Council,Chief Executives,Agency staff provision,10.12.2015,5100830845,916.30,Semester Recruitment Ltd
Manchester City Council,Chief Executives,Agency staff provision,10.12.2015,5100830848,916.30,Semester Recruitment Ltd
Manchester City Council,Chief Executives,Agency staff provision,10.12.2015,5100830860,916.30,Semester Recruitment Ltd
Manchester City Council,Chief Executives,Agency staff provision,10.12.2015,5100830873,916.30,Semester Recruitment Ltd
Manchester City Council,Chief Executives,Agency staff provision,10.12.2015,5100830874,916.30,Semester Recruitment Ltd
Manchester City Council,Chief Executives,Agency staff provision,10.12.2015,5100830895,916.30,Semester Recruitment Ltd
Manchester City Council,Chief Executives,Agency staff provision,10.12.2015,5100830784,894.25,Semester Recruitment Ltd
Manchester City Council,Chief Executives,Agency staff provision,10.12.2015,5100830786,894.25,Semester Recruitment Ltd
Manchester City Council,Chief Executives,Agency staff provision,10.12.2015,5100830787,894.25,Semester Recruitment Ltd
Manchester City Council,Chief Executives,Agency staff provision,10.12.2015,5100830790,894.25,Semester Recruitment Ltd
Manchester City Council,Chief Executives,Agency staff provision,10.12.2015,5100831099,839.30,Semester Recruitment Ltd
Manchester City Council,Chief Executives,Agency staff provision,10.12.2015,5100831116,839.30,Semester Recruitment Ltd
Manchester City Council,Chief Executives,Agency staff provision,10.12.2015,5100831122,839.30,Semester Recruitment Ltd
Manchester City Council,Chief Executives,Agency staff provision,10.12.2015,5100831134,839.30,Semester Recruitment Ltd
Manchester City Council,Chief Executives,Agency staff provision,10.12.2015,5100830865,823.20,Semester Recruitment Ltd
Manchester City Council,Chief Executives,Agency staff provision,10.12.2015,5100830903,823.20,Semester Recruitment Ltd
Manchester City Council,Chief Executives,Printing,10.12.2015,5100829863,801.07,BTC Group
Manchester City Council,Chief Executives,Agency staff provision,10.12.2015,5100831022,759.64,Semester Recruitment Ltd
Manchester City Council,Chief Executives,Agency staff provision,10.12.2015,5100831205,759.50,Semester Recruitment Ltd
Manchester City Council,Chief Executives,Agency staff provision,10.12.2015,5100831209,759.50,Semester Recruitment Ltd
Manchester City Council,Chief Executives,Agency staff provision,10.12.2015,5100831221,759.50,Semester Recruitment Ltd
Manchester City Council,Chief Executives,Agency staff provision,10.12.2015,5100831226,759.50,Semester Recruitment Ltd
Manchester City Council,Chief Executives,Agency staff provision,10.12.2015,5100831230,759.50,Semester Recruitment Ltd
Manchester City Council,Chief Executives,Agency staff provision,10.12.2015,5100831235,759.50,Semester Recruitment Ltd
Manchester City Council,Chief Executives,Agency staff provision,10.12.2015,5100831241,759.50,Semester Recruitment Ltd
Manchester City Council,Chief Executives,Agency staff provision,10.12.2015,5100831250,759.50,Semester Recruitment Ltd
Manchester City Council,Chief Executives,Agency staff provision,10.12.2015,5100831257,759.50,Semester Recruitment Ltd
Manchester City Council,Chief Executives,Agency staff provision,10.12.2015,5100830984,737.80,Semester Recruitment Ltd
Manchester City Council,Chief Executives,Agency staff provision,10.12.2015,5100830997,737.80,Semester Recruitment Ltd
Manchester City Council,Chief Executives,Agency staff provision,10.12.2015,5100831005,737.80,Semester Recruitment Ltd
Manchester City Council,Chief Executives,Agency staff provision,10.12.2015,5100831029,737.80,Semester Recruitment Ltd
Manchester City Council,Chief Executives,Agency staff provision,10.12.2015,5100831059,737.80,Semester Recruitment Ltd
Manchester City Council,Chief Executives,Agency staff provision,10.12.2015,5100831070,737.80,Semester Recruitment Ltd
Manchester City Council,Chief Executives,Agency staff provision,10.12.2015,5100830863,727.30,Semester Recruitment Ltd
Manchester City Council,Chief Executives,Agency staff provision,10.12.2015,5100830869,727.30,Semester Recruitment Ltd
Manchester City Council,Chief Executives,Agency staff provision,10.12.2015,5100830877,727.30,Semester Recruitment Ltd
Manchester City Council,Chief Executives,Agency staff provision,10.12.2015,5100830897,727.30,Semester Recruitment Ltd
Manchester City Council,Chief Executives,Agency staff provision,10.12.2015,5100830943,727.30,Semester Recruitment Ltd
Manchester City Council,Chief Executives,Agency staff provision,10.12.2015,5100830952,727.30,Semester Recruitment Ltd
Manchester City Council,Chief Executives,Agency staff provision,10.12.2015,5100830960,727.30,Semester Recruitment Ltd
Manchester City Council,Chief Executives,Agency staff provision,10.12.2015,5100831203,720.00,Semester Recruitment Ltd
Manchester City Council,Chief Executives,Agency staff provision,10.12.2015,5100830908,719.95,Semester Recruitment Ltd
Manchester City Council,Chief Executives,Agency staff provision,10.12.2015,5100830911,719.95,Semester Recruitment Ltd
Manchester City Council,Chief Executives,Occupational Health services,10.12.2015,1904910501,716.80,Healthwork Ltd
Manchester City Council,Chief Executives,Agency staff provision,10.12.2015,5100830837,712.60,Semester Recruitment Ltd
Manchester City Council,Chief Executives,Agency staff provision,10.12.2015,5100830843,712.60,Semester Recruitment Ltd
Manchester City Council,Chief Executives,Agency staff provision,10.12.2015,5100830846,712.60,Semester Recruitment Ltd
Manchester City Council,Chief Executives,Agency staff provision,10.12.2015,5100830850,712.60,Semester Recruitment Ltd
Manchester City Council,Chief Executives,Agency staff provision,10.12.2015,5100830853,712.60,Semester Recruitment Ltd
Manchester City Council,Chief Executives,Agency staff provision,10.12.2015,5100830795,674.10,Semester Recruitment Ltd
Manchester City Council,Chief Executives,Agency staff provision,10.12.2015,5100830798,674.10,Semester Recruitment Ltd
Manchester City Council,Chief Executives,Agency staff provision,10.12.2015,5100830805,674.10,Semester Recruitment Ltd
Manchester City Council,Chief Executives,Agency staff provision,10.12.2015,5100830807,674.10,Semester Recruitment Ltd
Manchester City Council,Chief Executives,Agency staff provision,10.12.2015,5100830809,674.10,Semester Recruitment Ltd
Manchester City Council,Chief Executives,Agency staff provision,10.12.2015,5100830815,674.10,Semester Recruitment Ltd
Manchester City Council,Chief Executives,Agency staff provision,10.12.2015,5100830821,674.10,Semester Recruitment Ltd
Manchester City Council,Chief Executives,Agency staff provision,10.12.2015,5100831040,624.23,Semester Recruitment Ltd
Manchester City Council,Chief Executives,Agency staff provision,10.12.2015,5100831213,607.60,Semester Recruitment Ltd
Manchester City Council,Chief Executives,Agency staff provision,10.12.2015,5100831254,607.60,Semester Recruitment Ltd
Manchester City Council,Chief Executives,Agency staff provision,10.12.2015,5100830791,603.86,Semester Recruitment Ltd
Manchester City Council,Chief Executives,Agency staff provision,10.12.2015,5100831067,602.70,Semester Recruitment Ltd
Manchester City Council,Chief Executives,Agency staff provision,10.12.2015,5100831083,602.70,Semester Recruitment Ltd
Manchester City Council,Chief Executives,Agency staff provision,10.12.2015,5100831115,602.70,Semester Recruitment Ltd
Manchester City Council,Chief Executives,Agency staff provision,10.12.2015,5100831120,602.70,Semester Recruitment Ltd
Manchester City Council,Chief Executives,Agency staff provision,10.12.2015,5100831132,602.70,Semester Recruitment Ltd
Manchester City Council,Chief Executives,Advertising,10.12.2015,1904910155,602.56,Facebook (CARD ONLY)
Manchester City Council,Chief Executives,Advertising,10.12.2015,1904910221,600.29,Facebook (CARD ONLY)
Manchester City Council,Chief Executives,Advertising,10.12.2015,1904910178,600.05,Facebook (CARD ONLY)
Manchester City Council,Chief Executives,Hire of Equipment,10.12.2015,5100829507,598.50,Hirequirements Ltd
Manchester City Council,Chief Executives,Agency staff provision,10.12.2015,5100831020,590.24,Semester Recruitment Ltd
Manchester City Council,Chief Executives,Advertising,10.12.2015,1904910336,588.19,Facebook (CARD ONLY)
Manchester City Council,Chief Executives,Agency staff provision,10.12.2015,5100830081,586.20,Triad Resourcing
Manchester City Council,Chief Executives,Agency staff provision,10.12.2015,5100830964,581.84,Semester Recruitment Ltd
Manchester City Council,Chief Executives,Advertising,10.12.2015,1904910257,578.34,Facebook (CARD ONLY)
Manchester City Council,Chief Executives,Agency staff provision,10.12.2015,5100831095,576.87,Semester Recruitment Ltd
Manchester City Council,Chief Executives,Advertising,10.12.2015,1904910323,566.48,Facebook (CARD ONLY)
Manchester City Council,Chief Executives,Advertising,10.12.2015,1904910392,554.09,Facebook (CARD ONLY)
Manchester City Council,Chief Executives,Agency staff provision,10.12.2015,5100830857,549.78,Semester Recruitment Ltd
Manchester City Council,Chief Executives,Advertising,10.12.2015,1904910260,543.95,Facebook (CARD ONLY)
Manchester City Council,Chief Executives,Advertising,10.12.2015,1904910282,542.38,Facebook (CARD ONLY)
Manchester City Council,Chief Executives,Agency staff provision,10.12.2015,5100830801,539.28,Semester Recruitment Ltd
Manchester City Council,Chief Executives,Occupational Health services,10.12.2015,1904910522,537.60,Healthwork Ltd
Manchester City Council,Chief Executives,Agency staff provision,10.12.2015,5100831204,503.58,Semester Recruitment Ltd
Manchester City Council,Regeneration Finance,Preventative Maintenance Work,10.12.2015,5100830673,"146,252.00",Manchester Working Ltd
Manchester City Council,Regeneration Finance,Professional fees,10.12.2015,5100830416,"40,500.00",Commission for the New Economy
Manchester City Council,Regeneration Finance,Professional fees,10.12.2015,5100830415,"25,000.00",Commission for the New Economy
Manchester City Council,Regeneration Finance,Grant and subscriptions awarded,10.12.2015,5100830343,"18,000.00",Skills and Work Solutions Ltd
Manchester City Council,Regeneration Finance,Advertising,10.12.2015,5100830747,"6,400.00",Bay Media
Manchester City Council,Regeneration Finance,External repairs and maintenance for buildings,10.12.2015,5100830715,"6,000.00",Zion Arts Centre Ltd
Manchester City Council,Regeneration Finance,Professional fees,10.12.2015,5100806552,"5,999.25",Turner & Townsend Cost
Manchester City Council,Regeneration Finance,Professional fees,10.12.2015,5100830675,"3,427.50",Barker Langham
Manchester City Council,Regeneration Finance,Electricity,10.12.2015,1904909510,"3,239.67",Scottish & Southern Energy Plc
Manchester City Council,Regeneration Finance,Electricity,10.12.2015,1904909497,"3,212.67",Scottish & Southern Energy Plc
Manchester City Council,Regeneration Finance,Professional fees,10.12.2015,5100806552,"2,653.92",Turner & Townsend Cost
Manchester City Council,Regeneration Finance,Electricity,10.12.2015,1904909490,"2,426.03",Scottish & Southern Energy Plc
Manchester City Council,Regeneration Finance,Electricity,10.12.2015,1904909457,"2,353.53",Scottish & Southern Energy Plc
Manchester City Council,Regeneration Finance,Electricity,10.12.2015,1904909352,"2,113.45",Scottish & Southern Energy Plc
Manchester City Council,Regeneration Finance,Electricity,10.12.2015,1904909367,"1,971.08",Scottish & Southern Energy Plc
Manchester City Council,Regeneration Finance,Electricity,10.12.2015,1904909476,"1,876.99",Scottish & Southern Energy Plc
Manchester City Council,Regeneration Finance,Electricity,10.12.2015,1904909519,"1,822.82",Scottish & Southern Energy Plc
Manchester City Council,Regeneration Finance,Vehicle Hire Costs,10.12.2015,5100830596,"1,695.00",Harrow Green
Manchester City Council,Regeneration Finance,Electricity,10.12.2015,1904909388,"1,688.87",Scottish & Southern Energy Plc
Manchester City Council,Regeneration Finance,Electricity,10.12.2015,1904909656,"1,552.04",Scottish & Southern Energy Plc
Manchester City Council,Regeneration Finance,Electricity,10.12.2015,1904909359,"1,520.58",Scottish & Southern Energy Plc
Manchester City Council,Regeneration Finance,Electricity,10.12.2015,1904909500,"1,514.71",Scottish & Southern Energy Plc
Manchester City Council,Regeneration Finance,Expenditure re Internal Trading Ordered Externally,10.12.2015,5100830156,"1,200.00",Manchester Central
Manchester City Council,Regeneration Finance,Electricity,10.12.2015,1904909358,"1,145.50",Scottish & Southern Energy Plc
Manchester City Council,Regeneration Finance,Electricity,10.12.2015,1904909378,"1,114.96",Scottish & Southern Energy Plc
Manchester City Council,Regeneration Finance,Electricity,10.12.2015,1904909409,"1,095.13",Scottish & Southern Energy Plc
Manchester City Council,Regeneration Finance,Removal and Storage of Furniture,10.12.2015,5100829756,"1,057.71",BCL
Manchester City Council,Regeneration Finance,Electricity,10.12.2015,1904909444,"1,021.06",Scottish & Southern Energy Plc
Manchester City Council,Regeneration Finance,Contract Cleaning External,10.12.2015,5100829260,807.52,M & M Cleaning Services Ltd
Manchester City Council,Regeneration Finance,Electricity,10.12.2015,1904909354,706.70,Scottish & Southern Energy Plc
Manchester City Council,Regeneration Finance,Electricity,10.12.2015,1904909412,692.00,Scottish & Southern Energy Plc
Manchester City Council,Regeneration Finance,Catering Provisions,10.12.2015,5100830909,617.62,Turner & Wrights Ltd
Manchester City Council,Regeneration Finance,Electricity,10.12.2015,1904909495,611.54,Scottish & Southern Energy Plc
Manchester City Council,Regeneration Finance,Gas,10.12.2015,1904909734,582.79,Total Gas & Power
Manchester City Council,Regeneration Finance,Electricity,10.12.2015,1904909418,581.99,Scottish & Southern Energy Plc
Manchester City Council,Regeneration Finance,Electricity,10.12.2015,1904909370,565.97,Scottish & Southern Energy Plc
Manchester City Council,Regeneration Finance,Electricity,10.12.2015,1904909464,526.80,Scottish & Southern Energy Plc
Manchester City Council,Regeneration Finance,Electricity,10.12.2015,1904909356,525.65,Scottish & Southern Energy Plc
Manchester City Council,Regeneration Finance,Advertising,10.12.2015,5100830751,"-6,400.00",Bay Media
Manchester City Council,Insurance Fund,Insurance,10.12.2015,1904900969,"69,500.00",Colemans-Ctts
Manchester City Council,Insurance Fund,Insurance,10.12.2015,1904900971,"40,000.00",Colemans-Ctts
Manchester City Council,GMIST (Greater Mcr Integrated),Agency staff provision,10.12.2015,5100829635,"132,000.00",Deloitte & Touche Llp
Manchester City Council,GMIST (Greater Mcr Integrated),Agency staff provision,10.12.2015,5100829636,"38,000.00",Deloitte & Touche Llp
Manchester City Council,GMIST (Greater Mcr Integrated),Professional fees,10.12.2015,5100830882,"23,510.00",University Of Manchester
Manchester City Council,GMIST (Greater Mcr Integrated),Hire of Equipment,10.12.2015,5100830345,"7,700.00",County Scientific Services
Manchester City Council,GMIST (Greater Mcr Integrated),Professional fees,10.12.2015,5100829521,"1,425.00",Limehouse Software Ltd
Manchester City Council,GMIST (Greater Mcr Integrated),Expenditure re Internal Trading Ordered Externally,10.12.2015,5100830481,711.67,Salford Community Leisure Ltd
Manchester City Council,Manchester Leisure,Grant Payments,11.12.2015,5100830993,"62,917.75",Zion Arts Centre Ltd
Manchester City Council,Manchester Leisure,Professional fees,11.12.2015,5100831017,"6,000.00",Greater Manchester Community
Manchester City Council,Manchester Leisure,Professional fees,11.12.2015,5100830301,"2,583.00",Sutton PR Ltd
Manchester City Council,Manchester Leisure,Professional fees,11.12.2015,5100831431,"1,972.50",Oldham Borough Council
Manchester City Council,Manchester Leisure,Library Materials Acquisition,11.12.2015,1904902188,"1,885.01",Martin Lavell Limited
Manchester City Council,Manchester Leisure,Special Event,11.12.2015,5100830067,"1,700.00",Biffa Municipal Limited
Manchester City Council,Manchester Leisure,Special Event,11.12.2015,5100830070,"1,200.00",Biffa Municipal Limited
Manchester City Council,Manchester Leisure,Professional fees,11.12.2015,5100830493,"1,100.00",Architectural History Practice Ltd
Manchester City Council,Hospitality + Trading Services,Equipment,11.12.2015,5100830647,"56,850.00",DP Structures Ltd
Manchester City Council,Hospitality + Trading Services,Equipment,11.12.2015,5100830641,"28,660.00",DP Structures Ltd
Manchester City Council,Hospitality + Trading Services,Equipment,11.12.2015,5100830637,"17,000.00",DP Structures Ltd
Manchester City Council,Hospitality + Trading Services,Vehicle Fuel Costs,11.12.2015,5100830418,"16,294.51",Carlton Fuels Ltd
Manchester City Council,Hospitality + Trading Services,Vehicle Fuel Costs,11.12.2015,5100831279,"15,380.05",Carlton Fuels Ltd
Manchester City Council,Hospitality + Trading Services,Equipment,11.12.2015,5100830639,"15,000.00",DP Structures Ltd
Manchester City Council,Hospitality + Trading Services,Payments to Sub-Contractors,11.12.2015,5100829544,"10,212.60",Rosgal Ltd
Manchester City Council,Hospitality + Trading Services,Funeral and coroner related services,11.12.2015,5100822866,"8,968.00",Manchester Working Ltd
Manchester City Council,Hospitality + Trading Services,Payments to Sub-Contractors,11.12.2015,5100831216,"8,835.23",Kenny Bros (Civil Eng) Ltd
Manchester City Council,Hospitality + Trading Services,Payments to Sub-Contractors,11.12.2015,5100831215,"7,488.84",Kenny Bros (Civil Eng) Ltd
Manchester City Council,Hospitality + Trading Services,Hire of Equipment,11.12.2015,5100830735,"4,698.40",John F Hunt Power Services
Manchester City Council,Hospitality + Trading Services,Payments to Sub-Contractors,11.12.2015,5100831218,"4,565.70",Kenny Bros (Civil Eng) Ltd
Manchester City Council,Hospitality + Trading Services,Hire of Equipment,11.12.2015,5100830738,"4,246.80",John F Hunt Power Services
Manchester City Council,Hospitality + Trading Services,Payments to Sub-Contractors,11.12.2015,5100831217,"4,221.76",Kenny Bros (Civil Eng) Ltd
Manchester City Council,Hospitality + Trading Services,Hire of Equipment,11.12.2015,5100830736,"3,669.40",John F Hunt Power Services
Manchester City Council,Hospitality + Trading Services,Payments to Sub-Contractors,11.12.2015,5100830065,"3,580.38",Rosgal Ltd
Manchester City Council,Hospitality + Trading Services,Hire of Equipment,11.12.2015,5100830671,"3,120.81",John F Hunt Power Services
Manchester City Council,Hospitality + Trading Services,Building Materials for direct delivery,11.12.2015,5100831294,"2,344.06",TARMAC
Manchester City Council,Hospitality + Trading Services,Building Materials for direct delivery,11.12.2015,5100831295,"2,303.79",TARMAC
Manchester City Council,Hospitality + Trading Services,Building Materials for direct delivery,11.12.2015,5100831297,"2,227.00",TARMAC
Manchester City Council,Hospitality + Trading Services,Purchase of stores for re-distribution,11.12.2015,5100831409,"2,075.00",Burwood Supply Ltd
Manchester City Council,Hospitality + Trading Services,Payments to Sub-Contractors,11.12.2015,5100830774,"1,593.14",GMCA
Manchester City Council,Hospitality + Trading Services,Hire of Equipment,11.12.2015,5100830737,"1,564.50",John F Hunt Power Services
Manchester City Council,Hospitality + Trading Services,Hire of Machinery,11.12.2015,5100831404,"1,038.50",R & M Developments Ltd
Manchester City Council,Hospitality + Trading Services,Hire of Machinery,11.12.2015,5100831409,"1,037.50",Burwood Supply Ltd
Manchester City Council,Hospitality + Trading Services,Hire of Machinery,11.12.2015,5100831407,"1,012.50",R & M Developments Ltd
Manchester City Council,Hospitality + Trading Services,Equipment,11.12.2015,5100830711,"1,000.00",Oakenclough Buildings Ltd
Manchester City Council,Hospitality + Trading Services,Equipment,11.12.2015,5100830713,"1,000.00",Oakenclough Buildings Ltd
Manchester City Council,Hospitality + Trading Services,Hire of Machinery,11.12.2015,5100831406,913.50,R & M Developments Ltd
Manchester City Council,Hospitality + Trading Services,Hire of Machinery,11.12.2015,5100831394,858.00,R & M Developments Ltd
Manchester City Council,Hospitality + Trading Services,Professional fees,11.12.2015,5100831061,857.00,British Standards Institution
Manchester City Council,Hospitality + Trading Services,Hire of Machinery,11.12.2015,5100831175,693.00,Gibsons Garden Machinery Limited
Manchester City Council,Hospitality + Trading Services,Internal Repairs and Maintenance for buildings,11.12.2015,5100831164,632.50,Edmundson Electrical Ltd
Manchester City Council,Hospitality + Trading Services,Building Materials for direct delivery,11.12.2015,5100830929,540.00,Asd Metal Services
Manchester City Council,Hospitality + Trading Services,Hire of Machinery,11.12.2015,5100831366,525.00,Kensite Services Ltd
Manchester City Council,Hospitality + Trading Services,Hire of Machinery,11.12.2015,5100831369,525.00,Kensite Services Ltd
Manchester City Council,Hospitality + Trading Services,Payments to Sub-Contractors,11.12.2015,5100831274,523.92,Kenny Bros (Civil Eng) Ltd
Manchester City Council,Hospitality + Trading Services,Machinery and equipment repairs,11.12.2015,5100830966,507.93,Gibsons Garden Machinery Limited
Manchester City Council,Hospitality + Trading Services,Vehicle Fuel Costs,11.12.2015,5100831280,"-16,294.51",Carlton Fuels Ltd
Manchester City Council,Environment and Operations,Construction Works,11.12.2015,5100831296,"18,923.79",Vodafone (Ex C&W)
Manchester City Council,Environment and Operations,Construction Works,11.12.2015,5100830496,"10,000.00",Gaist Solutions Ltd
Manchester City Council,Environment and Operations,External repairs and maintenance for buildings,11.12.2015,5100830078,"9,200.00",Ramora Ltd
Manchester City Council,Environment and Operations,Payments to Sub-Contractors,11.12.2015,5100829948,"6,372.00",Biffa Municipal Limited
Manchester City Council,Environment and Operations,Professional fees,11.12.2015,5100830981,"5,332.00",Lancashire County Council
Manchester City Council,Environment and Operations,Building Materials for direct delivery,11.12.2015,5100831435,"4,710.16",Compass Minerals UK Ltd
Manchester City Council,Environment and Operations,Grounds Maintenance,11.12.2015,5100830890,"4,080.00",Didsbury Gardens Services Ltd
Manchester City Council,Environment and Operations,Professional fees,11.12.2015,5100831429,"2,853.60",Redacted Personal Information
Manchester City Council,Environment and Operations,Refuse Collection,11.12.2015,5100830841,"1,650.00",Ken Rostron Builders Ltd
Manchester City Council,Environment and Operations,Construction Works,11.12.2015,5100831298,"-18,923.79",Vodafone (Ex C&W)
Manchester City Council,Adult Social Care,Third party payments relating to Voluntary Organisations,11.12.2015,5100831015,"320,000.00",One Education Ltd
Manchester City Council,Adult Social Care,Third party payments relating to Voluntary Organisations,11.12.2015,5100831157,"200,000.00",One Education Ltd
Manchester City Council,Adult Social Care,Payments for services,11.12.2015,5100831300,"82,759.09",Seashell trust
Manchester City Council,Adult Social Care,Transport Coach Hire,11.12.2015,5100831242,"63,978.00",Westfield Minibuses
Manchester City Council,Adult Social Care,Supporting People Payments,11.12.2015,5100829491,"30,183.00",Action For Children
Manchester City Council,Adult Social Care,Payments for services,11.12.2015,5100829422,"27,500.00",ABL Health Ltd
Manchester City Council,Adult Social Care,Transport Coach Hire,11.12.2015,5100829488,"21,632.50",Youbus Ltd
Manchester City Council,Adult Social Care,Payments for services,11.12.2015,5100831072,"20,038.50",St John Vianney School
Manchester City Council,Adult Social Care,Third party payments relating to Voluntary Organisations,11.12.2015,5100831289,"15,875.00",George House Trust
Manchester City Council,Adult Social Care,Third party payments relating to Voluntary Organisations,11.12.2015,5100830717,"12,916.00",Young People Support Foundation Ltd
Manchester City Council,Adult Social Care,Payments for services,11.12.2015,5100831301,"9,308.16",Chaigeley Education Foundation
Manchester City Council,Adult Social Care,Rents,11.12.2015,5100830646,"8,027.62",Mack Residential Letting Ltd
Manchester City Council,Adult Social Care,Third party payments relating to Voluntary Organisations,11.12.2015,5100831305,"7,213.25",Manchester Carers Forum
Manchester City Council,Adult Social Care,Third party payments relating to Voluntary Organisations,11.12.2015,5100831357,"7,213.25",Manchester Carers Forum
Manchester City Council,Adult Social Care,Third party payments relating to Voluntary Organisations,11.12.2015,5100831347,"7,123.25",Manchester Carers Forum
Manchester City Council,Adult Social Care,Third party payments relating to Voluntary Organisations,11.12.2015,5100831353,"7,123.25",Manchester Carers Forum
Manchester City Council,Adult Social Care,Payments for services,11.12.2015,5100831077,"5,366.75",St John Vianney School
Manchester City Council,Adult Social Care,Payments for services,11.12.2015,5100831380,"5,266.97",Ramillies Hall School Ltd
Manchester City Council,Adult Social Care,Payments for services,11.12.2015,5100831373,"4,152.68",Penarth Group School
Manchester City Council,Adult Social Care,Transport Coach Hire,11.12.2015,5100829242,"3,570.00",Ricks Travel
Manchester City Council,Adult Social Care,Third party payments relating to Voluntary Organisations,11.12.2015,5100829963,"3,514.00",Street League
Manchester City Council,Adult Social Care,Payments for services,11.12.2015,5100831302,"3,112.64",Chaigeley Education Foundation
Manchester City Council,Adult Social Care,Third party payments relating to Voluntary Organisations,11.12.2015,5100831031,"3,074.25",LMCP Care Link
Manchester City Council,Adult Social Care,Payments for services,11.12.2015,5100831304,"2,864.68",Penarth Group School
Manchester City Council,Adult Social Care,Third party payments relating to Voluntary Organisations,11.12.2015,5100829796,"2,625.00",Wai Yin Society
Manchester City Council,Adult Social Care,Grant and subscriptions awarded,11.12.2015,5100829798,"2,424.41",Wai Yin Society
Manchester City Council,Adult Social Care,Third party payments relating to Voluntary Organisations,11.12.2015,5100831044,"2,281.00",LMCP Care Link
Manchester City Council,Adult Social Care,Third party payments relating to Voluntary Organisations,11.12.2015,5100829691,"2,250.00",Wai Yin Society
Manchester City Council,Adult Social Care,Payments for services,11.12.2015,5100831032,"2,240.00",Keys Childcare Ltd
Manchester City Council,Adult Social Care,Payments for services,11.12.2015,5100831041,"2,240.00",Keys Childcare Ltd
Manchester City Council,Adult Social Care,Payments for services,11.12.2015,5100831058,"2,240.00",Keys Childcare Ltd
Manchester City Council,Adult Social Care,Bed & Breakfast Acc,11.12.2015,5100831260,"2,210.00",M & Q Properties Management Ltd
Manchester City Council,Adult Social Care,Transport Coach Hire,11.12.2015,5100829274,"1,995.00",JKR Travel
Manchester City Council,Adult Social Care,I T Provision,11.12.2015,5100829534,"1,950.00",Cornerstone Design and Marketing
Manchester City Council,Adult Social Care,Transport Coach Hire,11.12.2015,5100830375,"1,890.00",APL Coachhire
Manchester City Council,Adult Social Care,Transport Coach Hire,11.12.2015,5100830127,"1,800.00",Exec-Coach Services
Manchester City Council,Adult Social Care,Transport Coach Hire,11.12.2015,5100829272,"1,800.00",Redacted Personal Information
Manchester City Council,Adult Social Care,Third party payments relating to Voluntary Organisations,11.12.2015,5100829734,"1,500.00",Age Concern Manchester
Manchester City Council,Adult Social Care,Grant and subscriptions awarded,11.12.2015,5100829702,"1,452.95",Anson Cabin Project
Manchester City Council,Adult Social Care,Third party payments relating to Voluntary Organisations,11.12.2015,5100831038,"1,430.00",LMCP Care Link
Manchester City Council,Adult Social Care,Grant and subscriptions awarded,11.12.2015,5100829795,"1,364.33",Anson Cabin Project
Manchester City Council,Adult Social Care,Funeral and coroner related services,11.12.2015,5100823447,"1,317.00",Funeral Prtnrs t/a Michael Kennedy
Manchester City Council,Adult Social Care,Third party payments relating to Voluntary Organisations,11.12.2015,5100831290,"1,059.00",Indian Senior Citizens Centre
Manchester City Council,Adult Social Care,Rates,11.12.2015,5100831026,932.93,The Big Life Company
Manchester City Council,Adult Social Care,Hire of Premises,11.12.2015,5100831375,750.00,The Factory Youth Zone
Manchester City Council,Adult Social Care,Bed & Breakfast Acc,11.12.2015,5100831266,689.42,Happy Homes Uk Ltd
Manchester City Council,Adult Social Care,Hire of Premises,11.12.2015,5100831374,600.00,The Factory Youth Zone
Manchester City Council,Adult Social Care,Electricity,11.12.2015,5100831019,529.07,The Big Life Company
Manchester City Council,Adult Social Care,Third party payments relating to Voluntary Organisations,11.12.2015,5100829417,525.00,Henshaws Society For Blind People
Manchester City Council,Adult Social Care,Third party payments relating to Voluntary Organisations,11.12.2015,5100831351,"-7,123.25",Manchester Carers Forum
Manchester City Council,Childrens Services,Works and associated costs for Land and Buildings,11.12.2015,5100830947,"113,660.00",Wates Construction Ltd
Manchester City Council,Childrens Services,Works and associated costs for Land and Buildings,11.12.2015,5100830079,"19,037.20",ISG Construction Limited
Manchester City Council,Childrens Services,Works and associated costs for Land and Buildings,11.12.2015,5100830947,"4,701.00",Wates Construction Ltd
Manchester City Council,Corporate Services,Works and associated costs for Land and Buildings,11.12.2015,5100831450,"25,122.06",Manchester Working Ltd
Manchester City Council,Corporate Services,Professional fees,11.12.2015,5100831381,"7,650.00",Nexus Real Estate
Manchester City Council,Corporate Services,Fees,11.12.2015,5100830483,"2,225.00",Pannone Corporate LLP
Manchester City Council,Corporate Services,Fees,11.12.2015,5100830560,"1,775.00",Pannone Corporate LLP
Manchester City Council,Corporate Services,Agency staff provision,11.12.2015,5100830109,"1,714.79",Badenoch & Clark
Manchester City Council,Corporate Services,Fees,11.12.2015,5100830476,"1,530.00",Pannone Corporate LLP
Manchester City Council,Corporate Services,Fees,11.12.2015,5100830476,540.00,Pannone Corporate LLP
Manchester City Council,Housing General Fund,Surplus property Acquisitions,11.12.2015,1904910628,"164,900.00",Fieldings Porter Solicitors
Manchester City Council,Housing General Fund,Surplus property Acquisitions,11.12.2015,1904910864,"106,200.00",CHUNG AND CO
Manchester City Council,Housing General Fund,Council Dwelling Adaptations,11.12.2015,5100831069,"69,060.08",Solarking Commercial
Manchester City Council,Housing General Fund,Council Dwelling Adaptations,11.12.2015,5100831397,"52,970.54",Solarking Commercial
Manchester City Council,Housing General Fund,Council Dwelling Adaptations,11.12.2015,5100831075,"36,225.66",Solarking Commercial
Manchester City Council,Housing General Fund,Council Dwelling Adaptations,11.12.2015,5100831396,"25,640.85",Solarking Commercial
Manchester City Council,Housing General Fund,Council Dwelling Adaptations,11.12.2015,5100831399,"23,852.59",Solarking Commercial
Manchester City Council,Housing General Fund,Professional fees,11.12.2015,5100829574,"13,000.00",Manchester Care & Repair Ltd
Manchester City Council,Housing General Fund,Works and associated costs for Land and Buildings,11.12.2015,5100830066,"9,411.95",Kier Services Ltd - Maint West
Manchester City Council,Housing General Fund,Surplus property Fees,11.12.2015,1904910628,"2,586.00",Fieldings Porter Solicitors
Manchester City Council,Housing General Fund,Surplus property Fees,11.12.2015,1904910864,"1,202.00",CHUNG AND CO
Manchester City Council,Housing Revenue Account,Northwards Reps Fee,11.12.2015,5100829703,"1,784,120.67",Northwards Housing Limited
Manchester City Council,Housing Revenue Account,Construction Works,11.12.2015,5100831307,"68,124.54",Bt Repayments And Claims Group
Manchester City Council,Housing Revenue Account,Council Dwelling Adaptations,11.12.2015,5100831282,"50,000.00",Manchester Working Ltd
Manchester City Council,Housing Revenue Account,I T Provision,11.12.2015,5100829339,"40,000.00",Northwards Housing Limited
Manchester City Council,Housing Revenue Account,Council Dwelling Adaptations,11.12.2015,5100831284,"23,559.67",Manchester Working Ltd
Manchester City Council,Housing Revenue Account,Council Dwelling Adaptations,11.12.2015,5100831443,"12,236.56",Wrekin Windows
Manchester City Council,Housing Revenue Account,Council Dwelling Adaptations,11.12.2015,5100831439,"11,506.45",JTC Furniture Group
Manchester City Council,Housing Revenue Account,Council Dwelling Adaptations,11.12.2015,5100828912,"8,025.99",Wrekin Windows
Manchester City Council,Housing Revenue Account,Council Dwelling Adaptations,11.12.2015,5100831403,"6,507.71",Rexel UK Ltd
Manchester City Council,Housing Revenue Account,Council Dwelling Adaptations,11.12.2015,5100831447,"4,455.94",Wrekin Windows
Manchester City Council,Housing Revenue Account,Council Dwelling Adaptations,11.12.2015,5100831170,"3,221.14",Manchester Working Ltd
Manchester City Council,Housing Revenue Account,Council Dwelling Adaptations,11.12.2015,5100831405,"2,630.57",IG Doors Ltd
Manchester City Council,Housing Revenue Account,CAMC/Not assigned,11.12.2015,5100831410,"2,175.79",IG Doors Ltd
Manchester City Council,Housing Revenue Account,CAMC/Not assigned,11.12.2015,5100831413,"1,652.49",IG Doors Ltd
Manchester City Council,Housing Revenue Account,Council Dwelling Adaptations,11.12.2015,5100831384,"1,414.43",SIG Roofing Supplies
Manchester City Council,Housing Revenue Account,Council Dwelling Adaptations,11.12.2015,5100831177,929.47,IG Doors Ltd
Manchester City Council,Housing Revenue Account,CAMC/Not assigned,11.12.2015,5100831408,874.61,IG Doors Ltd
Manchester City Council,Housing Revenue Account,Council Dwelling Adaptations,11.12.2015,5100831445,813.44,Wrekin Windows
Manchester City Council,Housing Revenue Account,CAMC/Not assigned,11.12.2015,5100831414,704.21,IG Doors Ltd
Manchester City Council,Housing Revenue Account,Council Dwelling Adaptations,11.12.2015,5100831390,592.30,IG Doors Ltd
Manchester City Council,Housing Revenue Account,Council Dwelling Adaptations,11.12.2015,5100831444,"-8,025.99",Wrekin Windows
Manchester City Council,Housing Revenue Account,Council Dwelling Adaptations,11.12.2015,5100831453,"-8,025.99",Wrekin Windows
Manchester City Council,Chief Executives,Printing,11.12.2015,5100831458,"36,500.00",Merchandise Mania Ltd
Manchester City Council,Chief Executives,Printing,11.12.2015,5100831458,"35,500.00",Merchandise Mania Ltd
Manchester City Council,Chief Executives,Infrastructure Fees,11.12.2015,5100830889,"10,221.00",Parkeon Ltd
Manchester City Council,Chief Executives,Training and Development,11.12.2015,5100831415,"9,100.00",We Are Squared
Manchester City Council,Chief Executives,Agency staff provision,11.12.2015,5100831494,"7,244.40",Hays Personnel
Manchester City Council,Chief Executives,ICT Sup & Maintnance,11.12.2015,5100830949,"7,053.96",Ibm United Kingdom Financial Serv.L
Manchester City Council,Chief Executives,Printing,11.12.2015,5100831458,"4,653.40",Merchandise Mania Ltd
Manchester City Council,Chief Executives,Rents,11.12.2015,5100830166,"3,600.00",Principal Agent Management Ltd
Manchester City Council,Chief Executives,Landline Telephone,11.12.2015,1904904147,"2,235.46",Vodafone (Ex C&W)
Manchester City Council,Chief Executives,Postage,11.12.2015,5100831145,"1,821.69",Royal Mail Group Plc
Manchester City Council,Chief Executives,I T Provision,11.12.2015,5100831451,"1,385.00",Nuway Audio Visual Ltd
Manchester City Council,Chief Executives,Rents,11.12.2015,5100830161,"1,177.83",Principal Agent Management Ltd
Manchester City Council,Chief Executives,I T Provision,11.12.2015,5100830660,945.00,Disaster Recovery Services Ltd
Manchester City Council,Chief Executives,Payments to Sub-Contractors,11.12.2015,1904909016,500.00,Martin Hambleton Photography
Manchester City Council,Regeneration Finance,Printing,11.12.2015,5100831114,"11,347.36",VIP-System Ltd
Manchester City Council,Regeneration Finance,CRB Fees,11.12.2015,5100831168,"11,132.00",Disclosure & Barring Service
Manchester City Council,Regeneration Finance,Professional fees,11.12.2015,5100829249,"10,237.59",Turner & Townsend Cost
Manchester City Council,Regeneration Finance,Legal Fees,11.12.2015,5100831376,"5,675.00",Kings Chambers
Manchester City Council,Regeneration Finance,Professional fees,11.12.2015,5100831004,"4,098.00",GM Business Support Ltd
Manchester City Council,Regeneration Finance,Contract Cleaning External,11.12.2015,5100830956,"1,300.00",Restore Shred Limited
Manchester City Council,Regeneration Finance,Removal and Storage of Furniture,11.12.2015,5100830796,837.56,BCL
Manchester City Council,Regeneration Finance,Professional fees,11.12.2015,5100829367,790.00,Survey Systems Ltd
Manchester City Council,Regeneration Finance,I T Provision,11.12.2015,5100829373,780.00,NSC LegacyData Solutions Ltd
Manchester City Council,Regeneration Finance,Professional fees,11.12.2015,5100831056,-568.80,NPS North West Ltd
Manchester City Council,General Fund,Levies,11.12.2015,1904582294,"3,697,100.00",GMCA
Manchester City Council,Insurance Fund,Insurance,11.12.2015,1904904199,810.00,CB Conditioning
Manchester City Council,Insurance Fund,Bal of Rsk InsPrem,11.12.2015,1904902014,786.00,Gab Robins Uk Ltd
Manchester City Council,Manchester Leisure,Works and associated costs for Land and Buildings,14.12.2015,5100831109,"786,097.22",Laing O'Rourke Construction Ltd
Manchester City Council,Manchester Leisure,Payments for services,14.12.2015,5100830729,"2,435.00",Event Technical Support
Manchester City Council,Manchester Leisure,Goods purchased for resale in Council outlets,14.12.2015,5100830400,"1,863.00",Cornflower Ltd
Manchester City Council,Manchester Leisure,Payments to Sub-Contractors,14.12.2015,5100830766,"1,600.00",Clean-Up UK Limited
Manchester City Council,Manchester Leisure,Payments to Sub-Contractors,14.12.2015,5100830032,940.00,Groundwork Landscapes Ltd
Manchester City Council,Manchester Leisure,Goods purchased for resale in Council outlets,14.12.2015,5100830397,787.50,Cornflower Ltd
Manchester City Council,Manchester Leisure,Expenditure re Internal Trading Ordered Externally,14.12.2015,5100831476,718.00,Speedy Hire Centres (Northern) Ltd
Manchester City Council,Manchester Leisure,Payments to Sub-Contractors,14.12.2015,5100830767,600.00,Clean-Up UK Limited
Manchester City Council,Manchester Leisure,Professional fees,14.12.2015,5100831575,600.00,The Manufacturing Institute
Manchester City Council,Manchester Leisure,Agency staff provision,14.12.2015,5100831696,546.61,Eden Brown Synergy
Manchester City Council,Manchester Leisure,Agency staff provision,14.12.2015,5100831680,-546.61,Eden Brown Synergy
Manchester City Council,Manchester Leisure,Expenditure re Internal Trading Ordered Externally,14.12.2015,5100831479,-718.00,Speedy Hire Centres (Northern) Ltd
Manchester City Council,Manchester Leisure,Grant and subscriptions awarded,14.12.2015,5100831795,"-2,500.00",The Fusilier Museum
Manchester City Council,Libraries and Theatres,Expenditure re Internal Trading Ordered Externally,14.12.2015,5100831473,"6,410.00",Sharpfutures Manchester CIC
Manchester City Council,Hospitality + Trading Services,Payments to Sub-Contractors,14.12.2015,5100830298,"65,763.40",Rosgal Ltd
Manchester City Council,Hospitality + Trading Services,Payments to Sub-Contractors,14.12.2015,5100830281,"32,413.41",Rosgal Ltd
Manchester City Council,Hospitality + Trading Services,Internal Repairs and Maintenance for buildings,14.12.2015,5100831524,"28,628.92",Manchester Working Ltd
Manchester City Council,Hospitality + Trading Services,Payments to Sub-Contractors,14.12.2015,5100830128,"25,808.11",Rosgal Ltd
Manchester City Council,Hospitality + Trading Services,Payments to Sub-Contractors,14.12.2015,5100831484,"20,855.25",Kenny Bros (Civil Eng) Ltd
Manchester City Council,Hospitality + Trading Services,Compensation Payments,14.12.2015,1904902011,"15,000.00",Thompsons Solicitors
Manchester City Council,Hospitality + Trading Services,Electricity,14.12.2015,5100830732,"14,980.00",Event Technical Support
Manchester City Council,Hospitality + Trading Services,Vehicle Fuel Costs,14.12.2015,5100830971,"14,952.85",Carlton Fuels Ltd
Manchester City Council,Hospitality + Trading Services,Hire of Machinery,14.12.2015,5100831186,"13,745.69",Fast Hire UK
Manchester City Council,Hospitality + Trading Services,Hire of Equipment,14.12.2015,5100830849,"13,660.35",Parkeon Ltd
Manchester City Council,Hospitality + Trading Services,Payments to Sub-Contractors,14.12.2015,5100830277,"12,639.09",Rosgal Ltd
Manchester City Council,Hospitality + Trading Services,Payments to Sub-Contractors,14.12.2015,5100830716,"8,906.30",Rosgal Ltd
Manchester City Council,Hospitality + Trading Services,Vehicle Costs,14.12.2015,5100831187,"5,938.12",Stapletons Tyre Services
Manchester City Council,Hospitality + Trading Services,Payments to Sub-Contractors,14.12.2015,5100831666,"5,023.48",Custodian Monitoring
Manchester City Council,Hospitality + Trading Services,Rents,14.12.2015,1904904193,"4,857.13",St Modwen Corporate Services Ltd
Manchester City Council,Hospitality + Trading Services,Rents,14.12.2015,1904910838,"4,766.86",Danish UK Property Management Ltd
Manchester City Council,Hospitality + Trading Services,Electricity,14.12.2015,5100830731,"4,620.00",Event Technical Support
Manchester City Council,Hospitality + Trading Services,Payments to Sub-Contractors,14.12.2015,5100831755,"4,101.25",Clearway Drainage Systems Ltd
Manchester City Council,Hospitality + Trading Services,Payments to Sub-Contractors,14.12.2015,5100830276,"3,312.00",Rosgal Ltd
Manchester City Council,Hospitality + Trading Services,Payments to Sub-Contractors,14.12.2015,5100831758,"3,267.35",Clearway Drainage Systems Ltd
Manchester City Council,Hospitality + Trading Services,Hire of Machinery,14.12.2015,5100831189,"3,140.50",Fast Hire UK
Manchester City Council,Hospitality + Trading Services,Vehicle Hire Costs,14.12.2015,5100831508,"2,720.82",Dawson Rentals Sweepers
Manchester City Council,Hospitality + Trading Services,Rents,14.12.2015,1904904194,"2,553.28",St Modwen Corporate Services Ltd
Manchester City Council,Hospitality + Trading Services,Payments to Sub-Contractors,14.12.2015,5100831468,"2,368.12",Kenny Bros (Civil Eng) Ltd
Manchester City Council,Hospitality + Trading Services,Vehicle Hire Costs,14.12.2015,5100831504,"1,878.48",Dawson Rentals Sweepers
Manchester City Council,Hospitality + Trading Services,Tipping - Tonnage,14.12.2015,5100831181,"1,752.00",J.Hopkins (Contractors) Ltd.
Manchester City Council,Hospitality + Trading Services,Electricity,14.12.2015,5100830730,"1,662.00",Event Technical Support
Manchester City Council,Hospitality + Trading Services,Catering Provisions,14.12.2015,1904911789,"1,579.26",Brake Bros Foodservice Ltd
Manchester City Council,Hospitality + Trading Services,I T Provision,14.12.2015,5100831648,"1,500.00",Concerto Support Services
Manchester City Council,Hospitality + Trading Services,Payments to Sub-Contractors,14.12.2015,5100831759,"1,482.00",Clearway Drainage Systems Ltd
Manchester City Council,Hospitality + Trading Services,Catering Provisions,14.12.2015,1904911776,"1,349.91",Brake Bros Foodservice Ltd
Manchester City Council,Hospitality + Trading Services,Payments to Sub-Contractors,14.12.2015,5100830829,"1,345.90",Pro-Kill Environmental Services
Manchester City Council,Hospitality + Trading Services,Agency staff provision,14.12.2015,5100831576,"1,320.00",Redacted Personal Information
Manchester City Council,Hospitality + Trading Services,Payments to Sub-Contractors,14.12.2015,5100831761,"1,132.42",Clearway Drainage Systems Ltd
Manchester City Council,Hospitality + Trading Services,Training and Development,14.12.2015,5100829750,"1,100.00",AVF Marketing
Manchester City Council,Hospitality + Trading Services,Hire of Machinery,14.12.2015,5100831510,"1,038.50",R & M Developments Ltd
Manchester City Council,Hospitality + Trading Services,Hire of Machinery,14.12.2015,5100831506,"1,012.50",R & M Developments Ltd
Manchester City Council,Hospitality + Trading Services,Tipping - Tonnage,14.12.2015,5100831182,"1,009.60",J.Hopkins (Contractors) Ltd.
Manchester City Council,Hospitality + Trading Services,Catering Provisions,14.12.2015,1904911793,833.14,Brake Bros Foodservice Ltd
Manchester City Council,Hospitality + Trading Services,Catering Provisions,14.12.2015,1904911891,794.54,Brake Bros Foodservice Ltd
Manchester City Council,Hospitality + Trading Services,Building Materials for direct delivery,14.12.2015,5100830861,775.00,P.F. Cusack (Tools Supplies) Ltd
Manchester City Council,Hospitality + Trading Services,Payments to Sub-Contractors,14.12.2015,5100831772,753.00,Clearway Drainage Systems Ltd
Manchester City Council,Hospitality + Trading Services,Building Materials for direct delivery,14.12.2015,1904911903,745.00,Ecomix Concrete Ltd
Manchester City Council,Hospitality + Trading Services,Building Materials for direct delivery,14.12.2015,1904911904,745.00,Ecomix Concrete Ltd
Manchester City Council,Hospitality + Trading Services,Agency staff provision,14.12.2015,5100830670,684.76,Redacted Personal Information
Manchester City Council,Hospitality + Trading Services,Catering Provisions,14.12.2015,1904911799,681.41,Brake Bros Foodservice Ltd
Manchester City Council,Hospitality + Trading Services,Hire of Machinery,14.12.2015,5100831673,680.20,Mastacab LLP
Manchester City Council,Hospitality + Trading Services,Payments to Sub-Contractors,14.12.2015,5100831773,665.00,Clearway Drainage Systems Ltd
Manchester City Council,Hospitality + Trading Services,Contract Cleaning External,14.12.2015,5100830442,650.00,Rentokil Initial Services Ltd
Manchester City Council,Hospitality + Trading Services,Catering Provisions,14.12.2015,1904911822,644.11,Brake Bros Foodservice Ltd
Manchester City Council,Hospitality + Trading Services,Payments to Sub-Contractors,14.12.2015,5100831763,635.00,Clearway Drainage Systems Ltd
Manchester City Council,Hospitality + Trading Services,Catering Provisions,14.12.2015,1904911800,623.00,Brake Bros Foodservice Ltd
Manchester City Council,Hospitality + Trading Services,Purchase of stores for re-distribution,14.12.2015,5100831623,584.40,Wolseley Util Ltd T/A Burdens
Manchester City Council,Hospitality + Trading Services,Catering Provisions,14.12.2015,1904911876,580.90,Chicken Joes Limited
Manchester City Council,Hospitality + Trading Services,Catering Provisions,14.12.2015,1904911769,574.81,Brake Bros Foodservice Ltd
Manchester City Council,Hospitality + Trading Services,Catering Provisions,14.12.2015,1904911889,565.70,Brake Bros Foodservice Ltd
Manchester City Council,Hospitality + Trading Services,Payments to Sub-Contractors,14.12.2015,5100831764,560.00,Clearway Drainage Systems Ltd
Manchester City Council,Hospitality + Trading Services,Catering Provisions,14.12.2015,1904911802,551.31,Brake Bros Foodservice Ltd
Manchester City Council,Hospitality + Trading Services,Payments to Sub-Contractors,14.12.2015,5100831765,538.16,Clearway Drainage Systems Ltd
Manchester City Council,Hospitality + Trading Services,Catering Provisions,14.12.2015,1904911862,535.66,Brake Bros Foodservice Ltd
Manchester City Council,Hospitality + Trading Services,Catering Provisions,14.12.2015,1904911786,524.18,Brake Bros Foodservice Ltd
Manchester City Council,Hospitality + Trading Services,Catering Provisions,14.12.2015,1904911820,515.96,Brake Bros Foodservice Ltd
Manchester City Council,Hospitality + Trading Services,Hire of Machinery,14.12.2015,5100831644,514.35,GHL Liftrucks Ltd
Manchester City Council,Hospitality + Trading Services,Catering Provisions,14.12.2015,1904911838,507.63,TC Meats Ltd
Manchester City Council,Hospitality + Trading Services,Catering Provisions,14.12.2015,1904911785,-520.14,Brake Bros Foodservice Ltd
Manchester City Council,Environment and Operations,Compensation Payments,14.12.2015,1904909028,"12,700.00",Recovery Assist Compensation
Manchester City Council,Environment and Operations,Equipment,14.12.2015,5100830506,"4,263.04",Amey Highways Lighting (Manchester)
Manchester City Council,Environment and Operations,Compensation Payments,14.12.2015,1904908574,"3,890.00",Hampson Hughes Solicitors
Manchester City Council,Environment and Operations,External repairs and maintenance for buildings,14.12.2015,5100829547,"2,548.98",Ramora Ltd
Manchester City Council,Environment and Operations,Compensation Payments,14.12.2015,1904904181,"2,400.00",The Rose Partnership
Manchester City Council,Environment and Operations,Compensation Payments,14.12.2015,1904904181,"2,104.00",The Rose Partnership
Manchester City Council,Environment and Operations,Building Materials for direct delivery,14.12.2015,5100829715,"1,885.00",Groundwork Landscapes Ltd
Manchester City Council,Environment and Operations,Building Materials for direct delivery,14.12.2015,5100829713,"1,680.00",Groundwork Landscapes Ltd
Manchester City Council,Environment and Operations,Works and associated costs for Land and Buildings,14.12.2015,5100831517,"1,126.88",GMCA
Manchester City Council,Environment and Operations,Payments to Sub-Contractors,14.12.2015,5100831191,980.00,Fletcher Stewart (Stockport) Ltd
Manchester City Council,Environment and Operations,Construction Works,14.12.2015,5100830498,906.46,Amey Highways Lighting (Manchester)
Manchester City Council,Environment and Operations,Payments to Sub-Contractors,14.12.2015,5100830163,774.00,Osborne Richardson
Manchester City Council,Environment and Operations,Compensation Payments,14.12.2015,1904904186,637.00,Department For Work & Pensions
Manchester City Council,Environment and Operations,Works and associated costs for Land and Buildings,14.12.2015,5100831516,625.96,GMCA
Manchester City Council,Environment and Operations,Compensation Payments,14.12.2015,5100831463,575.00,Redacted Personal Information
Manchester City Council,Environment and Operations,Payments to Sub-Contractors,14.12.2015,5100830162,551.25,Osborne Richardson
Manchester City Council,Adult Social Care,Third party payments to Health Authority,14.12.2015,5100830885,"426,023.00",Manchester Mental Health & Social C
Manchester City Council,Adult Social Care,Payments for services,14.12.2015,5100831008,"43,056.00",Greater Manchester West
Manchester City Council,Adult Social Care,Professional fees,14.12.2015,5100830258,"35,000.00",Cruden Group Ltd
Manchester City Council,Adult Social Care,Professional fees,14.12.2015,5100830666,"34,541.43",Keepmoat Regeneration (Bramall) Ltd
Manchester City Council,Adult Social Care,Payments for services,14.12.2015,5100831647,"32,751.03",The Together Trust
Manchester City Council,Adult Social Care,Third party payments relating to Voluntary Organisations,14.12.2015,5100831529,"32,092.00",Family Action
Manchester City Council,Adult Social Care,Payments for services,14.12.2015,5100829950,"31,845.00",Cheshire & Greater Manchester
Manchester City Council,Adult Social Care,Third party payments relating to Voluntary Organisations,14.12.2015,5100830256,"30,436.23",Shipley College
Manchester City Council,Adult Social Care,External repairs and maintenance for buildings,14.12.2015,5100830357,"21,944.26",Herbert T Forrest Ltd
Manchester City Council,Adult Social Care,Home Care ,14.12.2015,5100830662,"21,600.00",One Education Ltd
Manchester City Council,Adult Social Care,Transport Coach Hire,14.12.2015,5100831541,"13,734.00",T/A TC Travel Svs Ltd
Manchester City Council,Adult Social Care,Seconded Employees,14.12.2015,5100831247,"13,639.46",Oldham Borough Council
Manchester City Council,Adult Social Care,Rents,14.12.2015,5100831460,"12,782.13",M & Q Properties Management Ltd
Manchester City Council,Adult Social Care,Supporting People Payments,14.12.2015,5100830364,"11,272.16",People First Housing Association
Manchester City Council,Adult Social Care,Grant and subscriptions awarded,14.12.2015,5100830137,"10,916.16",Manchester Young Lives
Manchester City Council,Adult Social Care,Transport Coach Hire,14.12.2015,5100830799,"10,107.00",Saltax Ltd
Manchester City Council,Adult Social Care,Third party payments relating to Voluntary Organisations,14.12.2015,5100831649,"9,328.50",Proper Job Theatre company
Manchester City Council,Adult Social Care,Agency staff provision,14.12.2015,5100830073,"8,923.47",P S Recruitment Specialists Ltd
Manchester City Council,Adult Social Care,Third party payments relating to Voluntary Organisations,14.12.2015,5100831586,"8,586.04",Talbot House Support Centre
Manchester City Council,Adult Social Care,Third party payments relating to Voluntary Organisations,14.12.2015,5100831580,"6,737.00",Great Places Housing Association
Manchester City Council,Adult Social Care,Transport Coach Hire,14.12.2015,5100830683,"5,517.50",Connect Cars Ltd
Manchester City Council,Adult Social Care,Third party payments relating to Voluntary Organisations,14.12.2015,5100831271,"5,373.25",Manchester Mind
Manchester City Council,Adult Social Care,Payments for services,14.12.2015,5100831595,"4,889.08",The Together Trust
Manchester City Council,Adult Social Care,Supporting People Payments,14.12.2015,5100829838,"4,200.75",Praxis Care Group
Manchester City Council,Adult Social Care,Grant and subscriptions awarded,14.12.2015,5100830693,"3,916.00",Trinity House Community Resource Ce
Manchester City Council,Adult Social Care,Agency staff provision,14.12.2015,5100831700,"3,789.95",Eden Brown Synergy
Manchester City Council,Adult Social Care,Agency staff provision,14.12.2015,5100831697,"3,735.45",Eden Brown Synergy
Manchester City Council,Adult Social Care,Third party payments relating to Voluntary Organisations,14.12.2015,5100830722,"3,712.50",Chorlton Good Neighbours
Manchester City Council,Adult Social Care,Third party payments relating to Voluntary Organisations,14.12.2015,5100830626,"3,597.00",Path Yorkshire
Manchester City Council,Adult Social Care,Third party payments relating to Voluntary Organisations,14.12.2015,5100831310,"3,179.00",Manchester Carers Forum
Manchester City Council,Adult Social Care,Third party payments relating to Voluntary Organisations,14.12.2015,5100831355,"3,179.00",Manchester Carers Forum
Manchester City Council,Adult Social Care,Third party payments relating to Voluntary Organisations,14.12.2015,5100831361,"3,179.00",Manchester Carers Forum
Manchester City Council,Adult Social Care,Payments for services,14.12.2015,5100831596,"3,096.25",The Together Trust
Manchester City Council,Adult Social Care,Agency staff provision,14.12.2015,5100830073,"3,082.28",P S Recruitment Specialists Ltd
Manchester City Council,Adult Social Care,Third party payments relating to Voluntary Organisations,14.12.2015,5100831565,"2,984.00",Connect Support Ltd
Manchester City Council,Adult Social Care,Transport Coach Hire,14.12.2015,5100830990,"2,499.00",Nelson Transport
Manchester City Council,Adult Social Care,Grant and subscriptions awarded,14.12.2015,5100831670,"2,289.00",Ofsted
Manchester City Council,Adult Social Care,Third party payments relating to Voluntary Organisations,14.12.2015,5100830663,"2,250.00",Trinity House Community Resource Ce
Manchester City Council,Adult Social Care,Agency staff provision,14.12.2015,5100830105,"2,191.11",Barker Ross Health & Social Care
Manchester City Council,Adult Social Care,Grant and subscriptions awarded,14.12.2015,5100830692,"2,055.00",MaD Theatre Company
Manchester City Council,Adult Social Care,Rents,14.12.2015,5100831534,"2,017.50",Longsight (Aisha) Nursery
Manchester City Council,Adult Social Care,Rents,14.12.2015,5100831540,"2,017.50",Longsight (Aisha) Nursery
Manchester City Council,Adult Social Care,Third party payments relating to Voluntary Organisations,14.12.2015,5100830280,"1,950.00",Didsbury Good Neighbours Ltd
Manchester City Council,Adult Social Care,Agency staff provision,14.12.2015,5100830105,"1,828.63",Barker Ross Health & Social Care
Manchester City Council,Adult Social Care,Agency staff provision,14.12.2015,5100830105,"1,651.64",Barker Ross Health & Social Care
Manchester City Council,Adult Social Care,Payments for services,14.12.2015,5100830090,"1,605.56",Illy Computer Systems Ltd
Manchester City Council,Adult Social Care,Grant and subscriptions awarded,14.12.2015,5100830518,"1,573.33",The Big Life Company
Manchester City Council,Adult Social Care,Agency staff provision,14.12.2015,5100830073,"1,403.58",P S Recruitment Specialists Ltd
Manchester City Council,Adult Social Care,Third party payments relating to Voluntary Organisations,14.12.2015,5100830487,"1,376.99",The Lesbian & Gay Foundation
Manchester City Council,Adult Social Care,Agency staff provision,14.12.2015,5100831698,"1,239.60",Eden Brown Synergy
Manchester City Council,Adult Social Care,Payments for services,14.12.2015,5100831471,"1,200.00",The Factory Youth Zone
Manchester City Council,Adult Social Care,Third party payments relating to Voluntary Organisations,14.12.2015,5100830131,"1,197.55",Manchester Young Lives
Manchester City Council,Adult Social Care,Third party payments relating to Voluntary Organisations,14.12.2015,5100830132,"1,197.55",Manchester Young Lives
Manchester City Council,Adult Social Care,Third party payments relating to Voluntary Organisations,14.12.2015,5100830135,"1,197.55",Manchester Young Lives
Manchester City Council,Adult Social Care,Third party payments relating to Voluntary Organisations,14.12.2015,5100830136,"1,197.55",Manchester Young Lives
Manchester City Council,Adult Social Care,Agency staff provision,14.12.2015,5100830105,"1,127.47",Barker Ross Health & Social Care
Manchester City Council,Adult Social Care,Building Materials for direct delivery,14.12.2015,5100831675,"1,120.00",Illingworth Ingham (M/cR)
Manchester City Council,Adult Social Care,Agency staff provision,14.12.2015,5100830105,"1,063.19",Barker Ross Health & Social Care
Manchester City Council,Adult Social Care,Agency staff provision,14.12.2015,5100831699,"1,003.81",Eden Brown Synergy
Manchester City Council,Adult Social Care,Agency staff provision,14.12.2015,5100831694,968.45,Eden Brown Synergy
Manchester City Council,Adult Social Care,Agency staff provision,14.12.2015,5100831695,968.45,Eden Brown Synergy
Manchester City Council,Adult Social Care,Agency staff provision,14.12.2015,5100831643,960.93,Ashberry Recruitment Ltd
Manchester City Council,Adult Social Care,Third party payments relating to Voluntary Organisations,14.12.2015,5100830134,951.29,Manchester Young Lives
Manchester City Council,Adult Social Care,Subsistence and Conference Expenses,14.12.2015,5100831665,918.00,Open Awards
Manchester City Council,Adult Social Care,Agency staff provision,14.12.2015,5100831643,917.90,Ashberry Recruitment Ltd
Manchester City Council,Adult Social Care,Agency staff provision,14.12.2015,5100831643,851.60,Ashberry Recruitment Ltd
Manchester City Council,Adult Social Care,Agency staff provision,14.12.2015,5100831643,774.20,Ashberry Recruitment Ltd
Manchester City Council,Adult Social Care,Third party payments relating to Voluntary Organisations,14.12.2015,5100830699,765.00,Afro Carribean Care Group
Manchester City Council,Adult Social Care,Professional fees,14.12.2015,5100831567,757.00,Whitemoss Club For Young People
Manchester City Council,Adult Social Care,Legal Fees,14.12.2015,1904911895,750.00,M & M Medical Reports Limited
Manchester City Council,Adult Social Care,Agency staff provision,14.12.2015,5100831643,730.10,Ashberry Recruitment Ltd
Manchester City Council,Adult Social Care,Agency staff provision,14.12.2015,5100830105,719.57,Barker Ross Health & Social Care
Manchester City Council,Adult Social Care,Professional fees,14.12.2015,5100831292,700.00,Liquid Personnel Ltd
Manchester City Council,Adult Social Care,Third party payments relating to Voluntary Organisations,14.12.2015,5100829780,675.00,The Lesbian & Gay Foundation
Manchester City Council,Adult Social Care,Third party payments relating to Voluntary Organisations,14.12.2015,5100830725,668.50,The Generation Project
Manchester City Council,Adult Social Care,Third party payments relating to Voluntary Organisations,14.12.2015,5100831571,625.00,African & Caribbean Mental Health
Manchester City Council,Adult Social Care,Agency staff provision,14.12.2015,5100830105,598.50,Barker Ross Health & Social Care
Manchester City Council,Adult Social Care,Agency staff provision,14.12.2015,5100831643,590.90,Ashberry Recruitment Ltd
Manchester City Council,Adult Social Care,Agency staff provision,14.12.2015,5100830105,576.94,Barker Ross Health & Social Care
Manchester City Council,Adult Social Care,Subsistence and Conference Expenses,14.12.2015,5100831662,519.00,Open Awards
Manchester City Council,Adult Social Care,Equipment,14.12.2015,5100830685,507.10,Aidapt Bathrooms Ltd
Manchester City Council,Adult Social Care,Agency staff provision,14.12.2015,5100831643,505.75,Ashberry Recruitment Ltd
Manchester City Council,Adult Social Care,Agency staff provision,14.12.2015,5100831687,-664.16,Eden Brown Synergy
Manchester City Council,Adult Social Care,Agency staff provision,14.12.2015,5100831682,-968.45,Eden Brown Synergy
Manchester City Council,Adult Social Care,Agency staff provision,14.12.2015,5100831683,-968.45,Eden Brown Synergy
Manchester City Council,Adult Social Care,Agency staff provision,14.12.2015,5100831678,"-1,003.81",Eden Brown Synergy
Manchester City Council,Adult Social Care,Agency staff provision,14.12.2015,5100831684,"-1,021.23",Eden Brown Synergy
Manchester City Council,Adult Social Care,Agency staff provision,14.12.2015,5100831686,"-1,283.40",Eden Brown Synergy
Manchester City Council,Adult Social Care,Third party payments relating to Voluntary Organisations,14.12.2015,5100831581,"-2,984.00",Connect Support Ltd
Manchester City Council,Adult Social Care,Agency staff provision,14.12.2015,5100831681,"-3,735.45",Eden Brown Synergy
Manchester City Council,Adult Social Care,Agency staff provision,14.12.2015,5100831679,"-3,789.95",Eden Brown Synergy
Manchester City Council,Childrens Services,Works and associated costs for Land and Buildings,14.12.2015,5100830519,"384,203.31",Laing O'Rourke Construction Ltd
Manchester City Council,Childrens Services,Works and associated costs for Land and Buildings,14.12.2015,5100830522,"252,434.54",Laing O'Rourke Construction Ltd
Manchester City Council,Childrens Services,Works and associated costs for Land and Buildings,14.12.2015,5100830667,"20,533.63",Keepmoat Regeneration (Bramall) Ltd
Manchester City Council,Childrens Services,Building Works,14.12.2015,5100830665,"9,198.22",Keepmoat Regeneration Ltd
Manchester City Council,Childrens Services,Works and associated costs for Land and Buildings,14.12.2015,5100830360,"8,822.79",Keepmoat Regeneration (Bramall) Ltd
Manchester City Council,Childrens Services,Building Works,14.12.2015,5100830665,"8,151.78",Keepmoat Regeneration Ltd
Manchester City Council,Corporate Services,Long Term Debtors,14.12.2015,5100831709,"738,943.40",LQ Developments Limited
Manchester City Council,Corporate Services,Travel Season TLS,14.12.2015,5100831082,795.50,Burnley & Pendle Travel Ltd
Manchester City Council,Corporate Services,Training and Development,14.12.2015,5100830366,736.00,Skills and Work Solutions Ltd
Manchester City Council,Corporate Services,Grant and subscriptions awarded,14.12.2015,5100812701,720.00,Rating Publishing
Manchester City Council,Corporate Services,Collection Commision,14.12.2015,5100830259,539.63,Rossendales Ltd
Manchester City Council,Housing General Fund,Council Dwelling Adaptations,14.12.2015,5100831400,"140,119.13",Solarking Commercial
Manchester City Council,Housing General Fund,Council Dwelling Adaptations,14.12.2015,5100831588,"76,568.24",Morrison Facilities Services Ltd
Manchester City Council,Housing General Fund,Council Dwelling Adaptations,14.12.2015,5100830548,"42,132.38",Solargen Energy Ltd
Manchester City Council,Housing Revenue Account,TMO Fees,14.12.2015,5100830976,"23,643.60",SHOUT TMO
Manchester City Council,Housing Revenue Account,Works and associated costs for Land and Buildings,14.12.2015,5100831558,"4,162.50",Buttress
Manchester City Council,Housing Revenue Account,Council Dwelling Adaptations,14.12.2015,5100831570,"2,263.40",IG Doors Ltd
Manchester City Council,Housing Revenue Account,Council Dwelling Adaptations,14.12.2015,5100831386,"2,089.30",SIG Roofing Supplies
Manchester City Council,Housing Revenue Account,Council Dwelling Adaptations,14.12.2015,5100831386,"2,058.34",SIG Roofing Supplies
Manchester City Council,Chief Executives,Building Works,14.12.2015,5100831393,"1,369,908.80",Laing O'Rourke Construction Ltd
Manchester City Council,Chief Executives,Building Works,14.12.2015,5100831393,"51,866.84",Laing O'Rourke Construction Ltd
Manchester City Council,Chief Executives,Equipment,14.12.2015,5100831591,"14,269.32",Xerox (Uk) Ltd
Manchester City Council,Chief Executives,Works and associated costs for Land and Buildings,14.12.2015,5100816952,"12,977.85",HOME
Manchester City Council,Chief Executives,Agency staff provision,14.12.2015,5100830073,"8,002.34",P S Recruitment Specialists Ltd
Manchester City Council,Chief Executives,Agency staff provision,14.12.2015,5100830105,"6,347.77",Barker Ross Health & Social Care
Manchester City Council,Chief Executives,Agency staff provision,14.12.2015,5100831706,"6,012.31",Eden Brown Synergy
Manchester City Council,Chief Executives,Agency staff provision,14.12.2015,5100830059,"2,500.00",Rullion Resource Limited
Manchester City Council,Chief Executives,Infrastructure Fees,14.12.2015,5100830069,"2,155.00",Rullion Resource Limited
Manchester City Council,Chief Executives,Agency staff provision,14.12.2015,5100830059,"2,000.00",Rullion Resource Limited
Manchester City Council,Chief Executives,Examination Fees,14.12.2015,5100831550,"1,815.00",ROAR Forensics Ltd
Manchester City Council,Chief Executives,Equipment,14.12.2015,5100831412,"1,801.13",Paragon Group UK PLc
Manchester City Council,Chief Executives,Infrastructure Fees,14.12.2015,5100830059,"1,724.00",Rullion Resource Limited
Manchester City Council,Chief Executives,Compensation Payments,14.12.2015,1904911901,"1,635.00",DWF LLP
Manchester City Council,Chief Executives,Examination Fees,14.12.2015,5100831542,"1,565.00",ROAR Forensics Ltd
Manchester City Council,Chief Executives,Agency staff provision,14.12.2015,5100831707,"1,204.00",Caritas Recruitment
Manchester City Council,Chief Executives,Agency staff provision,14.12.2015,5100831643,"1,173.66",Ashberry Recruitment Ltd
Manchester City Council,Chief Executives,Furniture,14.12.2015,5100830457,"1,085.00",VP Bastion Ltd
Manchester City Council,Chief Executives,Agency staff provision,14.12.2015,5100830098,"1,035.00",Deekay Technical Recruitment Ltd
Manchester City Council,Chief Executives,Agency staff provision,14.12.2015,5100831701,968.45,Eden Brown Synergy
Manchester City Council,Chief Executives,Examination Fees,14.12.2015,5100831546,925.00,ROAR Forensics Ltd
Manchester City Council,Chief Executives,Printing,14.12.2015,5100831103,785.00,Intermart
Manchester City Council,Chief Executives,Printing,14.12.2015,5100829934,550.00,Astra Signs
Manchester City Council,Chief Executives,Agency staff provision,14.12.2015,5100831676,-968.45,Eden Brown Synergy
Manchester City Council,Chief Executives,Agency staff provision,14.12.2015,5100831704,"-1,204.00",Caritas Recruitment
Manchester City Council,Chief Executives,Agency staff provision,14.12.2015,5100831703,"-6,012.31",Eden Brown Synergy
Manchester City Council,Regeneration Finance,Grant and subscriptions awarded,14.12.2015,5100830263,"32,874.00",The White Room Consultancy Ltd
Manchester City Council,Regeneration Finance,Legal Fees,14.12.2015,5100831527,"24,865.00",Slater & Gordon (UK) LLP
Manchester City Council,Regeneration Finance,Agency staff provision,14.12.2015,5100831573,"14,389.30",Homes and Communities Agency
Manchester City Council,Regeneration Finance,Professional fees,14.12.2015,5100831474,"7,000.00",Downtown In Business Ltd
Manchester City Council,Regeneration Finance,Grant and subscriptions awarded,14.12.2015,5100830656,"2,265.00",Thompson Reuters
Manchester City Council,Regeneration Finance,Professional fees,14.12.2015,5100830129,"1,680.00",Redacted Personal Information
Manchester City Council,Regeneration Finance,Professional fees,14.12.2015,5100830904,"1,620.00",Parides Consultancy Ltd
Manchester City Council,Regeneration Finance,Agency staff provision,14.12.2015,5100830098,"1,150.00",Deekay Technical Recruitment Ltd
Manchester City Council,Regeneration Finance,Internal Repairs and Maintenance for buildings,14.12.2015,5100831526,971.89,Manchester Working Ltd
Manchester City Council,Manchester Leisure,Building Materials for direct delivery,15.12.2015,1904912855,"4,147.00",Design Supply Limited
Manchester City Council,Manchester Leisure,Licences Purchase,15.12.2015,5100831935,"2,500.00",Solus UK Ltd
Manchester City Council,Hospitality + Trading Services,Security,15.12.2015,5100831992,"392,225.99",Group 4 Total Security Ltd T/A G4S
Manchester City Council,Hospitality + Trading Services,Building Materials for direct delivery,15.12.2015,5100831096,"41,358.27",Amey Highways Lighting (Manchester)
Manchester City Council,Hospitality + Trading Services,Vehicle Hire Costs,15.12.2015,5100831880,"2,730.00",Gullivers Truck Hire Ltd
Manchester City Council,Hospitality + Trading Services,Vehicle Hire Costs,15.12.2015,5100831879,"2,625.00",Gullivers Truck Hire Ltd
Manchester City Council,Hospitality + Trading Services,Building Materials for direct delivery,15.12.2015,5100831890,"2,303.79",TARMAC
Manchester City Council,Hospitality + Trading Services,Payments to Sub-Contractors,15.12.2015,5100830642,"1,890.04",Northern Marking Limited
Manchester City Council,Hospitality + Trading Services,Payments to Sub-Contractors,15.12.2015,5100830632,"1,490.00",Northern Marking Limited
Manchester City Council,Hospitality + Trading Services,Payments to Sub-Contractors,15.12.2015,5100830643,"1,350.00",Northern Marking Limited
Manchester City Council,Hospitality + Trading Services,Building Materials for direct delivery,15.12.2015,5100831883,"1,266.15",TARMAC
Manchester City Council,Hospitality + Trading Services,Catering Provisions,15.12.2015,1904912916,"1,105.74",Brake Bros Foodservice Ltd
Manchester City Council,Hospitality + Trading Services,Catering Provisions,15.12.2015,1904912913,814.66,Brake Bros Foodservice Ltd
Manchester City Council,Hospitality + Trading Services,Building Materials for direct delivery,15.12.2015,5100831898,780.08,TARMAC
Manchester City Council,Hospitality + Trading Services,Catering Provisions,15.12.2015,1904912939,574.38,Brake Bros Foodservice Ltd
Manchester City Council,Hospitality + Trading Services,Catering Provisions,15.12.2015,1904912946,561.98,Brake Bros Foodservice Ltd
Manchester City Council,Hospitality + Trading Services,Building Materials for direct delivery,15.12.2015,5100831893,538.56,TARMAC
Manchester City Council,Hospitality + Trading Services,Building Materials for direct delivery,15.12.2015,5100831912,516.95,TARMAC
Manchester City Council,Environment and Operations,Construction Works,15.12.2015,5100785720,"48,084.99",Colas Limited
Manchester City Council,Environment and Operations,Construction Works,15.12.2015,5100831299,"18,923.79",Vodafone (Ex C&W)
Manchester City Council,Environment and Operations,Payments to Sub-Contractors,15.12.2015,5100831088,"13,604.50",Vaisala Ltd
Manchester City Council,Environment and Operations,Building Materials for direct delivery,15.12.2015,5100831826,"9,433.79",Compass Minerals UK Ltd
Manchester City Council,Environment and Operations,Building Materials for direct delivery,15.12.2015,5100831834,"6,574.14",Compass Minerals UK Ltd
Manchester City Council,Environment and Operations,Building Materials for direct delivery,15.12.2015,5100831830,"5,625.44",Compass Minerals UK Ltd
Manchester City Council,Environment and Operations,Grounds Maintenance,15.12.2015,5100831951,"4,080.00",Didsbury Gardens Services Ltd
Manchester City Council,Environment and Operations,Construction Works,15.12.2015,5100815089,"1,607.35",Transport for Greater Manchester
Manchester City Council,Environment and Operations,Construction Works,15.12.2015,5100815089,"1,520.05",Transport for Greater Manchester
Manchester City Council,Environment and Operations,Personal needs of client,15.12.2015,5100831896,"1,000.00",Hemingways Marketing Services Ltd
Manchester City Council,Environment and Operations,Grounds Maintenance,15.12.2015,5100831949,"-4,080.00",Didsbury Gardens Services Ltd
Manchester City Council,Adult Social Care,Payments for services,15.12.2015,5100831715,"231,243.18",Standwalk Ltd
Manchester City Council,Adult Social Care,Private Finance and Public Private partnership initiatives,15.12.2015,5100829694,"73,621.68",NU3PS
Manchester City Council,Adult Social Care,Third party payments to Health Authority,15.12.2015,5100830884,"61,106.00",Manchester Mental Health & Social C
Manchester City Council,Adult Social Care,Payments for services,15.12.2015,5100831728,"28,300.00",United Response
Manchester City Council,Adult Social Care,Payments for services,15.12.2015,5100831726,"24,277.00",United Response
Manchester City Council,Adult Social Care,Payments for services,15.12.2015,5100831975,"20,854.70",H.G. Care Services Ltd
Manchester City Council,Adult Social Care,Extra Care Sheltd HP,15.12.2015,5100831563,"20,582.24",Carewest Limited
Manchester City Council,Adult Social Care,Payments for services,15.12.2015,5100831815,"18,744.57",The Together Trust
Manchester City Council,Adult Social Care,Carer Support Payments ,15.12.2015,5100831946,"14,768.32",Independent Living Alliance
Manchester City Council,Adult Social Care,Extra Care Sheltd HP,15.12.2015,5100831392,"14,172.73",DH Homecare Ltd (Direct Health)
Manchester City Council,Adult Social Care,Professional fees,15.12.2015,5100831989,"13,558.00",Time Specialist Support Ltd
Manchester City Council,Adult Social Care,Compensation Payments,15.12.2015,1904912000,"12,000.00",Abney Garsden Mcdonald
Manchester City Council,Adult Social Care,Payments for services,15.12.2015,5100831817,"11,578.73",The Together Trust
Manchester City Council,Adult Social Care,Payments for services,15.12.2015,5100831967,"11,235.00",Time Specialist Support Ltd
Manchester City Council,Adult Social Care,Supporting People Payments,15.12.2015,5100831418,"10,867.50",Chapter 1
Manchester City Council,Adult Social Care,Supporting People Payments,15.12.2015,5100831196,"9,786.00",Richmond Fellowship
Manchester City Council,Adult Social Care,Professional fees,15.12.2015,5100831991,"9,600.75",H.G. Care Services Ltd
Manchester City Council,Adult Social Care,Payments for services,15.12.2015,5100829730,"8,849.65",Age Concern Manchester
Manchester City Council,Adult Social Care,Bed & Breakfast Acc,15.12.2015,5100831926,"7,960.00",Redacted Personal Information
Manchester City Council,Adult Social Care,Grant and subscriptions awarded,15.12.2015,5100829714,"7,500.00",M13 Youth Project
Manchester City Council,Adult Social Care,Supporting People Payments,15.12.2015,5100831784,"7,296.70",New Leaf Supporting Independance
Manchester City Council,Adult Social Care,Third party payments relating to Voluntary Organisations,15.12.2015,5100831272,"6,395.50",Manchester Mind
Manchester City Council,Adult Social Care,Supporting People Payments,15.12.2015,5100831762,"6,219.92",Turning Point Services
Manchester City Council,Adult Social Care,Compensation Payments,15.12.2015,1904911896,"6,000.00",Abney Garsden Mcdonald
Manchester City Council,Adult Social Care,Grant and subscriptions awarded,15.12.2015,5100830314,"5,732.00",Water Adventure Centre
Manchester City Council,Adult Social Care,Professional fees,15.12.2015,5100831979,"5,326.00",Central Manchester University Hosp
Manchester City Council,Adult Social Care,Payments for services,15.12.2015,5100831809,"4,889.08",The Together Trust
Manchester City Council,Adult Social Care,Payments for services,15.12.2015,5100829730,"4,749.26",Age Concern Manchester
Manchester City Council,Adult Social Care,Transport Coach Hire,15.12.2015,5100830419,"4,704.00",Redacted Personal Information
Manchester City Council,Adult Social Care,Supporting People Payments,15.12.2015,5100830657,"4,592.24",People First Housing Association
Manchester City Council,Adult Social Care,Grant and subscriptions awarded,15.12.2015,5100831021,"4,453.25",Whitemoss Club For Young People
Manchester City Council,Adult Social Care,Supporting People Payments,15.12.2015,5100831730,"4,441.19",Tung Sing (Orient) Housing Assoc.Lt
Manchester City Council,Adult Social Care,Payments for services,15.12.2015,5100831811,"4,374.44",The Together Trust
Manchester City Council,Adult Social Care,Third party payments relating to Voluntary Organisations,15.12.2015,5100830953,"4,275.00",Caritas Diocese of Salford
Manchester City Council,Adult Social Care,Payments for services,15.12.2015,5100831731,"3,898.00",United Response
Manchester City Council,Adult Social Care,Supporting People Payments,15.12.2015,5100831356,"3,315.11",Future Directions CIC
Manchester City Council,Adult Social Care,Professional fees,15.12.2015,5100831735,"3,306.00",Redacted Personal Information
Manchester City Council,Adult Social Care,Supporting People Payments,15.12.2015,5100831356,"3,288.65",Future Directions CIC
Manchester City Council,Adult Social Care,Third party payments relating to Voluntary Organisations,15.12.2015,5100831273,"3,250.00",Manchester Mind
Manchester City Council,Adult Social Care,Payments for services,15.12.2015,5100831819,"3,226.25",The Together Trust
Manchester City Council,Adult Social Care,Third party payments relating to Voluntary Organisations,15.12.2015,5100830313,"3,081.60",Water Adventure Centre
Manchester City Council,Adult Social Care,Third party payments relating to Voluntary Organisations,15.12.2015,5100831025,"3,075.00",Assist
Manchester City Council,Adult Social Care,Supporting People Payments,15.12.2015,5100831356,"3,034.06",Future Directions CIC
Manchester City Council,Adult Social Care,Third party payments relating to Voluntary Organisations,15.12.2015,5100830311,"2,991.60",Water Adventure Centre
Manchester City Council,Adult Social Care,Third party payments relating to Voluntary Organisations,15.12.2015,5100831810,"2,532.00",Federation of Jewish Services
Manchester City Council,Adult Social Care,Third party payments relating to Voluntary Organisations,15.12.2015,5100831166,"2,523.10",St Lukes PCC St Lukes Art Project
Manchester City Council,Adult Social Care,Supporting People Payments,15.12.2015,5100831356,"2,455.23",Future Directions CIC
Manchester City Council,Adult Social Care,Third party payments relating to Voluntary Organisations,15.12.2015,5100831583,"2,385.00",Connect Support Ltd
Manchester City Council,Adult Social Care,Supporting People Payments,15.12.2015,5100831356,"2,276.38",Future Directions CIC
Manchester City Council,Adult Social Care,Grant Payments,15.12.2015,1904913019,"1,955.74",TFC Consultants INc
Manchester City Council,Adult Social Care,Third party payments relating to Voluntary Organisations,15.12.2015,5100830684,"1,950.00",People First Housing Association
Manchester City Council,Adult Social Care,Third party payments to Health Authority,15.12.2015,1904912819,"1,799.61",Chelsea & Westminster Hosp NHSFT
Manchester City Council,Adult Social Care,Supporting People Payments,15.12.2015,5100831356,"1,784.85",Future Directions CIC
Manchester City Council,Adult Social Care,Supporting People Payments,15.12.2015,5100831356,"1,770.25",Future Directions CIC
Manchester City Council,Adult Social Care,Furniture,15.12.2015,5100832002,"1,609.99",The Furnishing Service Ltd
Manchester City Council,Adult Social Care,Furniture,15.12.2015,5100832004,"1,609.99",The Furnishing Service Ltd
Manchester City Council,Adult Social Care,Supporting People Payments,15.12.2015,5100831356,"1,584.10",Future Directions CIC
Manchester City Council,Adult Social Care,Third party payments relating to Voluntary Organisations,15.12.2015,5100831543,"1,583.00",Levenshulme Good Neighbours
Manchester City Council,Adult Social Care,Grant and subscriptions awarded,15.12.2015,5100831171,"1,539.08",Whiz Project
Manchester City Council,Adult Social Care,Grant and subscriptions awarded,15.12.2015,5100831172,"1,539.08",Whiz Project
Manchester City Council,Adult Social Care,Third party payments relating to Voluntary Organisations,15.12.2015,5100831270,"1,520.25",4CT Limited
Manchester City Council,Adult Social Care,Third party payments relating to Voluntary Organisations,15.12.2015,5100830750,"1,500.00",Afro Carribean Care Group
Manchester City Council,Adult Social Care,Third party payments relating to Voluntary Organisations,15.12.2015,5100831287,"1,500.00",George House Trust
Manchester City Council,Adult Social Care,Supporting People Payments,15.12.2015,5100831356,"1,484.33",Future Directions CIC
Manchester City Council,Adult Social Care,Grant and subscriptions awarded,15.12.2015,5100830075,"1,445.41",Aquarius Community Centre
Manchester City Council,Adult Social Care,Grant and subscriptions awarded,15.12.2015,5100829710,"1,408.85",Youth Project @ Apostles &
Manchester City Council,Adult Social Care,Grant and subscriptions awarded,15.12.2015,5100830931,"1,333.33",N-Gage Project
Manchester City Council,Adult Social Care,Furniture,15.12.2015,5100832007,"1,256.85",The Furnishing Service Ltd
Manchester City Council,Adult Social Care,External repairs and maintenance for buildings,15.12.2015,5100831958,"1,207.84",Manchester Working Ltd
Manchester City Council,Adult Social Care,Grant and subscriptions awarded,15.12.2015,5100831233,"1,133.75",Royal Oak & Baguley Residents Assoc
Manchester City Council,Adult Social Care,Third party payments relating to Voluntary Organisations,15.12.2015,5100829326,"1,079.87",The Stroke Association
Manchester City Council,Adult Social Care,Professional fees,15.12.2015,5100831932,"1,050.00",Action First iPeople Ltd
Manchester City Council,Adult Social Care,Third party payments relating to Voluntary Organisations,15.12.2015,5100831816,"1,028.00",Federation of Jewish Services
Manchester City Council,Adult Social Care,Third party payments to Health Authority,15.12.2015,1904912818,"1,017.06",Chelsea & Westminster Hosp NHSFT
Manchester City Council,Adult Social Care,Professional fees,15.12.2015,5100831733,"1,000.00",Redacted Personal Information
Manchester City Council,Adult Social Care,Landline Telephone,15.12.2015,5100831712,993.00,Martenscroft Nursery School
Manchester City Council,Adult Social Care,Grant and subscriptions awarded,15.12.2015,5100831472,955.75,Manchester Settlement
Manchester City Council,Adult Social Care,Third party payments relating to Voluntary Organisations,15.12.2015,5100830307,947.40,Water Adventure Centre
Manchester City Council,Adult Social Care,Third party payments relating to Voluntary Organisations,15.12.2015,5100831538,900.00,Tree Of Life Centre Wythenshawe
Manchester City Council,Adult Social Care,Equipment,15.12.2015,5100830369,874.80,Action on Hearing Loss
Manchester City Council,Adult Social Care,Home Care ,15.12.2015,5100831969,868.33,Brighter Beginnings (Newton Heath)
Manchester City Council,Adult Social Care,Third party payments relating to Voluntary Organisations,15.12.2015,5100831464,859.50,Manchester Settlement
Manchester City Council,Adult Social Care,Training and Development,15.12.2015,1904910812,797.90,Redacted Personal Information
Manchester City Council,Adult Social Care,Third party payments to Health Authority,15.12.2015,1904903938,786.00,Bradford Metropolitan District
Manchester City Council,Adult Social Care,Third party payments relating to Voluntary Organisations,15.12.2015,5100830076,762.00,Aquarius Community Centre
Manchester City Council,Adult Social Care,Third party payments to Health Authority,15.12.2015,1904910847,754.71,Barts Health NHS Trust
Manchester City Council,Adult Social Care,Furniture,15.12.2015,5100832024,713.00,The Furnishing Service Ltd
Manchester City Council,Adult Social Care,Professional fees,15.12.2015,5100831929,700.00,Action First iPeople Ltd
Manchester City Council,Adult Social Care,Grant and subscriptions awarded,15.12.2015,5100830948,699.00,N-Gage Project
Manchester City Council,Adult Social Care,Personal needs of client,15.12.2015,5100832027,696.12,The Furnishing Service Ltd
Manchester City Council,Adult Social Care,I T Provision,15.12.2015,5100831818,691.80,Stone Computers Ltd
Manchester City Council,Adult Social Care,Personal needs of client,15.12.2015,5100832033,677.54,The Furnishing Service Ltd
Manchester City Council,Adult Social Care,Grant and subscriptions awarded,15.12.2015,5100830720,631.25,Street League
Manchester City Council,Adult Social Care,Legal Fees,15.12.2015,1904912845,625.00,Redacted Personal Information
Manchester City Council,Adult Social Care,Third party payments to Health Authority,15.12.2015,1904911906,613.08,Central & NW London NHS Foundation
Manchester City Council,Adult Social Care,Home Care ,15.12.2015,5100831777,609.31,Banana Moon Day Nursery
Manchester City Council,Adult Social Care,Third party payments relating to Voluntary Organisations,15.12.2015,5100831918,570.25,TiddlyWinks Creche Provisions
Manchester City Council,Adult Social Care,Third party payments to Health Authority,15.12.2015,1904912813,550.00,Royal Liverpool & B/green UH NHS T
Manchester City Council,Adult Social Care,Home Care ,15.12.2015,5100831990,536.61,Cooperative Childcare
Manchester City Council,Adult Social Care,Personal needs of client,15.12.2015,5100832058,524.34,The Furnishing Service Ltd
Manchester City Council,Adult Social Care,Subsistence and Conference Expenses,15.12.2015,5100831066,510.00,Assoc of Directors of Childrens Svs
Manchester City Council,Adult Social Care,"Consumable items eg Toilet rolls, soap etc",15.12.2015,5100832063,505.88,The Furnishing Service Ltd
Manchester City Council,Adult Social Care,Payments for services,15.12.2015,5100831821,"-3,096.25",The Together Trust
Manchester City Council,Adult Social Care,Payments for services,15.12.2015,5100831820,"-3,226.25",The Together Trust
Manchester City Council,Childrens Services,Works and associated costs for Land and Buildings,15.12.2015,5100831939,"1,321,887.72",Laing O'Rourke Construction Ltd
Manchester City Council,Childrens Services,Works and associated costs for Land and Buildings,15.12.2015,5100831939,"461,701.28",Laing O'Rourke Construction Ltd
Manchester City Council,Corporate Services,Fees,15.12.2015,1904910878,"49,370.98",Marston Group Limited
Manchester City Council,Corporate Services,Fees,15.12.2015,1904910877,"25,878.83",Marston Group Limited
Manchester City Council,Corporate Services,Fees,15.12.2015,1904911676,"2,684.45",Bristow & Sutor
Manchester City Council,Corporate Services,Fees,15.12.2015,1904910880,"1,848.38",Rossendales Ltd
Manchester City Council,Corporate Services,Furniture,15.12.2015,5100832001,"1,636.30",The Furnishing Service Ltd
Manchester City Council,Corporate Services,Furniture,15.12.2015,5100832009,959.53,The Furnishing Service Ltd
Manchester City Council,Corporate Services,Furniture,15.12.2015,5100832010,893.05,The Furnishing Service Ltd
Manchester City Council,Corporate Services,Furniture,15.12.2015,5100832011,885.84,The Furnishing Service Ltd
Manchester City Council,Corporate Services,Furniture,15.12.2015,5100832013,869.54,The Furnishing Service Ltd
Manchester City Council,Corporate Services,Furniture,15.12.2015,5100832014,832.03,The Furnishing Service Ltd
Manchester City Council,Corporate Services,Furniture,15.12.2015,5100832015,816.63,The Furnishing Service Ltd
Manchester City Council,Corporate Services,Furniture,15.12.2015,5100832016,805.37,The Furnishing Service Ltd
Manchester City Council,Corporate Services,Furniture,15.12.2015,5100832017,805.37,The Furnishing Service Ltd
Manchester City Council,Corporate Services,Furniture,15.12.2015,5100832018,792.51,The Furnishing Service Ltd
Manchester City Council,Corporate Services,Furniture,15.12.2015,5100832019,758.42,The Furnishing Service Ltd
Manchester City Council,Corporate Services,Furniture,15.12.2015,5100832020,758.34,The Furnishing Service Ltd
Manchester City Council,Corporate Services,Furniture,15.12.2015,5100832021,758.34,The Furnishing Service Ltd
Manchester City Council,Corporate Services,Furniture,15.12.2015,5100832023,724.43,The Furnishing Service Ltd
Manchester City Council,Corporate Services,Furniture,15.12.2015,5100832025,712.61,The Furnishing Service Ltd
Manchester City Council,Corporate Services,Furniture,15.12.2015,5100832028,689.13,The Furnishing Service Ltd
Manchester City Council,Corporate Services,Furniture,15.12.2015,5100832029,689.13,The Furnishing Service Ltd
Manchester City Council,Corporate Services,Furniture,15.12.2015,5100832030,689.13,The Furnishing Service Ltd
Manchester City Council,Corporate Services,Furniture,15.12.2015,5100832031,689.13,The Furnishing Service Ltd
Manchester City Council,Corporate Services,Furniture,15.12.2015,5100832032,682.53,The Furnishing Service Ltd
Manchester City Council,Corporate Services,Furniture,15.12.2015,5100832035,629.24,The Furnishing Service Ltd
Manchester City Council,Corporate Services,Furniture,15.12.2015,5100832039,628.00,The Furnishing Service Ltd
Manchester City Council,Corporate Services,Compensation Payments,15.12.2015,1904910879,620.00,Marston Group Limited
Manchester City Council,Corporate Services,Furniture,15.12.2015,5100832041,600.53,The Furnishing Service Ltd
Manchester City Council,Corporate Services,Furniture,15.12.2015,5100832042,572.89,The Furnishing Service Ltd
Manchester City Council,Corporate Services,Furniture,15.12.2015,5100832043,572.89,The Furnishing Service Ltd
Manchester City Council,Corporate Services,Furniture,15.12.2015,5100832044,572.89,The Furnishing Service Ltd
Manchester City Council,Corporate Services,Furniture,15.12.2015,5100832045,572.89,The Furnishing Service Ltd
Manchester City Council,Corporate Services,Furniture,15.12.2015,5100832046,568.28,The Furnishing Service Ltd
Manchester City Council,Corporate Services,Furniture,15.12.2015,5100832048,568.08,The Furnishing Service Ltd
Manchester City Council,Corporate Services,Furniture,15.12.2015,5100832049,566.29,The Furnishing Service Ltd
Manchester City Council,Corporate Services,Furniture,15.12.2015,5100832050,538.98,The Furnishing Service Ltd
Manchester City Council,Corporate Services,Furniture,15.12.2015,5100832052,538.98,The Furnishing Service Ltd
Manchester City Council,Corporate Services,Furniture,15.12.2015,5100832053,538.98,The Furnishing Service Ltd
Manchester City Council,Corporate Services,Furniture,15.12.2015,5100832054,532.13,The Furnishing Service Ltd
Manchester City Council,Corporate Services,Furniture,15.12.2015,5100832056,524.65,The Furnishing Service Ltd
Manchester City Council,Corporate Services,Furniture,15.12.2015,5100832059,514.64,The Furnishing Service Ltd
Manchester City Council,Corporate Services,Fees,15.12.2015,1904910880,"-1,848.38",Rossendales Ltd
Manchester City Council,Corporate Services,Fees,15.12.2015,1904911676,"-2,684.45",Bristow & Sutor
Manchester City Council,Corporate Services,Fees,15.12.2015,1904910877,"-25,878.83",Marston Group Limited
Manchester City Council,Corporate Services,Fees,15.12.2015,1904910878,"-49,370.98",Marston Group Limited
Manchester City Council,Housing General Fund,Council Dwelling Adaptations,15.12.2015,5100831895,"99,727.46",Solarking Commercial
Manchester City Council,Housing Revenue Account,Council Dwelling Fees,15.12.2015,5100832038,"136,119.67",Northwards Housing Limited
Manchester City Council,Housing Revenue Account,Council Dwelling Adaptations,15.12.2015,5100831717,"53,803.50",Northwards Housing Limited
Manchester City Council,Housing Revenue Account,Council Dwelling Adaptations,15.12.2015,5100831441,"7,077.77",JTC Furniture Group
Manchester City Council,Chief Executives,Works and associated costs for Land and Buildings,15.12.2015,5100831892,"536,322.37",ISG Construction Limited
Manchester City Council,Chief Executives,Works and associated costs for Land and Buildings,15.12.2015,5100831892,"177,989.87",ISG Construction Limited
Manchester City Council,Chief Executives,Works and associated costs for Land and Buildings,15.12.2015,5100831892,"91,370.94",ISG Construction Limited
Manchester City Council,Chief Executives,Works and associated costs for Land and Buildings,15.12.2015,5100831892,"11,558.86",ISG Construction Limited
Manchester City Council,Chief Executives,Works and associated costs for Land and Buildings,15.12.2015,5100831892,"10,742.53",ISG Construction Limited
Manchester City Council,Chief Executives,Building Works,15.12.2015,5100829308,"7,674.00",Vitech Scientific Ltd
Manchester City Council,Chief Executives,Advertising,15.12.2015,5100831952,"2,889.64",Trinity Mirror NW2 Ltd
Manchester City Council,Chief Executives,Data Links,15.12.2015,5100831788,"2,733.00",The Loop t/a Gamma Telecom Ltd
Manchester City Council,Chief Executives,Advertising,15.12.2015,5100831952,"1,841.06",Trinity Mirror NW2 Ltd
Manchester City Council,Chief Executives,Publications,15.12.2015,5100831948,"1,014.00",Thompson Reuters
Manchester City Council,Chief Executives,Advertising,15.12.2015,5100831891,999.00,Reed Business Information Ltd
Manchester City Council,Chief Executives,Advertising,15.12.2015,5100831832,880.00,All About Audiences Services Ltd
Manchester City Council,Chief Executives,Advertising,15.12.2015,5100832022,675.00,The Stage Newspaper Ltd
Manchester City Council,Chief Executives,Hire of Equipment,15.12.2015,5100831102,565.00,Silverback Events Limited
Manchester City Council,Regeneration Finance,Payments for services,15.12.2015,5100831566,"87,640.00",Cityco
Manchester City Council,Regeneration Finance,Professional fees,15.12.2015,5100831878,"4,912.14",Urban Strategies Inc
Manchester City Council,Regeneration Finance,Third party payments relating to Voluntary Organisations,15.12.2015,5100831902,"3,045.42",GMPLN
Manchester City Council,Regeneration Finance,Professional fees,15.12.2015,5100831789,"2,759.00",Airborne Environmental Consultants
Manchester City Council,Insurance Fund,Insurance,15.12.2015,1904912862,"2,310.00",Azmi Rana Solicitors
Manchester City Council,Insurance Fund,Bal of Rsk InsPrem,15.12.2015,1904911900,"1,733.00",Baguley Hall Primary School
Manchester City Council,Insurance Fund,Insurance,15.12.2015,1904911680,600.00,Department For Work & Pensions
Manchester City Council,GMIST (Greater Mcr Integrated),Agency staff provision,15.12.2015,5100811808,"9,634.15",Commission for the New Economy
Manchester City Council,Manchester Leisure,Transport Coach Hire,16.12.2015,5100829893,"33,370.00",Belle Vue Manchester
Manchester City Council,Manchester Leisure,Agency staff provision,16.12.2015,5100832451,"9,000.00",North Manchester Sports Forum
Manchester City Council,Manchester Leisure,Training and Development,16.12.2015,5100832251,"1,200.00",Lois Burton Ltd
Manchester City Council,Hospitality + Trading Services,Refuse Collection,16.12.2015,5100831897,"21,853.20",Fairfield Environmental Serv Ltd
Manchester City Council,Hospitality + Trading Services,Internal Repairs and Maintenance for buildings,16.12.2015,5100832469,"15,855.00",Manchester Working Ltd
Manchester City Council,Hospitality + Trading Services,Payments to Sub-Contractors,16.12.2015,5100831530,"2,031.67",GMCA
Manchester City Council,Hospitality + Trading Services,Purchase of stores for re-distribution,16.12.2015,5100832110,"1,692.00",Instarmac Group Ltd
Manchester City Council,Hospitality + Trading Services,External repairs and maintenance for buildings,16.12.2015,5100832224,"1,515.04",Grantfen Fire & Security Ltd
Manchester City Council,Hospitality + Trading Services,External repairs and maintenance for buildings,16.12.2015,5100832223,"1,281.22",Grantfen Fire & Security Ltd
Manchester City Council,Hospitality + Trading Services,Vehicle Repairs,16.12.2015,5100832491,"1,256.78",Advanced Vehicle Technicians Ltd
Manchester City Council,Hospitality + Trading Services,Catering Provisions,16.12.2015,1904918062,"1,166.21",Brake Bros Foodservice Ltd
Manchester City Council,Hospitality + Trading Services,Catering Provisions,16.12.2015,1904918060,"1,116.29",BRAMBLES FOODS LTD
Manchester City Council,Hospitality + Trading Services,Payments to Sub-Contractors,16.12.2015,5100831531,"1,046.72",GMCA
Manchester City Council,Hospitality + Trading Services,Catering Provisions,16.12.2015,1904918022,728.02,Brake Bros Foodservice Ltd
